Workbook

Sheet Definitions
A1: Citation | B1: Cohen, Stuart, Vignesh Ramasamy, and Danny Inman. 2023. A Component-Level Bottom-Up Cost Model for Pumped Storage Hydropower. Golden, CO: National Renewable Energy Laboratory. NREL/TP-6A40-84875. https://www.nrel.gov/docs/fy23osti/84875.
A3: Parameter | B3: Parameter Type | C3: Description/Instructions | D3: Options/ Choices (if applicable) | E3: Applicability for Small Scale PSH (<=100 MW) [n/a if blank] | F3: Applicability for Large Scale PSH (>100 MW) [n/a if blank] | G3: Equation/Cost Curve [n/a if blank] | H3: Notes | I3: Data Source
A4: Definitions | B4: Worksheet | C4: This sheet has definitions and descriptions of most terms and parameters within the workbook. | D4: No
A5: Cost Model L-PSH | B5: Worksheet | C5: This sheet includes the core PSH cost model with all base case inputs, assumptions, output specifications, and cost components applicable for a large PSH system. | D5: No
A6: Cost Model S-PSH | B6: Worksheet | C6: This sheet includes the core PSH cost model with all base case inputs, assumptions, output specifications, and cost components applicable for a small PSH system. | D6: No
A7: Cost Curves L-PSH | B7: Worksheet | C7: This sheet includes all underlying cost curves using inputs of the large PSH system to estimate unit and total costs of different components for a large PSH system. | D7: No | H7: Most of the cost curves are from EPRI GS-6999 report "Pumped Storage Planning and Evaluation Guide"
A8: Cost Curves S-PSH | B8: Worksheet | C8: This sheet includes all underlying cost curves using inputs of the small PSH system to estimate unit and total costs of different components for a small PSH system. | D8: No | H8: Most of the cost curves are from EPRI GS-6999 report "Pumped Storage Planning and Evaluation Guide"
A9: Market Adj Factors | B9: Worksheet | C9: This sheet includes market adjustment factors and inflation factors used to adjust the estimated unit cost to current year values. | D9: No | I9: Industry engagement and U.S. Bureau of Labor and Statistics
A10: Locational Adj Factors | B10: Worksheet | C10: This sheet includes locational cost adjustment factors used to adjust unit cost based on selected location. | D10: No | I10: RSMeans. 2022. “RSMeans City Cost Index - 2022 - Quarter 2.” Gordian. https://www.rsmeans.com/media/wysiwyg/quarterly_updates/Q2-2022-ChangeNotice.pdf
A11: Land Value Data | B11: Worksheet | C11: This sheet has $/acre value of different types of land by location based on USDA data. | D11: No | I11: USDA. 2022. “USDA Land Values: 2022 Summary.” 1949–1867. United States Department of Agriculture.
A12: Sensitivity Analysis | B12: Worksheet | C12: This sheet has macros to calculate costs for multiple different configurations at the same time and plot the changes to the overall $/kWh.
A13: Location | B13: Inputs & Assumptions | C13: Select United States or one of the states in the U.S. This input will adjust cost components based on a locational cost adjustment factor derived from the RSmeans construction cost guide. | D13: Yes | I13: RSMeans. 2022. “RSMeans City Cost Index - 2022 - Quarter 2.” Gordian. https://www.rsmeans.com/media/wysiwyg/quarterly_updates/Q2-2022-ChangeNotice.pdf
A14: Avg. Max Upper Reservoir Depth | B14: Inputs & Assumptions | C14: Enter the average of the maximum upper reservoir depth in feet. | D14: No
A15: Upper Reservoir Area | B15: Inputs & Assumptions | C15: Enter upper reservoir area in acres, averaged over reservoir depth. | D15: No
A16: Avg. Max Lower Reservoir Depth | B16: Inputs & Assumptions | C16: Enter the average of the maximum lower reservoir depth in feet. | D16: No
A17: Lower Reservoir Area | B17: Inputs & Assumptions | C17: Enter lower reservoir area in acres, averaged over reservoir depth. | D17: No
A18: Nominal (Max) Head | B18: Inputs & Assumptions | C18: Enter maximum head height in feet, i.e., the upper reservoir max water surface elevation minus the lower reservoir min water surface elevation. | D18: No
A19: Total Conveyance Length (vert+horiz) | B19: Inputs & Assumptions | C19: Enter total water conveyance length between upper and lower reservoir in feet. This could be the shortest distance between two reservoirs, including both the horizontal and vertical (head) distance. | D19: No
A20: Avg. Upper Dam Height | B20: Inputs & Assumptions | C20: Enter average upper reservoir dam height in feet. | D20: No
A21: Upper Dam Crest Length | B21: Inputs & Assumptions | C21: Enter average upper reservoir dam crest length (length along the span of the dam) in feet. | D21: No
A22: Avg. Lower Dam Height | B22: Inputs & Assumptions | C22: Enter average lower reservoir dam height in feet. | D22: No
A23: Lower Dam Crest Length | B23: Inputs & Assumptions | C23: Enter average lower reservoir dam crest length (length along the span of the dam) in feet. | D23: No
A24: Acreage to be acquired | B24: Inputs & Assumptions | C24: Enter total land area to be acquired for the construction of the project in acres. | D24: No | H24: Could be area of both rervoirs + 10%
A25: Generation Time | B25: Inputs & Assumptions | C25: Enter the maximum discharge time in hours based on the power output at mean generation discharge. In practice, power will fluctuate between min and max power based on head height throughout the discharge period. | D25: No
A26: Meter to Feet | B26: Inputs & Assumptions | C26: Conversion factor from meter to feet used for maximum head height. | D26: No
A27: Feet to Miles | B27: Inputs & Assumptions | C27: Conversion factor from feet to mile used for water conveyance length. | D27: No
A28: Ac. Ft to Cu. Ft | B28: Inputs & Assumptions | C28: Conversion factor for acre-foot to cubic-foot. | D28: No
A29: Cu. Ft to Cu. Yd | B29: Inputs & Assumptions | C29: Conversion factor for cubic-foot to cubic-yard. | D29: No
A30: Hr to Sec | B30: Inputs & Assumptions | C30: Conversion factor for hours to seconds. | D30: No
A31: MW to W | B31: Inputs & Assumptions | C31: Conversion factor from megawatts to watts | D31: No
A32: acceleration of gravity (metric) | B32: Inputs & Assumptions | C32: Gravitational acceleration constant | D32: No
A33: density of water (metric) | B33: Inputs & Assumptions | C33: Density of water constant | D33: No
A34: Tunneling Condition | B34: Inputs & Assumptions | C34: Select an option between average and poor tunneling condition. Average tunneling condition will have lower cost compared to poor tunneling condition. Poor tunneling conditions could be attributed to tunnel size/length, excavation method, rock conditions, or water inflows. | D34: Yes
A35: Access Road, Terrain | B35: Inputs & Assumptions | C35: Select a terrain grade type that impacts the cost of the access road. Flat is <10 degree slope, Mild is 10-20 degree slope, Steep is >20 degree slope. | D35: Yes
A36: Access Road, Type | B36: Inputs & Assumptions | C36: Select whether a new access road must be built, or if an existing road can be rebuilt. | D36: Yes
A37: Highway Realignment | B37: Inputs & Assumptions | C37: Select an option that will either include or exclude highway realignment cost. | D37: Yes
A38: Access Road | B38: Inputs & Assumptions | C38: Enter a value in miles for the length of access road that needs to be built. | D38: No | H38: Could be the distance between nearest road, lower reservoir and then to upper reservoir + 10%.
A39: Access Tunnel, Length | B39: Inputs & Assumptions | C39: Enter a value in feet for the distance of the access tunnel built to access an underground powerhouse. | D39: No | H39: Assume 26ft x 26ft tunnel section. If length is unknown can be approximated to tailrace tunnel length. Could be approximated as distance between lower edge of reservoir to half of the horizontal length assuming power station is in the center
A40: Water Supply | B40: Inputs & Assumptions | C40: Select an option that will either include or exclude water supply cost. | D40: Yes
A41: Water Supply Cost | B41: Inputs & Assumptions | C41: Enter an assumed water supply cost per megawatt of max generating capacity. Alternatively, a water supply cost in dollars can be entered as an override quantity in the cost table. | D41: No
A42: U. Reservoir Intake/Outlet | B42: Inputs & Assumptions | C42: Select an option between horizontal and vertical for the upper reservoir water intake/outlet. Choice depends on terrain, but typically choose horizontal if there is >1 head race tunnel (tunnel upstream of the powerhouse). | D42: Yes | I42: EPRI GS6999 - P.NO. 6-10, 6-11
A43: L. Reservoir Intake/Outlet | B43: Inputs & Assumptions | C43: Select an option between horizontal and vertical for the lower reservoir water intake/outlet. Typically horizontal. | D43: Yes | I43: EPRI GS6999 - P.NO. 6-10, 6-12
A44: Powerstation Structure Geology | B44: Inputs & Assumptions | C44: Select an option between average and adverse geology. Average tuneling condition will have lower cost compared to more conservatively assuming adverse geology. | D44: Yes
A45: Power Station | B45: Inputs & Assumptions | C45: Select an option between surface and underground power station. | D45: Yes | I45: EPRI GS6999 - P.NO. 6-9, 6-10
A46: Penstock | B46: Inputs & Assumptions | C46: Select an option between surface and underground penstock. Systems with total capacity < 100 MW are expected to use surface penstocks. | D46: Yes | I46: EPRI GS6999 - P.NO. 6-10
A47: Inflation Factor | B47: Inputs & Assumptions | C47: Enables or disables the inflation factor adjustment for all the system cost components except for indirect costs. | D47: Yes
A48: Material/Equipment % | B48: Inputs & Assumptions | C48: Enter a percentage value that specifies the percent of total material/equipment costs on which to apply sales tax, EPC, overhead, and profit. | D48: No
A49: Mobilization/Demobilization | B49: Inputs & Assumptions | C49: Enter a percentage value to estimate material and labor mobilization/demobilization as a percent of total cost. | D49: No
A50: Sales Tax | B50: Inputs & Assumptions | C50: Enter a percentage value to estimate sales tax on a material percentage of components. | D50: No
A51: Contingency | B51: Inputs & Assumptions | C51: Enter a percentage value to apply as a contingency cost on the total cost of components. | D51: No
A52: EPC Cost | B52: Inputs & Assumptions | C52: Enter a percentage value to apply engineering-procurement-construction (EPC) contractor cost on a material percentage of components. | D52: No
A53: Developer Cost | B53: Inputs & Assumptions | C53: Enter a percentage value to apply a developer cost on the total cost of components. | D53: No
A54: EPC Overhead & Profit | B54: Inputs & Assumptions | C54: Enter a percentage value to estimate overhead and the installer's profit markup on a material percentage of components. | D54: No
A55: Tranmsission Distance | B55: Inputs & Assumptions | C55: Enter the value for transmission interconnection distance in miles to estimate the cost of transmission. | D55: No
A56: Transmission | B56: Inputs & Assumptions | C56: Enter the value for transmission line voltage to estimate the cost of transmission. | D56: No
A57: Substation | B57: Inputs & Assumptions | C57: Enter the value for substation voltage to estimate the cost of a switchyard. | D57: No
A58: Tranmission Terrain | B58: Inputs & Assumptions | C58: Select the type of terrain to estimate the cost of transmission. | D58: Yes
A59: Transmission Type (# circuits) | B59: Inputs & Assumptions | C59: Select the type of transmission network (single or double circuit) to estimate the cost of transmission. | D59: Yes
A60: Active Storage | B60: Inputs & Assumptions | C60: Enter a percentage value (less than or equal to 100%) to estimate the total usable storage out of the full reservoir volume. | D60: No
A61: Hmin/Hmax | B61: Inputs & Assumptions | C61: Enter the assumed ratio of minimum to maximum gross head. | D61: No
A62: Hazen Williams C | B62: Inputs & Assumptions | C62: Enter a value for the Hazen-Williams friction coefficient to estimate the head loss in conveyance structures. | D62: No
A63: P-T Efficiency | B63: Inputs & Assumptions | C63: Enter a value for unit pump-turbine efficiency to estimate palnt generation power. This is the one-way component efficiency, not the overall round-trip efficiency of power generation. | D63: No | H63: This is not same as round trip efficiency.
A64: Max Tunnel Velocity | B64: Inputs & Assumptions | C64: Enter a maximum water velocity in the tunnel in foot per second to estimate tunnel diameter. | D64: No | H64: Value usually in the range of 15 - 20.
A65: Max Tunnel Dia | B65: Inputs & Assumptions | C65: Enter a maximum tunnel diameter value to estimate number of tunnels. | D65: No
A66: Max Unit Capacity | B66: Inputs & Assumptions | C66: Enter a maximum capacity in megawatts per generating unit to determine the number of individual turbine/generator units. | D66: No
A67: Min No. Units | B67: Inputs & Assumptions | C67: Enter a value to set a lower limit for total no. of turbine/generator units at the plant. | D67: No
A68: Pump Time | B68: Inputs & Assumptions | C68: Enter a factor value for the ratio of charging hours to discharging hours at mean discharge. This is the inverse of the overall round-trip efficiency. | D68: No | H68: Could be inverse of round trip efficiency.
A69: Conveyance Length | B69: Output Specifications | C69: Converts conveyance length value converted from feet to miles. | D69: No
A70: Avg. Upper Reservoir Volume | B70: Output Specifications | C70: Estimates total upper reservoir volume by multiplying average reservoir depth and reservoir area. | D70: No
A71: Avg. Lower Reservoir Volume | B71: Output Specifications | C71: Estimates total lower reservoir volume by multiplying average reservoir depth and reservoir area. | D71: No
A72: Total Upper Dam Volume | B72: Output Specifications | C72: Estimates total dam volume in the upper reservoir by multiplying estimated unit volume using dam height in the EPRI curve and input dam crest length. | D72: No | I72: EPRI GS6999 - P.NO. 6-50
A73: Total Lower Dam Volume | B73: Output Specifications | C73: Estimates total dam volume in the lower reservoir by multiplying estimated unit volume using dam height in the EPRI curve and input dam crest length. | D73: No | I73: EPRI GS6999 - P.NO. 6-50
A74: Active Storage | B74: Output Specifications | C74: Estimates total usable or dispatchable storage volume by multiplying active storage percentage factor and upper reservoir volume. | D74: No
A75: Energy Storage | B75: Output Specifications | C75: Total energy stored based on active storage. | D75: No
A76: Mean Gen Discharge | B76: Output Specifications | C76: Estimates the mean water discharge in cubic feet per second by multiplying converted values of active storage in acre-foot to cubic-foot and generation time in hours to seconds. Assumes power output is maximized for the head and flow. | D76: No
A77: Min Gross Head | B77: Output Specifications | C77: Estimates minimum gross head in feet by multiplying the Hmin/Hmax ratio and the nominal maximum head height value. | D77: No
A78: Mean Gross Head | B78: Output Specifications | C78: The average of the maximum nominal head and minimum nominal head values. | D78: No
A79: Min Gen Discharge | B79: Output Specifications | C79: Estimates the minimum water discharge in cubic feet per sectond from the mean discharge and the min/mean head ratio, based on the head being proportional to the flow squared | D79: No
A80: Max Gen Discharge | B80: Output Specifications | C80: Estimates the minimum water discharge in cubic feet per sectond from the mean discharge and the max/mean head ratio, based on the head being proportional to the flow squared | D80: No
A81: Nominal Tunnel Diameter | B81: Output Specifications | C81: Estimates the tunnel diameter in feet assuming 1 tunnel, estimated from the ratio of max flow to velocity (i.e., tunnel cross-sectional area) | D81: No | I81: EPRI GS6999 - P.NO. 6-12, 6-13
A82: No. Tunnels | B82: Output Specifications | C82: Determines the required number of tunnels to be 1 if the estimated tunnel diameter is less than maximum tunnel diameter, otherwise a value of 2 is assumed. | D82: No | I82: EPRI GS6999 - P.NO. 6-12, 6-13
A83: Adjusted Tunnel Diameter | B83: Output Specifications | C83: Estimates the tunnel diameter in feet based on the total number of tunnels and the ratio of max flow to velocity (i.e., tunnel cross-sectional area) | D83: No | I83: EPRI GS6999 - P.NO. 6-12, 6-13
A84: L/H | B84: Output Specifications | C84: Ratio of conveyance length to mean head height. | D84: No
A85: Surge Chambers | B85: Output Specifications | C85: A flag for whether or not to include surge chamer cost. A surge chamber is assumed to be required if L/H ratio is greater than or equal to 7. | D85: No | I85: EPRI GS6999 - P.NO. 6-13, 6-14
A86: Min Gen Headloss | B86: Output Specifications | C86: Head loss in feet at minimum discharge conditions, using the Hazen-Williams equation | D86: No
A87: Mean Gen Headloss | B87: Output Specifications | C87: Head loss in feet at mean discharge conditions, using the Hazen-Williams equation | D87: No
A88: Max Gen Headloss | B88: Output Specifications | C88: Head loss in feet at maximum discharge conditions, using the Hazen-Williams equation | D88: No
A89: Net Head @ Min Gen Discharge | B89: Output Specifications | C89: The difference between minimum head height and head loss at minimum discharge. | D89: No
A90: Net Head @ Mean Gen Discharge | B90: Output Specifications | C90: The difference between mean head height and head loss at mean discharge. | D90: No
A91: Net Head @ Max Gen Discharge | B91: Output Specifications | C91: The difference between maximum head height and head loss at maximum discharge. | D91: No
A92: Min Plant Gen Power | B92: Output Specifications | C92: Calculation of hydropower output at minimum discharge based on head, flow rate, P-T efficiency, and physical properties. This would be considered the firm capacity for resource adequacy purposes. | D92: No
A93: Mean Plant Gen Power | B93: Output Specifications | C93: Calculation of hydropower output at mean discharge based on head, flow rate, P-T efficiency, and physical properties | D93: No
A94: Max Plant Gen Power | B94: Output Specifications | C94: Calculation of hydropower output at maximum discharge based on head, flow rate, P-T efficiency, and physical properties. The maximum recommended plant gen power is 2100 MW to avoid extrapolating beyond the prescribed range of the cost functions. | D94: No
A95: No. Units | B95: Output Specifications | C95: Calculates the required number of pump/generator units using plant's total generation capacity and the maximum generation capacity per unit. The maximum recommended number of units is 6 to avoid extrapolating beyond the prescribed range of the cost functions. | D95: No
A96: Unit Rating | B96: Output Specifications | C96: The number of pump/generator units calculated from the max plant capacity divided by number of units. | D96: No
A97: Max Penstock Velocity | B97: Output Specifications | C97: The maximum water velocity in the penstock in foot per second, estimated from the maximum head. | D97: No | I97: EPRI GS6999 - P.NO. A-11, A-12
A98: Max Draft Tube Tunnel Velocity | B98: Output Specifications | C98: The maximum water velocity in the draft tube in foot per second, conservatively estimated from the maximum minus minimum head. | D98: No | I98: EPRI GS6999 - P.NO. A-12
A99: Penstock Dia | B99: Output Specifications | C99: Estimates the penstock diameter in feet from the ratio of max flow to max penstock velocity (i.e., penstock cross-sectional area) | D99: No
A100: Draft Tube Tunnel Dia | B100: Output Specifications | C100: Estimates the draft tube diameter in feet from the ratio of max flow to max penstock velocity (i.e., draft tube cross-sectional area) | D100: No
A101: Pump Time | B101: Output Specifications | C101: The product of the pump time factor and total generation time. | D101: No
A102: Mean Pump Discharge | B102: Output Specifications | C102: Estimates mean water discharge of the pump in cubic feet per second by converting active storage from acre-foot to cubic-food and pump time from hours to seconds. | D102: No
A103: Mean Pump Headloss | B103: Output Specifications | C103: Head loss in feet from the pump at mean discharge conditions, using the Hazen-Williams equation | D103: No
A104: Mean Pump Net Head | B104: Output Specifications | C104: Total head the pump must overcome as the sum of mean gross head height and mean pump headloss. | D104: No
A105: Mean Pump Power | B105: Output Specifications | C105: Pump power requirements calculated based on mean pump discharge conditions of head, flow rate, P-T efficiency, and physical properties | D105: No
A106: Tranmission Terrain Multiplier | B106: Output Specifications | C106: Transmission cost multiplification factor lookup for selected transmission terrain type. | D106: No | I106: Andrade, Juan, and Ross Baldick. 2017. “The Full Cost of Electricity (FCe-): Estimation of Transmission Costs for New Generation.” UTEI/2016-09-2. Austin, TX: The University of Texas at Austin. https://energy.utexas.edu/sites/default/files/UTAustin_FCe_TransmissionCosts_2017.pdf
A107: Tranmission Type Multiplier | B107: Output Specifications | C107: Transmission cost multiplification factor lookup for selected transmission line type. | D107: No | I107: Andrade, Juan, and Ross Baldick. 2017. “The Full Cost of Electricity (FCe-): Estimation of Transmission Costs for New Generation.” UTEI/2016-09-2. Austin, TX: The University of Texas at Austin. https://energy.utexas.edu/sites/default/files/UTAustin_FCe_TransmissionCosts_2017.pdf
A108: Include in Total? | B108: Cost Component Column Header | C108: If the value in this column is set to "Yes" it will include the cost component in the total cost estimation and vice versa. | D108: No
A109: Unit | B109: Cost Component Column Header | C109: Values in this column define the intrinsic unit that is used to quantify the cost component. | D109: No
A110: Qty | B110: Cost Component Column Header | C110: Values in this column estimate the total quantity of each cost component in the defined unit. | D110: No
A111: Base Unit Cost | B111: Cost Component Column Header | C111: Values in this column estimate the unit cost of each cost component in the defined $/unit. | D111: No
A112: Locational Factor | B112: Cost Component Column Header | C112: The Locational Factors are cost multipliers assigned for different locations in USA based on local markets, e.g., labor costs. | D112: No | H112: Land and Land Rights cost doesn't have any locational factor included in its total cost as the unit cost is already derived based on selected location. | I112: RSMeans. 2022. “RSMeans City Cost Index - 2022 - Quarter 2.” Gordian. https://www.rsmeans.com/media/wysiwyg/quarterly_updates/Q2-2022-ChangeNotice.pdf
A113: Inflation Factor (2022) | B113: Cost Component Column Header | C113: The Infation Factor is the cost multiplier based on the change in consumer price index due to inflation from the year $ year of cost curves (eg; 1988 is the $ year for EPRI cost curves) to the current dollar year of 2022. | D113: No | I113: U.S. Bureau of Labor and Statistics
A114: Market Adjustment Factor (MAF) | B114: Cost Component Column Header | C114: The Market Adjustment Factor is a cost multiplier that accounts for changes to component-specific markets beyond CPI inflation from the base cost curve year (i.e., 1988 for EPRI cost curves). For example, this factor could accommodate change in commodity markets for raw materials used for the component and component-specific supply chains. | D114: No | H114: Industry engagement.
A115: Adjusted Unit Cost | B115: Cost Component Column Header | C115: This is the product of base unit cost and all the cost adjustment factors. | D115: No
A116: Override Qty | B116: Cost Component Column Header | C116: Any values input under these cells can override the estimated quantity. | D116: No | H116: Could be handy for atypical projects.
A117: Override Unit Cost | B117: Cost Component Column Header | C117: Any values input under these cells can override the estimated unit cost. | D117: No
A118: Total Component Cost | B118: Cost Component Column Header | C118: This is the product of adjusted unit cost and quantity. | D118: No
A119: Cost per Capacity ($/MW) | B119: Cost Component Column Header | C119: This is a flag to denote if a cost component is dependent on power capacity of the technology. | D119: No
A120: Cost per Energy ($/MWh) | B120: Cost Component Column Header | C120: This is a flag to denote if a cost component is dependent on enegy capacity of the technology. | D120: No
A121: % of total cost (component) | B121: Cost Component Column Header | C121: Calculates the % of the total cost attributed to each cost component | D121: No
A122: % of total cost (category) | B122: Cost Component Column Header | C122: Calculates the % of the total cost attributed to each cost category | D122: No
A123: Land and Land Rights | B123: Cost Component | C123: Estimated for the selected project location using the total acreage required for project construction and the average cost per acre data sourced by state from the USDA cost of land and land rights. The United States average cost per acre value is used for any location that's not in the location input list. | D123: No | H123: Land requirement and its cost vary considerably by location and type of land. Need to make sure correct acreage and cost per acre value is used. | I123: USDA. 2022. “USDA Land Values: 2022 Summary.” 1949–1867. United States Department of Agriculture.
A124: Powerplant Structure | B124: Cost Component | C124: Cost per kW of the structure constructed for the powerhouse equipment, estimated with EPRI cost curves based on the power station type, geology, and estimated generator unit rating. The total cost is then calculated by multiplying the estimate cost per kW and the max plant generation power in kW. | D124: No | G124: cost per kW=a*dam_height^b for underground structure and a*dam_height^2 + b*dam_height + c for surface structure; a, b & c varies by geology type, powerstation type, and generator unit rating. | I124: EPRI GS6999 - P.NO. 6-42 to 6-49
A125: Reservoirs, Dams, and Waterways | B125: Cost Component | C125: Set of all cost components listed under "Reservoirs, Dams, and Waterways" | D125: No
A126: Upper Reservoir Dam and Spillway | B126: Cost Component | C126: Calculates total cost by multiplying the upper reservoir volume in cubic yards and the cost per cubic yard estimated with an EPRI cost curve. | D126: No | G126: cost per CY = (7.75 * dam_volume) / (dam_volume - 0.05) | I126: EPRI GS6999 - P.NO. 6-50
A127: Upper Reservoir Intake/Outlet | B127: Cost Component | C127: The cost per intake/outlet in millions of US dollars is estimated based on the upper reservoir intake type and the number of tunnels required. | D127: No | G127: cost per intake/outlet = a*(conductor_diameter)^2 - b*(conductor_diameter) + c; a, b, and c varies by intake type. | H127: Adjusted tunnel diameter to be used in the cost equation. | I127: EPRI GS6999 - P.NO. 6-52
A128: Surge Facilities | B128: Cost Component | C128: This site-specific cost where the user determines if it is required. If a surge facility is required and enabled, the total cost of the surge facility is a specified % of the sum of the total water conductor cost, with the % specified in the Qty column. | D128: No | G128: cost of surge facility = surge_facility_cost_factor*cost of concrete lined water conductors | I128: EPRI GS6999 - P.NO. 6-22
A129: Lower Reservoir Intake/Outlet | B129: Cost Component | C129: The cost per intake/outlet in millions of US dollars is estimated based on the lower reservoir intake type and the number of tunnels required. | D129: No | G129: cost per intake/outlet = a*(conductor_diameter)^2 - b*(conductor_diameter) + c; a, b, and c varies by intake type. | H129: Adjusted tunnel diameter to be used in the cost equation. | I129: EPRI GS6999 - P.NO. 6-52
A130: Lower Reservoir Dam and Spillway | B130: Cost Component | C130: Calculates total cost by multiplying the lower reservoir volume in cubic yards and the cost per cubic yard estimated with an EPRI cost curve. | D130: No | G130: cost per CY = (7.75 * dam_volume) / (dam_volume - 0.05) | I130: EPRI GS6999 - P.NO. 6-50
A131: Water Conductors | B131: Cost Component | C131: Set of all cost components listed under "Concrete Lined Water Conductors" | D131: No
A132: Upper Low & High Pressure Tunnels | B132: Cost Component | C132: Estimated cost per linear foot of tunnel based on the tunneling condition, tunnel diameter, and conveyance length. Length of low/high pressure tunnels is half the remaining horizontal conveyance length after subtracting penstock, draft tube, and tailrace. | D132: No | E132: Disabled | F132: Enabled | G132: cost per LF = a*tunnel_diameter^2 + b*tunnel_diameter + c; a, b & c varies by tunnel length and diameter. | H132: Adjusted tunnel diameter to be used in the cost equation. Length is assumed to be half the horizontal conveyance length after subtracting penstock and draft tube length. | I132: EPRI GS6999 - P.NO. 6-53
A133: Vertical Shafts | B133: Cost Component | C133: Cost of vertical shafts is equal to estimated shaft length times cost per foot of vertical shaft. Vertical shaft length is estimated as equal to the mean gross head. | D133: No | E133: Disabled | F133: Enabled | G133: cost per LF = 186.57*(tunnel_diameter) + 27.143 | H133: Length of vertical shaft is assumed to be equal to mean gross head height. | I133: EPRI GS6999 - P.NO. 6-54
A134: Penstock Tunnels | B134: Cost Component | C134: Estimated cost per linear foot of tunnel based on the tunneling condition, tunnel diameter, and conveyance length. Length of penstock is estimated as equal to the mean gross head. | D134: No | E134: Disabled | F134: Enabled | G134: cost per LF = a*penstock_diameter^2 + b*penstock_diameter +c; a, b & c varies by penstock length and diameter. | H134: Length of penstock is assumed to be equal to mean gross head height. | I134: EPRI GS6999 - P.NO. 6-55
A135: Draft Tube Tunnels | B135: Cost Component | C135: Estimated cost per linear foot of tunnel based on the tunneling condition, tunnel diameter, and conveyance length. Length is assumed to be 200 ft based on EPRI guidance. | D135: No | E135: Disabled | F135: Enabled | G135: cost per LF = a*draft_tube_diameter^2 + b*draft_tube_diameter + c; a, b & c varies by draft tube length and diameter. | H135: Only applicable if underground powerstaion is assumed. Length is assumed to be 200 ft based on EPRI guidance. | I135: EPRI GS6999 - P.NO. 6-55
A136: Tailrace Tunnels | B136: Cost Component | C136: Estimated cost per linear foot of tunnel based on the tunneling condition, tunnel diameter, and conveyance length. Length of tailrace tunnels is half the remaining horizontal conveyance length after subtracting penstock, draft tube, and tailrace. | D136: No | E136: Disabled | F136: Enabled | G136: cost per LF = a*tunnel_diameter^2 + b*tunnel_diameter + c; a, b & c varies by tunnel length and diameter. | H136: Only applicable if underground powerstaion is assumed. Length is assumed to be half the horizontal conveyance length after subtracting penstock and draft tube length. | I136: EPRI GS6999 - P.NO. 6-53
A137: Surface Penstock | B137: Cost Component | C137: When a surface penstock is used, cost is based on estimated penstock length using no. of units, penstock diameter, and the cost per feet of penstock from EPRI cost curves that account for penstock diameter and head height. | D137: No | E137: Enabled | F137: Enabled | G137: cost per LF = a*tunnel_diameter^b; a & b varies by tunnel length and diameter. | H137: Only applicable if surface penstock is used. | I137: EPRI GS6999 - P.NO. 6-56
A138: Powerstation Equipment | B138: Cost Component | C138: Set of all cost components listed under "Powerstation Equipment". | D138: No
A139: Pump/Motors | B139: Cost Component | C139: For small systems, the cost of pumps/motors is itemized and estimated based on the mean pump discharge. | D139: No | E139: Enabled | F139: Disabled | G139: cost of pump/motors =[ 0.7799*(mean_pump_discharge in gal/min)^0.7442]*1000 | I139: EPRI 2011, ORNL 2015
A140: Generator/Turbines | B140: Cost Component | C140: For small systems, the cost of generator/turbine units is estimated based on the max plant generation capacity and head height. | D140: No | E140: Enabled | F140: Disabled | G140: cost per kW=a*max_plant_capacity^b; a & b varies by head height. | I140: EPRI 2011, ORNL 2015
A141: Total Powerstation | B141: Cost Component | C141: For large systems, the total cost of pumps/motors and generators/turbines is estimated with an EPRI cost curve based on the power station type, no.of turbine units, and estimated generator unit rating for different head height. | D141: No | E141: Disabled | F141: Enabled | G141: cost per kW = a*(mean_gross_head)^2 - b*(mean_gross_head) + c; a, b, and c varies by powerstation type, generator unit rating and no. of units. | I141: EPRI GS6999 - P.NO. 6-57 to 6-64
A142: Roads, Railroads, Bridges, and Access | B142: Cost Component | C142: Set of all cost components listed under "Roads, Railroads, Bridges, and Access". | D142: No
A143: Access Roads | B143: Cost Component | C143: Cost to construct access roads is estimated using EPRI cost data based on the cost per mile value assigned for different terrain type and road type. | D143: No | I143: EPRI GS6999 - P.NO. 6-22
A144: Access Tunnels | B144: Cost Component | C144: The access tunnel cost is the product of the cost per linear foot to construct access tunnels and the length of the access tunnels. | D144: No | G144: cost per LF = 2489.4*(access_tunnel_length)^0.118 | H144: Cost included only for underground powerstaion. | I144: EPRI GS6999 - P.NO. 6-65
A145: Highway Realignment | B145: Cost Component | C145: If any sort of highway realignment is required, an additional cost markup on the total cost of access roads is included. | D145: No | G145: total_cost = realignment_cost_fraction*total_cost_of_access_roads
A146: Switchyard | B146: Cost Component | C146: Cost of on-site electrical interconnection equipment is estimated using an EPRI cost curve based on the substation voltage and the number of generator units. | D146: No | G146: cost per switchyard = a*(number_of_units)^2 - b*(number_of_units) + c; a, b, and c varies by no. of generator units, and substation voltage. | I146: EPRI GS6999 - P.NO. 6-66
A147: Transmission Lines | B147: Cost Component | C147: Transmission cost per mile is estimated using an EPRI cost curve based on the transmisison voltage and maximum plant generation capacity. The cost also changes by selected transmission type and transmission terrain type. | D147: No | G147: cost per transmission mile = ( a*(max_plant_gen_power)^2 - b*(max_plant_gen_power) + c)*transmission_terrain_multiplier*transmission_circuit_multiplier; a, b, and c varies by no. of generator units, and substation voltage. | I147: EPRI GS6999 - P.NO. 6-67
A148: Others | B148: Cost Component | C148: Set of all cost components listed under "Others". | D148: No
A149: Water Supply | B149: Cost Component | C149: If water supply is required then we estimate cost of water supply by multiplying the total plant capacity by the $/kW water supply cost assumed in the inputs/assumptions section. Alternatively, an override qty cost in $ can be assumed. | D149: No | H149: Highly variable and site-dependent.
A150: Indirect Costs | B150: Cost Component | C150: Set of all cost components listed under "Indirect Costs". | D150: No
A151: Mobilization/Demobilization | B151: Cost Component | C151: Total cost of mobilization/demobilization of equipment & labor in is equal to mobilization/dembilization rate times the total cost to install the PSH system. | D151: No
A152: Sales Tax | B152: Cost Component | C152: Total sales tax is equal to sales tax rate times the total cost to install the PSH system times the material/equipment percentage factor input. | D152: No
A153: Contingency | B153: Cost Component | C153: Total contingency is equal to continengency markup factor times the total cost to install the PSH system. | D153: No
A154: EPC Cost | B154: Cost Component | C154: Total engineering, procurement, construction services (EPC) cost is equal to EPC markup rate times the total cost to install the PSH system times the material/equipment percentage factor input. | D154: No
A155: Developer Cost | B155: Cost Component | C155: Total developer cost is equal to developer markup rate times the total cost to install the PSH system. | D155: No
A156: Overhead & Profit | B156: Cost Component | C156: Total overhead & installer profit is equal to the overhead and profit markup times the total cost to install the PSH system times the material/equipment percentage factor input. | D156: No
A157: Total Direct and Indirect Cost | B157: Cost Component | C157: Sum of total cost in $ across all cost components. | D157: No
A158: $/kW (Max. Power Capacity) | B158: Cost Component | C158: Tht total cost divided by the max power generation capacity in kW. | D158: No
A159: $/kWh (Max. Energy Capacity) | B159: Cost Component | C159: The total cost divided by the max energy storage capacity in kWh based on the max power generation capacity and the generation time. | D159: No

Sheet Cost Model L-PSH
B6: Inputs & Assumptions | F6: Cost Components | G6: Include in Total? (Yes or No - User Option) | H6: Unit | I6: Qty | J6: Base Unit Cost ($/unit) (Includes material, equipment rental, installation labor) | K6: Locational Factor | L6: Inflation Factor (2022) | M6: Market Adjustment Factor (MAF) | N6: Adjusted Unit Cost ($) | O6: Override Qty | P6: Override Unit Cost ($) | Q6: Total Component Cost ($) | R6: % of total cost (component) | S6: % of total cost (category)
B8: Site Related | F8: Land and Land Rights | G8: Yes | H8: Acres | I8: =IF(G8="Yes",IF(O8,O8,C20),0) -> 2185 | J8: =IFERROR(VLOOKUP(C9,'Land Value Data'!$A$3:$G$51,7,FALSE),'Land Value Data'!G51) -> 3093.333333 | K8: 1 | L8: =IF(C51="Yes",'Market Adj Factors'!C45,1) -> 2.406321426 | M8: 1 | N8: =IF(P8,P8,J8*K8*L8*M8) -> 7443.554278 | O8: 0 | P8: 0 | Q8: =I8*N8 -> 16264166.1 | R8: =Q8/$Q$52 -> 0.006890520947 | S8: =R8 -> 0.006890520947
B9: Location | C9: United States | D9: #
B10: Avg. Max Upper Reservoir Depth | C10: 101 | D10: feet | F10: Powerplant Structure | G10: Yes | H10: kW | I10: =IF(G10="Yes",IF(O10,O10,C105*1000),0) -> 1283324.821 | J10: =IF(P10,P10,IF(AND(C46="Average",C47="Underground"),IF(C107<=80,IF(C106<=2,'Cost Curves L-PSH'!B11,IF(AND(C106>2,C106<=3),'Cost Curves L-PSH'!C11,IF(AND(C106>3,C106<=4),'Cost Curves L-PSH'!D11,IF(C106>4,'Cost Curves L-PSH'!E11)))),IF(AND(C107>80,C107<=125),IF(C106<=2,'Cost Curves L-PSH'!B53,IF(AND(C106>2,C106<=3),'Cost Curves L-PSH'!C53,IF(AND(C106>3,C106<=4),'Cost Curves L-PSH'!D53,IF(C106>4,'Cost Curves L-PSH'!E53)))),IF(AND(C107>125,C107<=225),IF(C106<=2,'Cost Curves L-PSH'!L53,IF(AND(C106>2,C106<=3),'Cost Curves L-PSH'!M53,IF(AND(C106>3,C106<=4),'Cost Curves L-PSH'!N53,IF(C106>4,'Cost Curves L-PSH'!O53)))),IF(C107>225,IF(C106<=2,'Cost Curves L-PSH'!L11,IF(AND(C106>2,C106<=3),'Cost Curves L-PSH'!M11,IF(AND(C106>3,C106<=4),'Cost Curves L-PSH'!N11,IF(C106>4,'Cost Curves L-PSH'!O11)))))))),IF(AND(C46="Adverse",C47="Underground"),IF(C107<=80,IF(C106<=2,'Cost Curves L-PSH'!F11,IF(AND(C106>2,C106<=3),'Cost Curves L-PSH'!G11,IF(AND(C106>3,C106<=4),'Cost Curves L-PSH'!H11,IF(C106>4,'Cost Curves L-PSH'!I11)))),IF(AND(C107>80,C107<=125),IF(C106<=2,'Cost Curves L-PSH'!F53,IF(AND(C106>2,C106<=3),'Cost Curves L-PSH'!G53,IF(AND(C106>3,C106<=4),'Cost Curves L-PSH'!H53,IF(C106>4,'Cost Curves L-PSH'!I53)))),IF(AND(C107>125,C107<=225),IF(C106<=2,'Cost Curves L-PSH'!P53,IF(AND(C106>2,C106<=3),'Cost Curves L-PSH'!Q53,IF(AND(C106>3,C106<=4),'Cost Curves L-PSH'!R53,IF(C106>4,'Cost Curves L-PSH'!S53)))),IF(C107>225,IF(C106<=2,'Cost Curves L-PSH'!P11,IF(AND(C106>2,C106<=3),'Cost Curves L-PSH'!Q11,IF(AND(C106>3,C106<=4),'Cost Curves L-PSH'!R11,IF(C106>4,'Cost Curves L-PSH'!S11)))))))),IF(AND(C46="Average",C47="Surface"),IF(C107<=80,IF(C106<=2,'Cost Curves L-PSH'!V11,IF(AND(C106>2,C106<=3),'Cost Curves L-PSH'!W11,IF(AND(C106>3,C106<=4),'Cost Curves L-PSH'!X11,IF(C106>4,'Cost Curves L-PSH'!Y11)))),IF(AND(C107>80,C107<=125),IF(C106<=2,'Cost Curves L-PSH'!V53,IF(AND(C106>2,C106<=3),'Cost Curves L-PSH'!W53,IF(AND(C106>3,C106<=4),'Cost Curves L-PSH'!X53,IF(C106>4,'Cost Curves L-PSH'!Y53)))),IF(AND(C107>125,C107<=225),IF(C106<=2,'Cost Curves L-PSH'!AF53,IF(AND(C106>2,C106<=3),'Cost Curves L-PSH'!AG53,IF(AND(C106>3,C106<=4),'Cost Curves L-PSH'!AH53,IF(C106>4,'Cost Curves L-PSH'!AI53)))),IF(C107>225,IF(C106<=2,'Cost Curves L-PSH'!AF11,IF(AND(C106>2,C106<=3),'Cost Curves L-PSH'!AG11,IF(AND(C106>3,C106<=4),'Cost Curves L-PSH'!AH11,IF(C106>4,'Cost Curves L-PSH'!AI11)))))))),IF(AND(C46="Adverse",C47="Surface"),IF(C107<=80,IF(C106<=2,'Cost Curves L-PSH'!Z11,IF(AND(C106>2,C106<=3),'Cost Curves L-PSH'!AA11,IF(AND(C106>3,C106<=4),'Cost Curves L-PSH'!AB11,IF(C106>4,'Cost Curves L-PSH'!AC11)))),IF(AND(C107>80,C107<=125),IF(C106<=2,'Cost Curves L-PSH'!Z53,IF(AND(C106>2,C106<=3),'Cost Curves L-PSH'!AA53,IF(AND(C106>3,C106<=4),'Cost Curves L-PSH'!AB53,IF(C106>4,'Cost Curves L-PSH'!AC53)))),IF(AND(C107>125,C107<=225),IF(C106<=2,'Cost Curves L-PSH'!AJ53,IF(AND(C106>2,C106<=3),'Cost Curves L-PSH'!AK53,IF(AND(C106>3,C106<=4),'Cost Curves L-PSH'!AL53,IF(C106>4,'Cost Curves L-PSH'!AM53)))),IF(C107>225,IF(C106<=2,'Cost Curves L-PSH'!AJ11,IF(AND(C106>2,C106<=3),'Cost Curves L-PSH'!AK11,IF(AND(C106>3,C106<=4),'Cost Curves L-PSH'!AL11,IF(C106>4,'Cost Curves L-PSH'!AM11))))))))))))) -> 39.05977874 | K10: =VLOOKUP(C9,'Locational Adj Factors'!$A$3:$B$55,2,FALSE)/100 -> 1 | L10: =IF(C51="Yes",'Market Adj Factors'!C45,1) -> 2.406321426 | M10: ='Market Adj Factors'!C30 -> 1.3 | N10: =IF(P10,P10,J10*K10*L10*M10) -> 122.1874972 | O10: 0 | P10: 0 | Q10: =N10*I10 -> 156806247.9 | R10: =Q10/$Q$52 -> 0.06643296248 | S10: =R10 -> 0.06643296248
B11: Upper Reservoir Area | C11: 191 | D11: acres
B12: Avg. Max Lower Reservoir Depth | C12: 120 | D12: feet | F12: Reservoirs, Dams, and Waterways
B13: Lower Reservoir Area | C13: 163 | D13: acres | F13: Upper Reservoir Dam and Spillway | G13: Yes | H13: CY | I13: =IF(G13="Yes",IF(O13,O13,C83),0) -> 2385110 | J13: ='Cost Curves L-PSH'!J95 -> 7.916642136 | K13: =VLOOKUP(C9,'Locational Adj Factors'!$A$3:$B$55,2,FALSE)/100 -> 1 | L13: ='Market Adj Factors'!C45 -> 2.406321426 | M13: ='Market Adj Factors'!C31 -> 1.4 | N13: =IF(P13,P13,J13*K13*L13*M13) -> 26.66997983 | O13: 0 | P13: 0 | Q13: =N13*I13 -> 63610835.6 | R13: =Q13/$Q$52 -> 0.02694954002 | S13: =SUM(R13:R17) -> 0.09087282226
B14: Nominal (Max) Head | C14: 1560 | D14: feet | F14: Upper Reservoir Intake/Outlet | G14: Yes | H14: # | I14: =IF(G14="Yes",IF(O14,O14,C93),0) -> 1 | J14: =IF(C44="Horizontal",'Cost Curves L-PSH'!P88,IF('Cost Model L-PSH'!C44="Vertical",'Cost Curves L-PSH'!P91))*1000000 -> 1483192.608 | K14: =VLOOKUP(C9,'Locational Adj Factors'!$A$3:$B$55,2,FALSE)/100 -> 1 | L14: =IF(C51="Yes",'Market Adj Factors'!C45,1) -> 2.406321426 | M14: ='Market Adj Factors'!C32 -> 2 | N14: =IF(P14,P14,J14*K14*L14*M14) -> 7138076.301 | O14: 0 | P14: 0 | Q14: =N14*I14 -> 7138076.301 | R14: =Q14/$Q$52 -> 0.003024136865
B15: Total Conveyance Length (vert+horiz) | C15: 14394 | D15: feet | F15: Surge Facilities | G15: Yes | H15: LS | I15: =IF(G15="Yes",IF(O15,O15,IF(C96="Yes",40%,0%)),0) -> 0.4 | J15: NA | N15: NA | O15: 0 | P15: NA | Q15: =I15*SUM(Q20:Q25) -> 103101433.6 | R15: =Q15/$Q$52 -> 0.0436802344
B16: Avg. Upper Dam Height | C16: 120 | D16: ft | F16: Lower Reservoir Intake/Outlet | G16: Yes | H16: # | I16: =IF(G16="Yes",IF(C47="Underground",IF(O16,O16,C93),0)) -> 1 | J16: =IF(C45="Horizontal",'Cost Curves L-PSH'!P88,IF('Cost Model L-PSH'!C45="Vertical",'Cost Curves L-PSH'!P91))*1000000 -> 6772919.078 | K16: =VLOOKUP(C9,'Locational Adj Factors'!$A$3:$B$55,2,FALSE)/100 -> 1 | L16: =IF(C51="Yes",'Market Adj Factors'!C45,1) -> 2.406321426 | M16: ='Market Adj Factors'!C33 -> 1.3 | N16: =IF(P16,P16,J16*K16*L16*M16) -> 21187166.38 | O16: 0 | P16: 0 | Q16: =N16*I16 -> 21187166.38 | R16: =Q16/$Q$52 -> 0.008976212668
B17: Upper Dam Crest Length | C17: 1300 | D17: ft | F17: Lower Reservoir Dam and Spillway | G17: Yes | H17: CY | I17: =IF(G17="Yes",IF(O17,O17,C84),0) -> 691570 | J17: ='Cost Curves L-PSH'!J96 -> 8.350862416 | K17: =VLOOKUP(C9,'Locational Adj Factors'!$A$3:$B$55,2,FALSE)/100 -> 1 | L17: =IF(C51="Yes",'Market Adj Factors'!C45,1) -> 2.406321426 | M17: ='Market Adj Factors'!C31 -> 1.4 | N17: =IF(P17,P17,J17*K17*L17*M17) -> 28.13280282 | O17: 0 | P17: 0 | Q17: =N17*I17 -> 19455802.45 | R17: =Q17/$Q$52 -> 0.008242698303
B18: Avg. Lower Dam Height | C18: 60 | D18: ft
B19: Lower Dam Crest Length | C19: 1100 | D19: ft | F19: Water Conductors
B20: Acreage to be acquired | C20: 2185 | D20: acres | F20: Upper Low & High Pressure Tunnels | G20: Yes | H20: Ft | I20: =IF(G20="Yes",IF(O20,O20,(C15-C89-I22/C106-I23/C106)*0.5),0)*$C$93 -> 6268.25 | J20: =IF(C34="Average",IF(I20*C25<=0.5,'Cost Curves L-PSH'!V95,IF(AND(I20*C25>0.5,I20*C25<=1),'Cost Curves L-PSH'!W95,IF(AND(I20*C25>1,I20*C25<=2),'Cost Curves L-PSH'!X95,IF(I20*C25>2,'Cost Curves L-PSH'!Y95)))),IF(C34="Poor",IF(I20*C25<=0.5,'Cost Curves L-PSH'!Z95,IF(AND(I20*C25>0.5,I20*C25<=1),'Cost Curves L-PSH'!AA95,IF(AND(I20*C25>1,I20*C25<=2),'Cost Curves L-PSH'!AB95,IF(I20*C25>2,'Cost Curves L-PSH'!AC95)))))) -> 3667.287933 | K20: =VLOOKUP(C9,'Locational Adj Factors'!$A$3:$B$55,2,FALSE)/100 -> 1 | L20: =IF(C51="Yes",'Market Adj Factors'!C45,1) -> 2.406321426 | M20: ='Market Adj Factors'!C36 -> 1.6 | N20: =IF(P20,P20,J20*K20*L20*M20) -> 14119.47764 | P20: 0 | Q20: =N20*I20 -> 88504415.75 | R20: =Q20/$Q$52 -> 0.03749602205 | S20: =SUM(R20:R25) -> 0.109200586
B21: Generation Time | C21: 18.5 | D21: hours | F21: Vertical Shafts | G21: Yes | H21: Ft | I21: =IF(G21="Yes",IF(O21,O21,C89),0)*$C$93 -> 1326 | J21: ='Cost Curves L-PSH'!AI90 -> 4761.61309 | K21: =VLOOKUP(C9,'Locational Adj Factors'!$A$3:$B$55,2,FALSE)/100 -> 1 | L21: =IF(C51="Yes",'Market Adj Factors'!C45,1) -> 2.406321426 | M21: ='Market Adj Factors'!C35 -> 1.8 | N21: =IF(P21,P21,J21*K21*L21*M21) -> 20624.34888 | P21: 0 | Q21: 27347886.62 | R21: 0.0115862802
F22: Penstock Tunnels | G22: Yes | H22: Ft | I22: =IF(G22="Yes",IF(C48="Underground",IF(O22,O22,C89*0.25),0))*$C$106 -> 1326 | J22: =IF(C14<=500,'Cost Curves L-PSH'!B131,IF(AND(C14>500,C14<=1000),'Cost Curves L-PSH'!C131,IF(AND(C14>1000,C14<=1500),'Cost Curves L-PSH'!D131,IF(C14>1500,'Cost Curves L-PSH'!E131)))) -> 4825.815231 | K22: =VLOOKUP(C9,'Locational Adj Factors'!$A$3:$B$55,2,FALSE)/100 -> 1 | L22: =IF($C$51="Yes",'Market Adj Factors'!$C$45,1) -> 2.406321426 | M22: ='Market Adj Factors'!C37 -> 1.9 | N22: 22063.67892 | P22: 0 | Q22: 29256438.24 | R22: 0.01239486238
B23: Unit Conversion Factors and Constants | F23: Draft Tube Tunnels | G23: Yes | H23: Ft | I23: =IF(C47="Underground",IF(G23="Yes",IF(O23,O23,200),0),0)*$C$106 -> 800 | J23: =IF(C47="Underground",IF(C14-C88<=500,'Cost Curves L-PSH'!B132,IF(AND(C14-C88>500,C14-C88<=1000),'Cost Curves L-PSH'!C132,IF(AND(C14-C88>1000,C14-C88<=1500),'Cost Curves L-PSH'!D132,IF(C14-C88>1500,'Cost Curves L-PSH'!E132)))),0) -> 6600.057681 | K23: =VLOOKUP($C$9,'Locational Adj Factors'!$A$3:$B$55,2,FALSE)/100 -> 1 | L23: =IF($C$51="Yes",'Market Adj Factors'!$C$45,1) -> 2.406321426 | M23: ='Market Adj Factors'!C38 -> 1.9 | N23: 30175.5344 | P23: 0 | Q23: =N23*I23 -> 24140427.52 | R23: 0.01022739933
B24: Meter to Feet | C24: 3.28084 | D24: feet | F24: Tailrace Tunnels | G24: Yes | H24: Ft | I24: =IF(G24="Yes",IF(O24,O24,(C15-C89-I22/C106-I23/C106)*0.5),0)*$C$93 -> 6268.25 | J24: =IF(C34="Average",IF(I24*C25<=0.5,'Cost Curves L-PSH'!V95,IF(AND(I24*C25>0.5,I24*C25<=1),'Cost Curves L-PSH'!W95,IF(AND(I24*C25>1,I24*C25<=2),'Cost Curves L-PSH'!X95,IF(I24*C25>2,'Cost Curves L-PSH'!Y95)))),IF(C34="Poor",IF(I24*C25<=0.5,'Cost Curves L-PSH'!Z95,IF(AND(I24*C25>0.5,I24*C25<=1),'Cost Curves L-PSH'!AA95,IF(AND(I24*C25>1,I24*C25<=2),'Cost Curves L-PSH'!AB95,IF(I24*C25>2,'Cost Curves L-PSH'!AC95)))))) -> 3667.287933 | K24: =VLOOKUP($C$9,'Locational Adj Factors'!$A$3:$B$55,2,FALSE)/100 -> 1 | L24: =IF($C$51="Yes",'Market Adj Factors'!$C$45,1) -> 2.406321426 | M24: ='Market Adj Factors'!C36 -> 1.6 | N24: 14119.47764 | P24: 0 | Q24: 88504415.75 | R24: 0.03749602205
B25: Feet to Miles | C25: 0.000189394 | D25: miles | F25: Surface Penstock | G25: Yes | H25: Ft | I25: =IF(G25="Yes",IF(O25,O25,IF(C48="Surface",C106*C89*0.25,0)),0) -> 0 | J25: =IF(OR(C104<100, C48="Surface"),IF(C14<=300,'Cost Curves L-PSH'!L131,IF(AND(C14>300,C14<=500),'Cost Curves L-PSH'!M131,IF(AND(C14>500,C14<=700),'Cost Curves L-PSH'!N131,IF(AND(C14>700,C14<=1000),'Cost Curves L-PSH'!O131,IF(C14>1000,'Cost Curves L-PSH'!P131))))),0) -> 0 | K25: =VLOOKUP($C$9,'Locational Adj Factors'!$A$3:$B$55,2,FALSE)/100 -> 1 | L25: =IF($C$51="Yes",'Market Adj Factors'!$C$45,1) -> 2.406321426 | M25: ='Market Adj Factors'!C34 -> 1.3 | N25: 0 | O25: 0 | P25: 0 | Q25: 0 | R25: 0
B26: Ac. Ft to Cu. Ft | C26: 43559.9 | D26: cu.ft
B27: Cu. Ft to Cu. Yd | C27: 1613.33 | D27: CY | F27: Powerstation Equipment
B28: Hr to Sec | C28: 3600 | D28: s | F28: Pump/Motors | G28: Yes | H28: LS | I28: =IF(G28="Yes",1,0) -> 1 | J28: =IF(C104>100,0,'Cost Curves L-PSH'!D365) -> 0 | K28: =VLOOKUP($C$9,'Locational Adj Factors'!$A$3:$B$55,2,FALSE)/100 -> 1 | L28: 1 | M28: 1 | N28: =IF(P28,P28,J28*K28*L28*M28) -> 0 | O28: 0 | P28: 0 | Q28: =N28*I28 -> 0 | R28: =Q28/$Q$52 -> 0 | S28: =IF(AND(R28=0%,R29=0%),R30,IF(R30=0%,SUM(R28:R29))) -> 0.2295626434
B29: MW to W | C29: 1000000 | D29: W | F29: Generator/Turbines | G29: Yes | H29: kW | I29: =IF(G29="Yes",IF(C104<=100,IF(O29,O29,I10),0),0) -> 0 | J29: =IF(C104>100,0,IF(C104<=100,'Cost Curves L-PSH'!E374,'Cost Curves L-PSH'!E378)) -> 0 | K29: =VLOOKUP($C$9,'Locational Adj Factors'!$A$3:$B$55,2,FALSE)/100 -> 1 | L29: 1 | M29: 1 | N29: 0 | O29: 0 | P29: 0 | Q29: =N29*I29 -> 0 | R29: =Q29/$Q$52 -> 0
B30: acceleration of gravity (metric) | C30: 9.81 | D30: m/s^2 | F30: Total Powerstation | G30: Yes | H30: kW | I30: =IF(G30="Yes",IF(C104>100,IF(O30,O30,C105*1000),0),0) -> 1283324.821 | J30: =IF(C104<=100,0,IF(C47="Underground", IF(C107<=80,IF(C106<=2,'Cost Curves L-PSH'!B171,IF(AND(C106>2,C106<=3),'Cost Curves L-PSH'!C171,IF(AND(C106>3,C106<=4),'Cost Curves L-PSH'!D171,IF(C106>4,'Cost Curves L-PSH'!E171)))),IF(AND(C107>80,C107<=125),IF(C106<=2,'Cost Curves L-PSH'!L171,IF(AND(C106>2,C106<=3),'Cost Curves L-PSH'!M171,IF(AND(C106>3,C106<=4),'Cost Curves L-PSH'!N171,IF(C106>4,'Cost Curves L-PSH'!O171)))),IF(AND(C107>125,C107<=225),IF(C106<=2,'Cost Curves L-PSH'!V171,IF(AND(C106>2,C106<=3),'Cost Curves L-PSH'!W171,IF(AND(C106>3,C106<=4),'Cost Curves L-PSH'!X171,IF(C106>4,'Cost Curves L-PSH'!Y171)))),IF(C107>225,IF(C106<=2,'Cost Curves L-PSH'!AF171,IF(AND(C106>2,C106<=3),'Cost Curves L-PSH'!AG171,IF(AND(C106>3,C106<=4),'Cost Curves L-PSH'!AH171,IF(C106>4,'Cost Curves L-PSH'!AI171)))))))),IF(C47="Surface", IF(C107<=80,IF(C106<=2,'Cost Curves L-PSH'!B213,IF(AND(C106>2,C106<=3),'Cost Curves L-PSH'!C213,IF(AND(C106>3,C106<=4),'Cost Curves L-PSH'!D213,IF(C106>4,'Cost Curves L-PSH'!E213)))),IF(AND(C107>80,C107<=125),IF(C106<=2,'Cost Curves L-PSH'!L213,IF(AND(C106>2,C106<=3),'Cost Curves L-PSH'!M213,IF(AND(C106>3,C106<=4),'Cost Curves L-PSH'!N213,IF(C106>4,'Cost Curves L-PSH'!O213)))),IF(AND(C107>125,C107<=225),IF(C106<=2,'Cost Curves L-PSH'!V213,IF(AND(C106>2,C106<=3),'Cost Curves L-PSH'!W213,IF(AND(C106>3,C106<=4),'Cost Curves L-PSH'!X213,IF(C106>4,'Cost Curves L-PSH'!Y213)))),IF(C107>225,IF(C106<=2,'Cost Curves L-PSH'!AF213,IF(AND(C106>2,C106<=3),'Cost Curves L-PSH'!AG213,IF(AND(C106>3,C106<=4),'Cost Curves L-PSH'!AH213,IF(C106>4,'Cost Curves L-PSH'!AI213))))))))))) -> 103.21476 | K30: =VLOOKUP($C$9,'Locational Adj Factors'!$A$3:$B$55,2,FALSE)/100 -> 1 | L30: =IF($C$51="Yes",'Market Adj Factors'!$C$45,1) -> 2.406321426 | M30: ='Market Adj Factors'!C41 -> 1.7 | N30: =IF(P30,P30,J30*K30*L30*M30) -> 422.2254104 | O30: 0 | P30: 0 | Q30: =N30*I30 -> 541852349.1 | R30: =Q30/$Q$52 -> 0.2295626434
B31: density of water (metric) | C31: 1000 | D31: kg/m^2
F32: Roads, Railroads, Bridges, and Access
B33: Condition Related | F33: Access Roads | G33: Yes | H33: Miles | I33: =IF(G33="Yes",IF(O33,O33,C38),0) -> 3.61 | J33: =INDEX('Cost Curves L-PSH'!W241:X243,MATCH('Cost Model L-PSH'!C35,'Cost Curves L-PSH'!V241:V243,0),MATCH('Cost Model L-PSH'!C36,'Cost Curves L-PSH'!W240:X240,0)) -> 189000 | K33: =VLOOKUP($C$9,'Locational Adj Factors'!$A$3:$B$55,2,FALSE)/100 -> 1 | L33: =IF($C$51="Yes",'Market Adj Factors'!$C$45,1) -> 2.406321426 | M33: ='Market Adj Factors'!C40 -> 1 | N33: =IF(P33,P33,J33*K33*L33*M33) -> 454794.7495 | O33: 0 | P33: 0 | Q33: =N33*I33 -> 1641809.046 | R33: =Q33/$Q$52 -> 0.0006955732961 | S33: =SUM(R33:R35) -> 0.01806627677
B34: Tunneling Condition | C34: Average | D34: # | F34: Access Tunnels | G34: Yes | H34: Ft | I34: =IF(G34="Yes",IF(C47="Surface",0,IF(O34,O34,C39*5280)),0) -> 6600 | J34: =IF(C47="Surface",0,'Cost Curves L-PSH'!D242) -> 2555.818837 | K34: =VLOOKUP($C$9,'Locational Adj Factors'!$A$3:$B$55,2,FALSE)/100 -> 1 | L34: =IF($C$51="Yes",'Market Adj Factors'!$C$45,1) -> 2.406321426 | M34: ='Market Adj Factors'!C39 -> 1 | N34: =IF(P34,P34,J34*K34*L34*M34) -> 6150.12163 | O34: 0 | P34: 0 | Q34: =N34*I34 -> 40590802.76 | R34: =Q34/$Q$52 -> 0.01719681015
B35: Access Road, Terrain | C35: Flat | D35: # | F35: Highway Realignment | G35: Yes | H35: % | I35: =IF(G35="Yes",IF(C37="Yes",25%,0%),0) -> 0.25 | O35: 0 | P35: NA | Q35: =Q33*I35 -> 410452.2614 | R35: =Q35/$Q$52 -> 0.000173893324
B36: Access Road, Type | C36: New | D36: #
B37: Highway Realignment | C37: Yes | D37: # | F37: Switchyard | G37: Yes | H37: LS | I37: =IF(G37="Yes",1,0) -> 1 | J37: ='Cost Curves L-PSH'!Q248*1000000 -> 16726800 | K37: =VLOOKUP($C$9,'Locational Adj Factors'!$A$3:$B$55,2,FALSE)/100 -> 1 | L37: =IF($C$51="Yes",'Market Adj Factors'!$C$45,1) -> 2.406321426 | M37: ='Market Adj Factors'!C43 -> 1 | N37: =IF(P37,P37,J37*K37*L37*M37) -> 40250057.23 | O37: 0 | P37: 0 | Q37: =N37*I37 -> 40250057.23 | R37: =Q37/$Q$52 -> 0.01705244897 | S37: =R37 -> 0.01705244897
B38: Access Road | C38: 3.61 | D38: miles
B39: Access Tunnel, Length | C39: 1.25 | D39: miles | F39: Transmission Lines | G39: Yes | H39: Miles | I39: =IF(G39="Yes",C61,0) -> 13.5 | J39: ='Cost Curves L-PSH'!G303*1000*C117*C118 -> 1150309.089 | K39: =VLOOKUP($C$9,'Locational Adj Factors'!$A$3:$B$55,2,FALSE)/100 -> 1 | L39: =IF($C$51="Yes",'Market Adj Factors'!$C$45,1) -> 2.406321426 | M39: ='Market Adj Factors'!C42 -> 1.3 | N39: =IF(P39,P39,J39*K39*L39*M39) -> 3598417.429 | O39: 0 | P39: 0 | Q39: =N39*I39 -> 48578635.3 | R39: =Q39/$Q$52 -> 0.02058095706 | S39: =R39 -> 0.02058095706
B40: Water Supply = | C40: No | D40: #
B41: Water Supply Cost = | C41: 200 | D41: $/kW | F41: Others
F42: Water Supply | G42: Yes | H42: kW | I42: =IF(G42="Yes",IF(C40="Yes",C105*1000,0),0) -> 0 | J42: =C41 -> 200 | K42: =VLOOKUP($C$9,'Locational Adj Factors'!$A$3:$B$55,2,FALSE)/100 -> 1 | L42: 1 | M42: 1 | N42: =IF(P42,P42,J42*K42*L42*M42) -> 200 | O42: 0 | P42: 0 | Q42: =N42*I42 -> 0 | R42: =Q42/$Q$52 -> 0 | S42: =SUM(R42:R43) -> 0
B43: Technology Related
B44: U. Reservoir Intake/Outlet | C44: Vertical | D44: # | F44: Indirect Costs
B45: L. Reservoir Intake/Outlet | C45: Horizontal | D45: # | F45: Mobilization/Demobilization | G45: Yes | H45: % | I45: =IF(G45="Yes",IF(O45,O45,C52),0) -> 0.05 | O45: 0 | P45: NA | Q45: =I45*SUM(Q8:Q42) -> 65932070.89 | R45: =Q45/$Q$52 -> 0.02793296089 | S45: =SUM(R45:R50) -> 0.4413407821
B46: Power Station Structure Geology | C46: Adverse | D46: # | F46: Sales Tax | G46: Yes | H46: % | I46: =IF(G46="Yes",IF(O46,O46,C54),0) -> 0.06 | O46: 0 | P46: NA | Q46: =I46*C53*SUM(Q8:Q42) -> 79118485.07 | R46: 0.03351955307
B47: Power Station | C47: Underground | D47: # | F47: Contingency | G47: Yes | H47: % | I47: =IF(G47="Yes",IF(O47,O47,C55),0) -> 0.33 | O47: 0 | P47: NA | Q47: =SUM(Q8:Q42)*I47 -> 435151667.9 | R47: 0.1843575419
B48: Penstock | C48: Underground | D48: # | F48: EPC Cost | G48: Yes | H48: % | I48: =IF(G48="Yes",IF(O48,O48,C56),0) -> 0.25 | O48: 0 | P48: NA | Q48: =I48*C53*SUM(Q8:Q42) -> 329660354.5 | R48: 0.1396648045
F49: Developer Cost | G49: Yes | H49: % | I49: =IF(G49="Yes",IF(O49,O49,C57),0) -> 0.03 | O49: 0 | P49: NA | Q49: =SUM(Q8:Q42)*I49 -> 39559242.54 | R49: 0.01675977654
B50: Project Related | F50: Overhead & Profit | G50: Yes | H50: % | I50: =IF(G50="Yes",IF(O50,O50,C58),0) -> 0.07 | O50: 0 | P50: NA | Q50: =SUM(Q8:Q42)*I50*C53 -> 92304899.25 | R50: 0.03910614525
B51: Inflation Factor | C51: Yes | D51: #
B52: Mobilization/Demobilization = | C52: 0.05 | D52: % | F52: Total Direct and Indirect Cost | Q52: =SUM(Q8:Q50) -> 2360368138 | R52: =SUM(R8:R50) -> 1 | S52: =SUM(S8:S50) -> 1
B53: Material/Equipment % = | C53: 1 | D53: %
B54: Sales Tax = | C54: 0.06 | D54: % | F54: System Cost
B55: Contingency = | C55: 0.33 | D55: % | F55: Total Direct and Indirect Cost $ | G55: =Q52 -> 2360368138
B56: EPC Cost = | C56: 0.25 | D56: % | F56: $/kW (Max. Power Capacity) | G56: =G55/(C105*1000) -> 1839.2601
B57: Developer Cost = | C57: 0.03 | D57: % | F57: $/kWh (Max. Energy Capacity) | G57: =G55/(C105*C21*1000) -> 99.41946486
B58: Overhead & Profit = | C58: 0.07 | D58: %
B60: Transmission Related
B61: Transmission Distance = | C61: 13.5 | D61: miles
B62: Transmission = | C62: 500 | D62: kV
B63: Substation = | C63: 500 | D63: kV
B64: Transmission Terrain = | C64: Mountain | D64: #
B65: Transmission Type (# circuits) = | C65: Double | D65: #
B67: Project Related
B68: Active Storage = | C68: 0.85 | D68: x Gross Storage
B69: Hmin/Hmax = | C69: 0.7 | D69: #
B70: Hazen Williams C = | C70: 90 | D70: #
B71: P-T Efficiency = | C71: 0.88 | D71: %
B72: Max Tunnel Velocity = | C72: 23 | D72: fps
B73: Max Tunnel Dia = | C73: 35 | D73: feet
B74: Max Unit Capacity = | C74: 350 | D74: MW
B75: Min No. Units = | C75: 2 | D75: #
B76: Pump Time = | C76: =12/10 -> 1.2 | D76: x gen time
B78: Output Specifications
B79: Project Related
B80: Conveyance Length | C80: =C15*C25 -> 2.726137236 | D80: miles
B81: Avg. Upper Reservoir Volume = | C81: =C11*C10 -> 19291 | D81: ac-ft
B82: Avg. Lower Reservoir Volume = | C82: =C13*C12 -> 19560 | D82: ac-ft
B83: Total Upper Dam Volume = | C83: =(0.00009*(C16)^2 + 0.0039*C16 + 0.0707)*1000*C17 -> 2385110 | D83: CY
B84: Total Lower Dam Volume = | C84: =(0.00009*(C18)^2 + 0.0039*C18 + 0.0707)*1000*C19 -> 691570 | D84: CY
B85: Active Storage = | C85: =C68*C81 -> 16397.35 | D85: ac-ft
B86: Energy Storage = | C86: =C104*C21 -> 18593.07142 | D86: MWh
B87: Mean Gen Discharge = | C87: =C85*C26/C21/C28 -> 10724.72862 | D87: cfs
B88: Min Gross Head = | C88: =C69*C14 -> 1092 | D88: feet
B89: Mean Gross Head = | C89: =(C88+C14)/2 -> 1326 | D89: feet
B90: Min Gen Discharge = | C90: =(C88/C$89)^0.5*C$87 -> 9732.532638 | D90: cfs
B91: Max Gen Discharge = | C91: =(C14/C$89)^0.5*C$87 -> 11632.60145 | D91: cfs
B92: Nominal Tunnel Dia = | C92: =((C91/C72)*4/PI())^0.5 -> 25.37637396 | D92: feet
B93: No. Tunnels = | C93: =IF(C92<C73,1,2) -> 1 | D93: #
B94: Adjusted Tunnel Dia = | C94: =((C91/C93/C72)*4/PI())^0.5 -> 25.37637396 | D94: feet
B95: L/H = | C95: =C15/C89 -> 10.85520362 | D95: #
B96: Surge Chambers | C96: =IF(C95>=7,"Yes","No") -> Yes | D96: #
B97: Min Gen Headloss = | C97: =4.73*C90^1.85/C$70^1.85/C$94^4.87*C$15 -> 57.06106444 | D97: feet
B98: Mean Gen Headloss = | C98: =4.73*C87^1.85/C$70^1.85/C$94^4.87*C$15 -> 68.28678845 | D98: feet
B99: Max Gen Headloss = | C99: =4.73*C91^1.85/C$70^1.85/C$94^4.87*C$15 -> 79.36411576 | D99: feet
B100: Net Head @ Min Gen Discharge = | C100: =C88-C97 -> 1034.938936 | D100: feet
B101: Net Head @ Mean Gen Discharge = | C101: =C89-C98 -> 1257.713212 | D101: feet
B102: Net Head @ Max Gen Discharge = | C102: =C$14-C99 -> 1480.635884 | D102: feet
B103: Min Plant Gen Power (Firm Capacity) = | C103: =C90*C100*C$71*$C$30*$C$31/$C$29*(1/C24)^4 -> 750.5023722 | D103: MW
B104: Mean Plant Gen Power = | C104: =C87*C101*C$71*$C$30*$C$31/$C$29*(1/C24)^4 -> 1005.030888 | D104: MW
B105: Max Plant Gen Power = | C105: =C91*C102*C$71*$C$30*$C$31/$C$29*(1/C24)^4 -> 1283.324821 | D105: MW
B106: No. Units = | C106: =IF(C105/C74<=C75,C75,ROUNDUP(C105/C74,0)) -> 4 | D106: #
B107: Unit Rating = | C107: =C105/C106 -> 320.8312052 | D107: MW
B108: Max Penstock Velocity = | C108: ='Cost Curves L-PSH'!V130 -> 28.056 | D108: fps
B109: Max Draft Tube Tunnel Velocity = | C109: ='Cost Curves L-PSH'!AA130 -> 9.6688 | D109: fps
B110: Penstock Dia = | C110: =((C91/(C108*C106))*4/PI())^0.5 -> 11.4881636 | D110: feet
B111: Draft Tube Tunnel Dia = | C111: =((C91/(C109*C106))*4/PI())^0.5 -> 19.569386 | D111: feet
B112: Pump Time = | C112: =C76*C21 -> 22.2 | D112: hrs
B113: Mean Pump Discharge = | C113: =C85*C26/C112/3600 -> 8937.273852 | D113: cfs
B114: Mean Pump Headloss = | C114: =4.73*C113^1.85/C70^1.85/C94^4.87*C15 -> 48.73616848 | D114: feet
B115: Mean Pump Net Head = | C115: =C89+C114 -> 1374.736168 | D115: feet
B116: Mean Pump Power = | C116: =C113*C115*C71*$C$30*$C$31/$C$29*(1/C24)^4 -> 915.4526771 | D116: MW
B117: Tranmission Terrain Multiplier = | C117: =VLOOKUP(C64,'Cost Curves L-PSH'!H276:I284,2,FALSE) -> 1.75 | D117: #
B118: Tranmission Type Multiplier = | C118: =IF(C65="Double",'Cost Curves L-PSH'!I287,1) -> 1.600469629 | D118: #

Sheet Cost Curves L-PSH
B1: Underground Powestation Structure Cost 80MW units | L1: Underground Powestation Structure Cost 350MW units | V1: Surface Powestation Structure Cost 80MW units | AF1: Surface Powestation Structure Cost 350MW units
B2: $/kW Average Conditions | F2: $/kW Adverse Conditions | L2: $/kW Average Conditions | P2: $/kW Adverse Conditions | V2: $/kW Average Conditions | Z2: $/kW Adverse Conditions | AF2: $/kW Average Conditions | AJ2: $/kW Adverse Conditions
A3: Average Head, Ft | B3: 2 Units | C3: 3 Units | D3: 4 Units | E3: 6 Units | F3: 2 Units | G3: 3 Units | H3: 4 Units | I3: 6 Units | K3: Average Head, Ft | L3: 2 Units | M3: 3 Units | N3: 4 Units | O3: 6 Units | P3: 2 Units | Q3: 3 Units | R3: 4 Units | S3: 6 Units | U3: Average Head, Ft | V3: 2 Units | W3: 3 Units | X3: 4 Units | Y3: 6 Units | Z3: 2 Units | AA3: 3 Units | AB3: 4 Units | AC3: 6 Units | AE3: Average Head, Ft | AF3: 2 Units | AG3: 3 Units | AH3: 4 Units | AI3: 6 Units | AJ3: 2 Units | AK3: 3 Units | AL3: 4 Units | AM3: 6 Units
A4: 350 | B4: 135 | C4: 116 | D4: 104 | E4: 92 | F4: 174 | G4: 145 | H4: 132 | I4: 118 | K4: 500 | L4: 78 | M4: 70 | N4: 62 | O4: 58 | P4: 98 | Q4: 84 | R4: 78 | S4: 70 | U4: 350 | V4: 84 | W4: 77 | X4: 72.5 | Y4: 67 | Z4: 112 | AA4: 95 | AB4: 87 | AC4: 78 | AE4: 350 | AF4: 38 | AG4: 35 | AH4: 32 | AI4: 30 | AJ4: 58 | AK4: 48.5 | AL4: 45 | AM4: 39
A5: 500 | B5: 113 | C5: 96 | D5: 86 | E5: 78 | F5: 150 | G5: 124 | H5: 113.5 | I5: 102 | K5: 1000 | L5: 48 | M5: 42 | N5: 37 | O5: 33 | P5: 62 | Q5: 52 | R5: 46 | S5: 42.25 | U5: 500 | V5: 84 | W5: 77.25 | X5: 74 | Y5: 68 | Z5: 113.5 | AA5: 96 | AB5: 89 | AC5: 79.5 | AE5: 500 | AF5: 36 | AG5: 34 | AH5: 30 | AI5: 28 | AJ5: 54 | AK5: 45 | AL5: 42 | AM5: 37
A6: 1000 | B6: 91 | C6: 76 | D6: 68 | E6: 60 | F6: 116 | G6: 98 | H6: 86 | I6: 76.5 | K6: 1500 | L6: 40.5 | M6: 34 | N6: 30 | O6: 26 | P6: 53 | Q6: 43 | R6: 39 | S6: 34.5 | U6: 1000 | V6: 87 | W6: 80 | X6: 76 | Y6: 74 | Z6: 118 | AA6: 102 | AB6: 93 | AC6: 85 | AE6: 1000 | AF6: 31 | AG6: 28 | AH6: 26 | AI6: 25 | AJ6: 45 | AK6: 40 | AL6: 37 | AM6: 34
A7: 1500 | B7: 81 | C7: 69 | D7: 59.5 | E7: 54 | F7: 103 | G7: 88 | H7: 77 | I7: 68.5 | K7: 2000 | L7: 36 | M7: 31 | N7: 26 | O7: 24 | P7: 45 | Q7: 39 | R7: 34.5 | S7: 26 | U7: 1500 | V7: 92.5 | W7: 86 | X7: 84 | Y7: 80 | Z7: 125 | AA7: 108 | AB7: 100 | AC7: 91.5 | AE7: 1500 | AF7: 30 | AG7: 27 | AH7: 26 | AI7: 25.25 | AJ7: 44.5 | AK7: 39 | AL7: 36 | AM7: 32
A8: 2000 | B8: 78 | C8: 63 | D8: 58 | E8: 50 | F8: 98 | G8: 82 | H8: 72 | I8: 62.5 | K8: 2250 | L8: 35 | M8: 30 | N8: 25 | O8: 23 | P8: 44 | Q8: 38 | R8: 33.5 | S8: 25 | U8: 2000 | V8: 102 | W8: 95 | X8: 92 | Y8: 87 | Z8: 134 | AA8: 116 | AB8: 106 | AC8: 98 | AE8: 2000 | AF8: 32 | AG8: 30 | AH8: 29 | AI8: 26 | AJ8: 46 | AK8: 41 | AL8: 38 | AM8: 34
A9: 2250 | B9: 77 | C9: 62 | D9: 57 | E9: 49 | F9: 97 | G9: 81 | H9: 71 | I9: 62 | U9: 2250 | V9: 105.5 | W9: 98 | X9: 95 | Y9: 90 | Z9: 137 | AA9: 119 | AB9: 109.5 | AC9: 100 | AE9: 2250 | AF9: 33 | AG9: 31 | AH9: 30 | AI9: 28 | AJ9: 48 | AK9: 42 | AL9: 39.5 | AM9: 35
B10: y = 740.12x-0.298 | C10: y = 760.42x-0.328 | D10: y = 645.72x-0.32 | E10: y = 640.28x-0.337 | F10: y = 1096.7x-0.319 | G10: y = 878.1x-0.313 | H10: y = 926.99x-0.337 | I10: y = 911.22x-0.352 | L10: y = 2032.8x-0.532 | M10: y = 2231.2x-0.565 | N10: y = 2553x-0.604 | O10: y = 2504.2x-0.615 | P10: y = 2613x-0.533 | Q10: y = 2154.7x-0.53 | R10: y = 2380.6x-0.559 | S10: y = 4996.8x-0.687 | V10: y = 5E-06x2 - 0.0009x + 83.095 | W10: y = 4E-06x2 + 0.0004x + 75.715 | X10: y = 4E-06x2 + 0.0021x + 71.437 | Y10: y = 6E-07x2 + 0.0109x + 62.383 | Z10: y = 3E-06x2 + 0.0062x + 109.48 | AA10: y = 1E-06x2 + 0.0099x + 90.767 | AB10: y = 2E-06x2 + 0.0073x + 84.676 | AC10: y = -1E-07x2 + 0.0123x + 73.167 | AF10: y = 6E-06x2 - 0.0183x + 43.547 | AG10: y = 7E-06x2 - 0.0198x + 41.489 | AH10: y = 6E-06x2 - 0.0162x + 36.672 | AI10: y = 5E-06x2 - 0.0128x + 33.573 | AJ10: y = 1E-05x2 - 0.0308x + 67.023 | AK10: y = 7E-06x2 - 0.0207x + 54.238 | AL10: y = 7E-06x2 - 0.0205x + 50.886 | AM10: y = 5E-06x2 - 0.0146x + 43.361
A11: Est. $/kW | B11: =740.12*('Cost Model L-PSH'!C14)^-0.298 -> 82.74676231 | C11: =760.42*('Cost Model L-PSH'!C14)^-0.328 -> 68.18811149 | D11: =645.72*('Cost Model L-PSH'!C14)^-0.32 -> 61.41074508 | E11: =640.28*('Cost Model L-PSH'!C14)^-0.337 -> 53.73867407 | F11: =1096.7*('Cost Model L-PSH'!C14)^-0.319 -> 105.070572 | G11: =878.1*('Cost Model L-PSH'!C14)^-0.313 -> 87.92167998 | H11: =926.99*('Cost Model L-PSH'!C14)^-0.337 -> 77.80223259 | I11: =911.22*('Cost Model L-PSH'!C14)^-0.352 -> 68.49255777 | K11: Est. $/kW | L11: =2032.8*('Cost Model L-PSH'!C14)^-0.532 -> 40.67732316 | M11: =2231.2*('Cost Model L-PSH'!C14)^-0.565 -> 35.02862606 | N11: =2553*('Cost Model L-PSH'!C14)^-0.604 -> 30.08870923 | O11: =2504.2*('Cost Model L-PSH'!C14)^-0.615 -> 27.22058054 | P11: =2613*('Cost Model L-PSH'!C14)^-0.533 -> 51.90437893 | Q11: =2154.7*('Cost Model L-PSH'!C14)^-0.53 -> 43.75531095 | R11: =2380.6*('Cost Model L-PSH'!C14)^-0.559 -> 39.05977874 | S11: =4996.8*('Cost Model L-PSH'!C14)^-0.687 -> 31.99008307 | U11: Est. $/kW | V11: =0.000005*('Cost Model L-PSH'!C14)^2 - 0.0009*('Cost Model L-PSH'!C14) + 83.095 -> 93.859 | W11: =0.000004*('Cost Model L-PSH'!C14)^2 + 0.0004*('Cost Model L-PSH'!C14) + 75.715 -> 86.0734 | X11: =0.000004*('Cost Model L-PSH'!C14)^2 + 0.0021*('Cost Model L-PSH'!C14) + 71.437 -> 84.4474 | Y11: =0.0000006*('Cost Model L-PSH'!C14)^2 + 0.0109*('Cost Model L-PSH'!C14) + 62.383 -> 80.84716 | Z11: =0.000003*('Cost Model L-PSH'!C14)^2 + 0.0062*('Cost Model L-PSH'!C14) + 109.48 -> 126.4528 | AA11: =0.000001*('Cost Model L-PSH'!C14)^2 + 0.0099*('Cost Model L-PSH'!C14) + 90.767 -> 108.6446 | AB11: =0.000002*('Cost Model L-PSH'!C14)^2 + 0.0073*('Cost Model L-PSH'!C14) + 84.676 -> 100.9312 | AC11: =-0.0000001*('Cost Model L-PSH'!C14)^2 + 0.0123*('Cost Model L-PSH'!C14) + 73.167 -> 92.11164 | AE11: Est. $/kW | AF11: =0.000006*('Cost Model L-PSH'!C14)^2 - 0.0183*('Cost Model L-PSH'!C14) + 43.547 -> 29.6006 | AG11: =0.000007*('Cost Model L-PSH'!C14)^2 - 0.0198*('Cost Model L-PSH'!C14) + 41.489 -> 27.6362 | AH11: =0.000006*('Cost Model L-PSH'!C14)^2 - 0.0162*('Cost Model L-PSH'!C14) + 36.672 -> 26.0016 | AI11: =0.000005*('Cost Model L-PSH'!C14)^2 - 0.0128*('Cost Model L-PSH'!C14) + 33.573 -> 25.773 | AJ11: =0.00001*('Cost Model L-PSH'!C14)^2 - 0.0308*('Cost Model L-PSH'!C14) + 67.023 -> 43.311 | AK11: =0.000007*('Cost Model L-PSH'!C14)^2 - 0.0207*('Cost Model L-PSH'!C14) + 54.238 -> 38.9812 | AL11: =0.000007*('Cost Model L-PSH'!C14)^2 - 0.0205*('Cost Model L-PSH'!C14) + 50.886 -> 35.9412 | AM11: =0.000005*('Cost Model L-PSH'!C14)^2 - 0.0146*('Cost Model L-PSH'!C14) + 43.361 -> 32.753
B43: Underground Powestation Structure Cost 125MW units | L43: Underground Powestation Structure Cost 225MW units | V43: Surface Powestation Structure Cost 125MW units | AF43: Surface Powestation Structure Cost 225MW units
B44: $/kW Average Conditions | F44: $/kW Adverse Conditions | L44: $/kW Average Conditions | P44: $/kW Adverse Conditions | V44: $/kW Average Conditions | Z44: $/kW Adverse Conditions | AF44: $/kW Average Conditions | AJ44: $/kW Adverse Conditions
A45: Average Head, Ft | B45: 2 Units | C45: 3 Units | D45: 4 Units | E45: 6 Units | F45: 2 Units | G45: 3 Units | H45: 4 Units | I45: 6 Units | K45: Average Head, Ft | L45: 2 Units | M45: 3 Units | N45: 4 Units | O45: 6 Units | P45: 2 Units | Q45: 3 Units | R45: 4 Units | S45: 6 Units | U45: Average Head, Ft | V45: 2 Units | W45: 3 Units | X45: 4 Units | Y45: 6 Units | Z45: 2 Units | AA45: 3 Units | AB45: 4 Units | AC45: 6 Units | AE45: Average Head, Ft | AF45: 2 Units | AG45: 3 Units | AH45: 4 Units | AI45: 6 Units | AJ45: 2 Units | AK45: 3 Units | AL45: 4 Units | AM45: 6 Units
A46: 350 | B46: 123 | C46: 108 | D46: 97 | E46: 90 | F46: 158 | G46: 134 | H46: 122 | I46: 112 | K46: 350 | L46: 116 | M46: 100 | N46: 92 | O46: 83 | P46: 148 | Q46: 126 | R46: 116 | S46: 104 | U46: 350 | V46: 63 | W46: 56 | X46: 52 | Y46: 48 | Z46: 92 | AA46: 75.5 | AB46: 70 | AC46: 64 | AE46: 350 | AF46: 50 | AG46: 44 | AH46: 41 | AI46: 38 | AJ46: 73 | AK46: 61.5 | AL46: 56 | AM46: 50
A47: 500 | B47: 95 | C47: 83 | D47: 75 | E47: 68 | F47: 120 | G47: 103 | H47: 96 | I47: 86 | K47: 500 | L47: 95 | M47: 80 | N47: 73 | O47: 64 | P47: 116 | Q47: 100 | R47: 94 | S47: 83 | U47: 500 | V47: 62 | W47: 55 | X47: 52 | Y47: 48 | Z47: 90 | AA47: 76 | AB47: 71 | AC47: 64 | AE47: 500 | AF47: 46 | AG47: 41.5 | AH47: 38 | AI47: 36 | AJ47: 70 | AK47: 59 | AL47: 55 | AM47: 48
A48: 1000 | B48: 69 | C48: 58 | D48: 52 | E48: 48 | F48: 87 | G48: 74 | H48: 66 | I48: 58 | K48: 1000 | L48: 59 | M48: 52 | N48: 44 | O48: 40 | P48: 74 | Q48: 64 | R48: 55 | S48: 52 | U48: 1000 | V48: 60 | W48: 54 | X48: 53 | Y48: 49 | Z48: 90 | AA48: 78 | AB48: 74 | AC48: 66 | AE48: 1000 | AF48: 42 | AG48: 37 | AH48: 36 | AI48: 34.5 | AJ48: 64 | AK48: 55.5 | AL48: 51 | AM48: 46
A49: 1500 | B49: 63 | C49: 54 | D49: 46 | E49: 41 | F49: 79 | G49: 69 | H49: 62 | I49: 56 | K49: 1500 | L49: 46 | M49: 41 | N49: 36 | O49: 32 | P49: 60 | Q49: 50 | R49: 44 | S49: 40 | U49: 1500 | V49: 62 | W49: 56 | X49: 54.5 | Y49: 53 | Z49: 94 | AA49: 82 | AB49: 75.5 | AC49: 69 | AE49: 1500 | AF49: 44 | AG49: 40 | AH49: 37.5 | AI49: 36 | AJ49: 62 | AK49: 55 | AL49: 50 | AM49: 47
A50: 2000 | B50: 58 | C50: 50 | D50: 44 | E50: 39 | F50: 76 | G50: 64 | H50: 56 | I50: 52 | K50: 2000 | L50: 45 | M50: 38.75 | N50: 34 | O50: 30 | P50: 56 | Q50: 48 | R50: 43 | S50: 38 | U50: 2000 | V50: 66 | W50: 64 | X50: 59 | Y50: 56 | Z50: 98 | AA50: 85 | AB50: 80 | AC50: 74 | AE50: 2000 | AF50: 45 | AG50: 43 | AH50: 40 | AI50: 38 | AJ50: 64 | AK50: 56 | AL50: 53 | AM50: 49
A51: 2250 | B51: 56 | C51: 49 | D51: 43 | E51: 38 | F51: 74 | G51: 62 | H51: 54 | I51: 51 | K51: 2250 | L51: 45 | M51: 38.5 | N51: 33.75 | O51: 29.5 | P51: 57 | Q51: 48 | R51: 43 | S51: 38.5 | U51: 2250 | V51: 71 | W51: 66 | X51: 63 | Y51: 60 | Z51: 101 | AA51: 89 | AB51: 83 | AC51: 75 | AE51: 2250 | AF51: 46 | AG51: 44 | AH51: 41 | AI51: 38.5 | AJ51: 66 | AK51: 58 | AL51: 55 | AM51: 50
B52: y = 1229.6x-0.405 | C52: y = 1113.2x-0.412 | D52: y = 1126.8x-0.431 | E52: y = 1195.5x-0.454 | F52: y = 1435.5x-0.392 | G52: y = 1258x-0.396 | H52: y = 1375x-0.424 | I52: y = 1131x-0.41 | L52: y = 2163.3x-0.512 | M52: y = 1725.2x-0.501 | N52: y = 1735.2x-0.52 | O52: y = 1578.2x-0.524 | P52: y = 2315.8x-0.49 | Q52: y = 2194.6x-0.505 | R52: y = 2353.1x-0.53 | S52: y = 2162.4x-0.533 | V52: y = 7E-06x2 - 0.0146x + 67.574 | W52: y = 7E-06x2 - 0.0117x + 59.042 | X52: y = 5E-06x2 - 0.0065x + 54.377 | Y52: y = 3E-06x2 - 0.0018x + 48.04 | Z52: y = 4E-06x2 - 0.0039x + 90.761 | AA52: y = 2E-06x2 + 0.0008x + 75.02 | AB52: y = 2E-06x2 + 0.0002x + 70.655 | AC52: y = 2E-06x2 + 0.002x + 62.446 | AF52: y = 6E-06x2 - 0.0159x + 53.593 | AG52: y = 6E-06x2 - 0.0157x + 47.989 | AH52: y = 5E-06x2 - 0.0116x + 43.522 | AI52: y = 3E-06x2 - 0.0078x + 39.647 | AJ52: y = 8E-06x2 - 0.0241x + 80.261 | AK52: y = 5E-06x2 - 0.0155x + 65.884 | AL52: y = 6E-06x2 - 0.0165x + 61.35 | AM52: y = 4E-06x2 - 0.0099x + 52.44
A53: Est. $/kW | B53: =1229.6*('Cost Model L-PSH'!C14)^-0.405 -> 62.59626092 | C53: =1113.2*('Cost Model L-PSH'!C14)^-0.412 -> 53.82770494 | D53: =1126.8*('Cost Model L-PSH'!C14)^-0.431 -> 47.38164521 | E53: =1195.5*('Cost Model L-PSH'!C14)^-0.454 -> 42.4493469 | F53: =1435.5*('Cost Model L-PSH'!C14)^-0.392 -> 80.40783231 | G53: =1258*('Cost Model L-PSH'!C14)^-0.396 -> 68.42318722 | H53: =1375*('Cost Model L-PSH'!C14)^-0.424 -> 60.87204168 | I53: =1131*('Cost Model L-PSH'!C14)^-0.41 -> 55.49853506 | K53: Est. $/kW | L53: =2163.3*('Cost Model L-PSH'!C14)^-0.512 -> 50.14607616 | M53: =1725.2*('Cost Model L-PSH'!C14)^-0.501 -> 43.35947606 | N53: =1735.2*('Cost Model L-PSH'!C14)^-0.52 -> 37.92492651 | O53: =1578.2*('Cost Model L-PSH'!C14)^-0.524 -> 33.4938252 | P53: =2315.8*('Cost Model L-PSH'!C14)^-0.49 -> 63.10590458 | Q53: =2194.6*('Cost Model L-PSH'!C14)^-0.505 -> 53.55838252 | R53: =2353.1*('Cost Model L-PSH'!C14)^-0.53 -> 47.784203 | S53: =2162.4*('Cost Model L-PSH'!C14)^-0.533 -> 42.95370417 | U53: Est. $/kW | V53: =0.000007*('Cost Model L-PSH'!C14)^2 - 0.0146*('Cost Model L-PSH'!C14) + 67.574 -> 61.8332 | W53: =0.000007*('Cost Model L-PSH'!C14)^2 - 0.0117*('Cost Model L-PSH'!C14) + 59.042 -> 57.8252 | X53: =0.000005*('Cost Model L-PSH'!C14)^2 - 0.0065*('Cost Model L-PSH'!C14) + 54.377 -> 56.405 | Y53: =0.000003*('Cost Model L-PSH'!C14)^2 - 0.0018*('Cost Model L-PSH'!C14) + 48.04 -> 52.5328 | Z53: =0.000004*('Cost Model L-PSH'!C14)^2 - 0.0039*('Cost Model L-PSH'!C14) + 90.761 -> 94.4114 | AA53: =0.000002*('Cost Model L-PSH'!C14)^2 + 0.0008*('Cost Model L-PSH'!C14) + 75.02 -> 81.1352 | AB53: =0.000002*('Cost Model L-PSH'!C14)^2 + 0.0002*('Cost Model L-PSH'!C14) + 70.655 -> 75.8342 | AC53: =0.000002*('Cost Model L-PSH'!C14)^2 + 0.002*('Cost Model L-PSH'!C14)+ 62.446 -> 70.4332 | AE53: Est. $/kW | AF53: =0.000006*('Cost Model L-PSH'!C14)^2 - 0.0159*('Cost Model L-PSH'!C14) + 53.593 -> 43.3906 | AG53: =0.000006*('Cost Model L-PSH'!C14)^2 - 0.0157*('Cost Model L-PSH'!C14) + 47.989 -> 38.0986 | AH53: =0.000005*('Cost Model L-PSH'!C14)^2 - 0.0116*('Cost Model L-PSH'!C14)+ 43.522 -> 37.594 | AI53: =0.000003*('Cost Model L-PSH'!C14)^2 - 0.0078*('Cost Model L-PSH'!C14) + 39.647 -> 34.7798 | AJ53: =0.000008*('Cost Model L-PSH'!C14)^2 - 0.0241*('Cost Model L-PSH'!C14)+ 80.261 -> 62.1338 | AK53: =0.000005*('Cost Model L-PSH'!C14)^2 - 0.0155*('Cost Model L-PSH'!C14) + 65.884 -> 53.872 | AL53: =0.000006*('Cost Model L-PSH'!C14)^2 - 0.0165*('Cost Model L-PSH'!C14) + 61.35 -> 50.2116 | AM53: =0.000004*('Cost Model L-PSH'!C14)^2 - 0.0099*('Cost Model L-PSH'!C14) + 52.44 -> 46.7304
A85: Embankment Structure Cost $/CY | K85: Cost of Intakes/Outlets $M | V85: Cost of concrete lined water conductors | AE85: Cost of Vertical Shafts $/LF
A86: Average Dam Height, Ft | B86: Unit Volume CY/FT * 1000 | D86: Total Dam Volume (CY x 10^6) | E86: Unit Cost $/CY | F86: 1/x | G86: 1/y | H86: hyperbolic fit | K86: Water Conductor Diameter, Ft | L86: Horizontal Intake | M86: Vertical Intake | V86: $/LF Average Tunneling Conditions | Z86: $/LF Poor Tunneling Conditions | AE86: Shaft Diameter, Ft | AF86: $/LF
A87: 25 | B87: 0.2 | D87: 0.114 | E87: 13.5 | F87: =1/D87 -> 8.771929825 | G87: =1/E87 -> 0.07407407407 | H87: =($H$98*D87)/($H$96+D87) -> 13.72056559 | K87: 10 | L87: 1.3 | M87: 0.2 | P87: 0.0154x2 - 0.1968x + 1.85 | U87: Inside Diameter, Ft | V87: 1/2 Mile | W87: 1 Mile | X87: 2 Mile | Y87: 4 Mile | Z87: 1/2 Mile | AA87: 1 Mile | AB87: 2 Mile | AC87: 4 Mile | AE87: 10 | AF87: 1950
A88: 50 | B88: 0.5 | D88: 1 | E88: 9 | F88: =1/D88 -> 1 | G88: =1/E88 -> 0.1111111111 | H88: 8.156526608 | K88: 15 | L88: 2.5 | M88: 0.45 | O88: horizontal | P88: =0.0154*('Cost Model L-PSH'!C94)^2 - 0.1968*'Cost Model L-PSH'!C94 + 1.85 -> 6.772919078 | U88: 10 | V88: 1000 | W88: 1200 | X88: 1300 | Y88: 1400 | Z88: 1400 | AA88: 1500 | AB88: 1550 | AC88: 1600 | AE88: 15 | AF88: 2800
A89: 100 | B89: 1.4 | D89: 2 | E89: 8 | F89: 0.5 | G89: 0.125 | H89: 7.949140595 | K89: 20 | L89: 4.2 | M89: 0.9 | U89: 15 | V89: 1500 | W89: 1700 | X89: 1800 | Y89: 1900 | Z89: 2200 | AA89: 2400 | AB89: 2500 | AC89: 2600 | AE89: 20 | AF89: 3700 | AI89: 186.57x + 27.143
A90: 150 | B90: 2.7 | D90: 4 | E90: 7.8 | F90: 0.25 | G90: 0.1282051282 | H90: 7.849352657 | K90: 25 | L90: 6.4 | M90: 1.3 | P90: 0.0046x2 - 0.0819x + 0.5993 | U90: 20 | V90: 2200 | W90: 2400 | X90: 2500 | Y90: 2700 | Z90: 3200 | AA90: 3450 | AB90: 3600 | AC90: 3900 | AE90: 25 | AF90: 4700 | AH90: $/lf | AI90: =186.57*'Cost Model L-PSH'!C94 + 27.143 -> 4761.61309
A91: 200 | B91: 4.4 | D91: 6 | E91: 7.7 | F91: 0.1666666667 | G91: 0.1298701299 | H91: 7.816644432 | K91: 30 | L91: 9.6 | M91: 2.3 | O91: vertical | P91: =0.0046*('Cost Model L-PSH'!C94)^2 - 0.0819*'Cost Model L-PSH'!C94 + 0.5993 -> 1.483192608 | U91: 25 | V91: 3200 | W91: 3400 | X91: 3550 | Y91: 3900 | Z91: 4600 | AA91: 4900 | AB91: 5200 | AC91: 5600 | AE91: 30 | AF91: 5600
A92: 250 | B92: 6.7 | D92: 8 | E92: 7.6 | F92: 0.125 | G92: 0.1315789474 | H92: 7.800392328 | K92: 35 | L92: 13.9 | M92: 3.4 | U92: 30 | V92: 4400 | W92: 4550 | X92: 4975 | Y92: 5450 | Z92: 6500 | AA92: 6700 | AB92: 7400 | AC92: 8100 | AE92: 35 | AF92: 6600
A93: 300 | B93: 9.4 | D93: 10 | E93: 7.5 | F93: 0.1 | G93: 0.1333333333 | H93: 7.790673465 | U93: 35 | V93: 5600 | W93: 5900 | X93: 6450 | Y93: 7500 | Z93: 8450 | AA93: 8750 | AB93: 9350 | AC93: 11250
A94: 350 | B94: 12.5 | H94: y = (7.75204x)/(x - 0.049591) | V94: 3.9286x2 + 10.071x + 481.43 | W94: 4.3214x2 - 5.6071x + 815 | X94: 5.5536x2 - 42.339x + 1165.4 | Y94: 7.6786x2 - 103.54x + 1690.7 | Z94: 6.6786x2 - 17.393x + 915 | AA94: 6.25x2 + 7.8929x + 819.29 | AB94: 6.7143x2 + 13.857x + 732.86 | AC94: 11.107x2 - 120.11x + 1777.9
C95: Upper Dam | E95: Lower Dam | G95: slope-> | H95: =SLOPE(G87:G93,F87:F93) -> -0.006397112993 | I95: $/CY Upper | J95: =(7.75204*C98)/(C98 - 0.049591) -> 7.916642136 | V95: =3.9286*('Cost Model L-PSH'!C94)^2 + 10.071*('Cost Model L-PSH'!C94) + 481.43 -> 3266.858114 | W95: =4.3214*('Cost Model L-PSH'!C94)^2 - 5.6071*('Cost Model L-PSH'!C94) + 815 -> 3455.522413 | X95: =5.5536*('Cost Model L-PSH'!C94)^2 - 42.339*'Cost Model L-PSH'!C94 + 1165.4 -> 3667.287933 | Y95: =7.6786*('Cost Model L-PSH'!C94)^2 - 103.54*'Cost Model L-PSH'!C94 + 1690.7 -> 4007.944225 | Z95: =6.6786*('Cost Model L-PSH'!C94)^2 - 17.393*'Cost Model L-PSH'!C94 + 915 -> 4774.382357 | AA95: =6.25*('Cost Model L-PSH'!C94)^2 + 7.8929*'Cost Model L-PSH'!C94 + 819.29 -> 5044.335403 | AB95: =6.7143*('Cost Model L-PSH'!C94)^2 + 13.857*'Cost Model L-PSH'!C94 + 732.86 -> 5408.243428 | AC95: =11.107*('Cost Model L-PSH'!C94)^2 - 120.11*'Cost Model L-PSH'!C94 + 1777.9 -> 5882.411391
B96: U.Unit Volume CY/Ft | C96: =(0.00009*('Cost Model L-PSH'!C16)^2 + 0.0039*'Cost Model L-PSH'!C16 + 0.0707)*1000 -> 1834.7 | D96: L.Unit Volume CY/Ft | E96: =(0.00009*('Cost Model L-PSH'!C18)^2 + 0.0039*'Cost Model L-PSH'!C18 + 0.0707)*1000 -> 628.7 | G96: hyper k-> | H96: =H95*H98 -> -0.04959066937 | I96: $/CY Lower | J96: =(7.75204*E98)/(E98 - 0.049591) -> 8.350862416
B97: U.Total Volume CY | C97: =C96*'Cost Model L-PSH'!C17 -> 2385110 | D97: L.Total Volume CY | E97: =E96*'Cost Model L-PSH'!C19 -> 691570 | G97: intercept-> | H97: =INTERCEPT(G87:G93,F87:F93) -> 0.1289983191
B98: U.Volume CY * 10^6 | C98: =C97/(10^6) -> 2.38511 | D98: L.Volume CY * 10^6 | E98: =E97/(10^6) -> 0.69157 | G98: hyper m-> | H98: =1/H97 -> 7.752038994
U121: Penstock Tunnel Max Velocity | Y121: Draft Tube Tunnel Max Velocity
A122: Cost of Pennstocks and Draft Tube Tunnels $/Ft | K122: Cost of Surface Pennstocks $/Ft | U122: Head (ft) | V122: Velocity (Fps) | Y122: Head (ft) | Z122: Velocity (Fps)
A123: Diameter, Ft | B123: 500 Ft | C123: 1000 Ft | D123: 1500 Ft | E123: 2000 Ft | K123: Diameter, Ft | L123: 300 Ft | M123: 500 Ft | N123: 700 Ft | O123: 1000 Ft | P123: 1500 Ft | U123: 300 | V123: 18 | Y123: 300 | Z123: 8
A124: 5 | K124: 10 | L124: 1.55 | M124: 2.2 | N124: 3.2 | O124: 4.5 | P124: 6.65 | U124: 500 | V124: 20 | Y124: 500 | Z124: 10
A125: 10 | B125: 2200 | C125: 2400 | D125: 3000 | E125: 3800 | K125: 15 | L125: 3.3 | M125: 5 | N125: 7 | O125: 10 | P125: 14.75 | U125: 1000 | V125: 25 | Y125: 1000 | Z125: 13
A126: 15 | B126: 4100 | C126: 4600 | D126: 6000 | E126: 7600 | K126: 20 | L126: 5.6 | M126: 8.7 | N126: 12.3 | U126: 1500 | V126: 28 | Y126: 1500 | Z126: 15
A127: 20 | B127: 6900 | C127: 7800 | D127: 10300 | E127: 13250 | K127: 25 | L127: 8.6 | M127: 13.7 | U127: 2200 | V127: 32 | Y127: 2200 | Z127: 17
A128: 25 | B128: 10000 | C128: 11700 | D128: 15800 | K128: 30 | L128: 12.2
A129: 30 | K129: 35 | L129: 16.5 | V129: 0.0074x + 16.512 | AA129: 0.0046x + 7.516
B130: 47.162x1.6615 | C130: 43.711x1.7314 | D130: 45.454x1.8126 | E130: 60.182x1.7959 | L130: 0.02x1.885 | M130: 0.0226x1.9901 | N130: 0.0365x1.9417 | O130: 0.0483x1.9694 | P130: 0.0721x1.9647 | V130: =0.0074*'Cost Model L-PSH'!C14 + 16.512 -> 28.056 | AA130: =0.0046*('Cost Model L-PSH'!C14-'Cost Model L-PSH'!C88) + 7.516 -> 9.6688
A131: Penstock | B131: =47.162*('Cost Model L-PSH'!C110)^1.6615 -> 2723.946698 | C131: =43.711*('Cost Model L-PSH'!C110)^1.7314 -> 2994.391982 | D131: =45.454*('Cost Model L-PSH'!C110)^1.8126 -> 3796.490926 | E131: =60.182*('Cost Model L-PSH'!C110)^1.7959 -> 4825.815231 | L131: =0.02*('Cost Model L-PSH'!C110)^1.885*1000 -> 1993.436466 | M131: =0.0226*('Cost Model L-PSH'!C110)^1.9901*1000 -> 2911.475778 | N131: =0.0365*('Cost Model L-PSH'!C110)^1.9417*1000 -> 4178.125463 | O131: =0.0483*('Cost Model L-PSH'!C110)^1.9694*1000 -> 5915.680161 | P131: =0.0721*('Cost Model L-PSH'!C110)^1.9647*1000 -> 8729.907486
A132: Draft Tube | B132: =47.162*('Cost Model L-PSH'!C111)^1.6615 -> 6600.057681 | C132: =43.711*('Cost Model L-PSH'!C111)^1.7314 -> 7530.564031 | D132: =45.454*('Cost Model L-PSH'!C111)^1.8126 -> 9969.765414 | E132: =60.182*('Cost Model L-PSH'!C111)^1.7959 -> 12560.59201
A161: Underground Powerstation Equipment Costs 80MW Units $/kW | K161: Underground Powerstation Equipment Costs 125MW Units $/kW | U161: Underground Powerstation Equipment Costs 225MW Units $/kW | AE161: Underground Powerstation Equipment Costs 350MW Units $/kW
A162: Average Head, Ft | B162: 160 MW | C162: 240 MW | D162: 320 MW | E162: 480 MW | K162: Average Head, Ft | L162: 250 MW | M162: 375 MW | N162: 500 MW | O162: 750 MW | U162: Average Head, Ft | V162: 450 MW | W162: 675 MW | X162: 900 MW | Y162: 1350 MW | AE162: Average Head, Ft | AF162: 700 MW | AG162: 1050 MW | AH162: 1400 MW | AI162: 2100 MW
A163: 350 | B163: 242 | C163: 229 | D163: 223 | E163: 216 | K163: 350 | L163: 203 | M163: 194 | N163: 188 | O163: 184 | U163: 350 | V163: 163 | W163: 155 | X163: 151 | Y163: 146 | AE163: 350 | AF163: 130 | AG163: 124 | AH163: 121 | AI163: 117
A164: 500 | B164: 235 | C164: 224 | D164: 217 | E164: 210 | K164: 500 | L164: 194 | M164: 185 | N164: 180 | O164: 176 | U164: 500 | V164: 153 | W164: 145 | X164: 142 | Y164: 137 | AE164: 500 | AF164: 124 | AG164: 116 | AH164: 114 | AI164: 111
A165: 1000 | B165: 224 | C165: 212 | D165: 205 | E165: 200 | K165: 1000 | L165: 183 | M165: 174 | N165: 169 | O165: 165 | U165: 1000 | V165: 139 | W165: 134 | X165: 130 | Y165: 126 | AE165: 1000 | AF165: 112 | AG165: 107 | AH165: 105 | AI165: 102
A166: 1500 | B166: 222 | C166: 210 | D166: 204 | E166: 200 | K166: 1500 | L166: 180 | M166: 173 | N166: 168 | O166: 164 | U166: 1500 | V166: 138.5 | W166: 133.5 | X166: 129 | Y166: 126 | AE166: 1500 | AF166: 114 | AG166: 107.5 | AH166: 105.5 | AI166: 103
A167: 2000 | B167: 237 | C167: 226 | D167: 220 | E167: 215 | K167: 2000 | L167: 185 | M167: 176 | N167: 173 | O167: 168 | U167: 2000 | V167: 143 | W167: 135.5 | X167: 134 | Y167: 130 | AE167: 2000 | AF167: 115 | AG167: 110 | AH167: 107 | AI167: 104.5
A168: 2250 | B168: 245 | C168: 234 | D168: 228 | E168: 223 | K168: 2250 | L168: 187 | M168: 179 | N168: 175 | O168: 171 | U168: 2250 | V168: 145 | W168: 137 | X168: 135 | Y168: 132 | AE168: 2250 | AF168: 115.5 | AG168: 110.5 | AH168: 107.5 | AI168: 105.5
B170: 2E-05x2 - 0.0609x + 259.97 | C170: 2E-05x2 - 0.0609x + 247.79 | D170: 2E-05x2 - 0.0617x + 241.53 | E170: 2E-05x2 - 0.0555x + 232.3 | L170: 2E-05x2 - 0.0485x + 216.18 | M170: 2E-05x2 - 0.0462x + 206.27 | N170: 2E-05x2 - 0.0453x + 200.29 | O170: 2E-05x2 - 0.0456x + 196.43 | V170: 2E-05x2 - 0.0544x + 177.56 | W170: 1E-05x2 - 0.0448x + 166.28 | X170: 2E-05x2 - 0.048x + 163.78 | Y170: 2E-05x2 - 0.0452x + 157.75 | AF170: 1E-05x2 - 0.0365x + 139.89 | AG170: 1E-05x2 - 0.0355x + 132.8 | AH170: 1E-05x2 - 0.033x + 129.39 | AI170: 1E-05x2 - 0.0316x + 125.28
B171: =0.00002*('Cost Model L-PSH'!C89)^2 - 0.0609*'Cost Model L-PSH'!C89 + 259.97 -> 214.38212 | C171: =0.00002*('Cost Model L-PSH'!C89)^2 - 0.0609*('Cost Model L-PSH'!C89) + 247.79 -> 202.20212 | D171: =0.00002*('Cost Model L-PSH'!C89)^2 - 0.0617*('Cost Model L-PSH'!C89) + 241.53 -> 194.88132 | E171: =0.00002*('Cost Model L-PSH'!C89)^2 - 0.0555*('Cost Model L-PSH'!C89) + 232.3 -> 193.87252 | L171: =0.00002*('Cost Model L-PSH'!C89)^2 - 0.0485*('Cost Model L-PSH'!C89) + 216.18 -> 187.03452 | M171: =0.00002*('Cost Model L-PSH'!C89)^2 - 0.0462*('Cost Model L-PSH'!C89) + 206.27 -> 180.17432 | N171: =0.00002*('Cost Model L-PSH'!C89)^2 - 0.0453*('Cost Model L-PSH'!C89) + 200.29 -> 175.38772 | O171: =0.00002*('Cost Model L-PSH'!C89)^2 - 0.0456*('Cost Model L-PSH'!C89) + 196.43 -> 171.12992 | V171: =0.00002*('Cost Model L-PSH'!C89)^2 - 0.0544*('Cost Model L-PSH'!C89) + 177.56 -> 140.59112 | W171: =0.00001*('Cost Model L-PSH'!C89)^2 - 0.0448*('Cost Model L-PSH'!C89) + 166.28 -> 124.45796 | X171: =0.00002*('Cost Model L-PSH'!C89)^2 - 0.048*('Cost Model L-PSH'!C89) + 163.78 -> 135.29752 | Y171: =0.00002*('Cost Model L-PSH'!C89)^2 - 0.0452*('Cost Model L-PSH'!C89) + 157.75 -> 132.98032 | AF171: =0.00001*('Cost Model L-PSH'!C89)^2 - 0.0365*('Cost Model L-PSH'!C89) + 139.89 -> 109.07376 | AG171: =0.00001*('Cost Model L-PSH'!C89)^2 - 0.0355*('Cost Model L-PSH'!C89) + 132.8 -> 103.30976 | AH171: =0.00001*('Cost Model L-PSH'!C89)^2 - 0.033*('Cost Model L-PSH'!C89) + 129.39 -> 103.21476 | AI171: =0.00001*('Cost Model L-PSH'!C89)^2 - 0.0316*('Cost Model L-PSH'!C89) + 125.28 -> 100.96116
A203: Surface Powerstation Equipment Costs 80MW Units $/kW | K203: Surface Powerstation Equipment Costs 125MW Units $/kW | U203: Surface Powerstation Equipment Costs 225MW Units $/kW | AE203: Surface Powerstation Equipment Costs 350MW Units $/kW
A204: Average Head, Ft | B204: 160 MW | C204: 240 MW | D204: 320 MW | E204: 480 MW | K204: Average Head, Ft | L204: 250 MW | M204: 375 MW | N204: 500 MW | O204: 750 MW | U204: Average Head, Ft | V204: 450 MW | W204: 675 MW | X204: 900 MW | Y204: 1350 MW | AE204: Average Head, Ft | AF204: 700 MW | AG204: 1050 MW | AH204: 1400 MW | AI204: 2100 MW
A205: 350 | B205: 237 | C205: 225 | D205: 219 | E205: 214 | K205: 350 | L205: 200 | M205: 190 | N205: 185 | O205: 183 | U205: 350 | V205: 157 | W205: 151 | X205: 146 | Y205: 144 | AE205: 350 | AF205: 133 | AG205: 126 | AH205: 124 | AI205: 120
A206: 500 | B206: 236.5 | C206: 224 | D206: 217 | E206: 213 | K206: 500 | L206: 189 | M206: 179.5 | N206: 176 | O206: 171.5 | U206: 500 | V206: 151 | W206: 144.5 | X206: 142 | Y206: 136 | AE206: 500 | AF206: 124 | AG206: 117 | AH206: 115 | AI206: 114
A207: 1000 | B207: 234 | C207: 222 | D207: 216 | E207: 210 | K207: 1000 | L207: 180 | M207: 170.5 | N207: 167 | O207: 162 | U207: 1000 | V207: 144 | W207: 137 | X207: 134 | Y207: 130.5 | AE207: 1000 | AF207: 111.5 | AG207: 105.5 | AH207: 104 | AI207: 101
A208: 1500 | B208: 234.5 | C208: 223 | D208: 216.5 | E208: 212 | K208: 1500 | L208: 181.5 | M208: 174 | N208: 168 | O208: 164 | U208: 1500 | V208: 144 | W208: 137.5 | X208: 134 | Y208: 131 | AE208: 1500 | AF208: 110 | AG208: 105 | AH208: 104 | AI208: 100
A209: 2000 | B209: 238.5 | C209: 228 | D209: 224 | E209: 217 | K209: 2000 | L209: 187.5 | M209: 180 | N209: 176 | O209: 173 | U209: 2000 | V209: 146 | W209: 143 | X209: 137 | Y209: 135 | AE209: 2000 | AF209: 110.5 | AG209: 105 | AH209: 104 | AI209: 100.5
A210: 2250 | B210: 245 | C210: 234 | D210: 228 | E210: 222 | K210: 2250 | L210: 194 | M210: 185 | N210: 180 | O210: 176 | U210: 2250 | V210: 150 | W210: 144.5 | X210: 140.5 | Y210: 137 | AE210: 2250 | AF210: 111 | AG210: 105.3 | AH210: 104 | AI210: 101
B212: 8E-06x2 - 0.0174x + 242.74 | C212: 8E-06x2 - 0.017x + 230.3 | D212: 8E-06x2 - 0.0168x + 223.7 | E212: 8E-06x2 - 0.0173x + 219.28 | L212: 2E-05x2 - 0.0499x + 212.36 | M212: 2E-05x2 - 0.0457x + 200.9 | N212: 2E-05x2 - 0.046x + 196.81 | O212: 2E-05x2 - 0.0501x + 195 | V212: 1E-05x2 - 0.0319x + 165.52 | W212: 1E-05x2 - 0.0338x + 159.73 | X212: 1E-05x2 - 0.0313x + 155.12 | Y212: 1E-05x2 - 0.0309x + 151.13 | AF212: 1E-05x2 - 0.0447x + 144.85 | AG212: 1E-05x2 - 0.041x + 136.46 | AH212: 1E-05x2 - 0.0391x + 133.75 | AI212: 1E-05x2 - 0.0406x + 131.67
B213: =0.000008*('Cost Model L-PSH'!C89)^2 - 0.0174*('Cost Model L-PSH'!C89) + 242.74 -> 233.733808 | C213: =0.000008*('Cost Model L-PSH'!C89)^2 - 0.017*('Cost Model L-PSH'!C89) + 230.3 -> 221.824208 | D213: =0.000008*('Cost Model L-PSH'!C89)^2 - 0.0168*('Cost Model L-PSH'!C89) + 223.7 -> 215.489408 | E213: =0.000008*('Cost Model L-PSH'!C89)^2 - 0.0173*('Cost Model L-PSH'!C89) + 219.28 -> 210.406408 | L213: =0.00002*('Cost Model L-PSH'!C89)^2 - 0.0499*('Cost Model L-PSH'!C89) + 212.36 -> 181.35812 | M213: =0.00002*('Cost Model L-PSH'!C89)^2 - 0.0457*('Cost Model L-PSH'!C89) + 200.9 -> 175.46732 | N213: =0.00002*('Cost Model L-PSH'!C89)^2 - 0.046*('Cost Model L-PSH'!C89) + 196.81 -> 170.97952 | O213: =0.00002*('Cost Model L-PSH'!C89)^2 - 0.0501*('Cost Model L-PSH'!C89)+ 195 -> 163.73292 | V213: =0.00001*('Cost Model L-PSH'!C89)^2 - 0.0319*('Cost Model L-PSH'!C89) + 165.52 -> 140.80336 | W213: =0.00001*('Cost Model L-PSH'!C89)^2 - 0.0338*('Cost Model L-PSH'!C89)+ 159.73 -> 132.49396 | X213: =0.00001*('Cost Model L-PSH'!C89)^2 - 0.0313*('Cost Model L-PSH'!C89) + 155.12 -> 131.19896 | Y213: =0.00001*('Cost Model L-PSH'!C89)^2 - 0.0309*('Cost Model L-PSH'!C89) + 151.13 -> 127.73936 | AF213: =0.00001*('Cost Model L-PSH'!C89)^2 - 0.0447*('Cost Model L-PSH'!C89) + 144.85 -> 103.16056 | AG213: =0.00001*('Cost Model L-PSH'!C89)^2 - 0.041*('Cost Model L-PSH'!C89)+ 136.46 -> 99.67676 | AH213: =0.00001*('Cost Model L-PSH'!C89)^2 - 0.0391*('Cost Model L-PSH'!C89) + 133.75 -> 99.48616 | AI213: =0.00001*('Cost Model L-PSH'!C89)^2 - 0.0406*('Cost Model L-PSH'!C89) + 131.67 -> 95.41716
A239: Access Tunnel Costs, $/LF | K239: Switchyard Costs, $M | V239: Access Road, $/mile
A240: Tunnel Length, Miles | B240: $/LF | K240: No. of generating units | L240: 115 to 161 kV | M240: 230 kV | N240: 345 kV | O240: 500 kV | V240: Terrain | W240: New | X240: Rebuild
A241: 0.25 | B241: 2090 | D241: 2489.4x0.118 | K241: 2 | L241: 1.4 | M241: 1.7 | N241: 3.55 | O241: 7.35 | V241: Steep | W241: 439000 | X241: 293000
A242: 0.5 | B242: 2330 | D242: =2489.4*('Cost Model L-PSH'!C39)^0.118 -> 2555.818837 | K242: 3 | L242: 2.2 | M242: 2.8 | N242: 6.15 | O242: 13.5 | V242: Mild | W242: 283000 | X242: 186000
A243: 1 | B243: 2500 | K243: 4 | L243: 2.75 | M243: 3.7 | N243: 7.9 | O243: 16.5 | V243: Flat | W243: 189000 | X243: 123000
A244: 1.5 | B244: 2600 | K244: 5 | L244: 3.3 | M244: 4.4 | N244: 9.4 | O244: 19
A245: 2 | B245: 2690 | K245: 6 | L245: 3.65 | M245: 4.9 | N245: 11 | O245: 21
L247: -0.0643x2 + 1.0743x - 0.48 | M247: -0.1x2 + 1.6x - 1.1 | N247: -0.1607x2 + 3.1007x - 1.91 | O247: -0.6286x2 + 8.3086x - 6.45
L248: =-0.0643*('Cost Model L-PSH'!C106)^2 + 1.0743*'Cost Model L-PSH'!C106 - 0.48 -> 2.7884 | M248: =-0.1*('Cost Model L-PSH'!C106)^2 + 1.6*('Cost Model L-PSH'!C106) - 1.1 -> 3.7 | N248: =-0.1607*('Cost Model L-PSH'!C106)^2 + 3.1007*('Cost Model L-PSH'!C106) - 1.91 -> 7.9216 | O248: =-0.6286*('Cost Model L-PSH'!C106)^2 + 8.3086*('Cost Model L-PSH'!C106) - 6.45 -> 16.7268 | Q248: =IF('Cost Model L-PSH'!C63<=160,'Cost Curves L-PSH'!L248,IF(AND('Cost Model L-PSH'!C63>160,'Cost Model L-PSH'!C63<=230),'Cost Curves L-PSH'!M248,IF(AND('Cost Model L-PSH'!C63>230,'Cost Model L-PSH'!C63<=345),'Cost Curves L-PSH'!N248,IF('Cost Model L-PSH'!C63>345,'Cost Curves L-PSH'!O248)))) -> 16.7268
A274: Transmission Line Costs Per Mile, $1000s
A275: Transmitted Power, MW | B275: 138 kV | C275: 230 kV | D275: 345 kV | E275: 500 kV | H275: Transmission Terrain Multiplier
A276: 28.5 | B276: 110 | H276: Desert | I276: 1.05
A277: 30 | B277: 112 | H277: Flat | I277: 1
A278: 40 | B278: 115 | H278: Farmland | I278: 1
A279: 50 | B279: 120 | H279: Forested | I279: 2.25
A280: 60 | B280: 122 | H280: Rolling Hill | I280: 1.4
A281: 70 | B281: 128 | H281: Mountain | I281: 1.75
A282: 80 | B282: 132 | H282: Wetland | I282: 1.2
A283: 90 | B283: 140 | H283: Suburban | I283: 1.27
A284: 100 | B284: 150 | H284: Urban | I284: 1.59
A285: 125 | B285: 172
A286: 102 | C286: 175 | H286: Tranmission Circuit Multiplier
A287: 150 | C287: 180 | H287: Double | I287: =AVERAGE(K290:K292) -> 1.600469629
A288: 200 | C288: 190
A289: 300 | C289: 230 | H289: Transmission kV | I289: Single Circuit $/mile | J289: Double Circuit $/mile
A290: 340 | C290: 240 | H290: 230 | I290: 959700 | J290: 1536400 | K290: =J290/I290 -> 1.600916953
A291: 350 | D291: 275 | H291: 345 | I291: 1343800 | J291: 2150300 | K291: =J291/I291 -> 1.600163715
A292: 400 | D292: 280 | H292: 500 | I292: 1919450 | J292: 3071750 | K292: =J292/I292 -> 1.600328219
A293: 500 | D293: 285
A294: 600 | D294: 290
A295: 700 | D295: 295
A296: 800 | D296: 305
A297: 900 | D297: 325 | E297: 400
A298: 1000 | D298: 370 | E298: 402
A299: 2000 | E299: 450
A300: 3000 | E300: 575
B302: 0.0043x2 - 0.028x + 108.72 | C302: 0.0007x2 - 0.0382x + 169.98 | D302: 0.0003x2 - 0.2536x + 335.57 | E302: 4E-05x2 - 0.0652x + 428.5
B303: =0.0043*('Cost Model L-PSH'!C105)^2 - 0.028*'Cost Model L-PSH'!C105 + 108.72 -> 7154.554065 | C303: =0.0007*('Cost Model L-PSH'!C105)^2 - 0.0382*('Cost Model L-PSH'!C105) + 169.98 -> 1273.802809 | D303: =0.0003*('Cost Model L-PSH'!C105)^2 - 0.2536*('Cost Model L-PSH'!C105) + 335.57 -> 504.1956041 | E303: =0.00004*('Cost Model L-PSH'!C105)^2 - 0.0652*('Cost Model L-PSH'!C105)+ 428.5 -> 410.7041255 | G303: =IF('Cost Model L-PSH'!C62<=138,'Cost Curves L-PSH'!B303,IF(AND('Cost Model L-PSH'!C62>138,'Cost Model L-PSH'!C62<=230),'Cost Curves L-PSH'!C303,IF(AND('Cost Model L-PSH'!C62>230,'Cost Model L-PSH'!C62<=345),'Cost Curves L-PSH'!D303,IF('Cost Model L-PSH'!C62<=138>=345,'Cost Curves L-PSH'!E303)))) -> 410.7041255
A332: Power Station | B332: ='Cost Model L-PSH'!C47 -> Underground
A333: UR Connection | B333: =IF('Cost Model L-PSH'!C44="Horizontal","Horizontal Intake to Upper low pressure tunnel to Shaft to Upper high pressure tunnel",IF('Cost Model L-PSH'!C44="Vertical","Vertical Intake to Shaft to Upper Tunnel")) -> Vertical Intake to Shaft to Upper Tunnel
A334: Water Conductor | B334: Penstock
A335: LR Connection | B335: Direct Discharge
A337: Configuration | B337: =IF(AND(B332="Underground",B333="Vertical Intake to Shaft to Upper Tunnel",B334="Tunnel",B335="Tailrace tunnel"),"A",IF(AND(B332="Underground",B333="Horizontal Intake to Upper low pressure tunnel to Shaft to Upper high pressure tunnel",B334="Tunnel",B335="Tailrace tunnel"),"B",IF(AND(B332="Surface",B333="Vertical Intake to Shaft to Upper Tunnel",B334="Tunnel",B335="Direct Discharge"),"C",IF(AND(B332="Surface",B333="Horizontal Intake to Upper low pressure tunnel to Shaft to Upper high pressure tunnel",B334="Tunnel",B335="Tailrace tunnel"),"D",IF(AND(B332="Surface",B333="Horizontal Intake to Upper low pressure tunnel to Shaft to Upper high pressure tunnel",B334="Penstock",B335="Tailrace tunnel"),"E",IF(AND(B332="Surface",B333="Horizontal Intake to Upper low pressure tunnel to Shaft to Upper high pressure tunnel",B334="Penstock",B335="Direct Discharge"),"F","Out of Bounds")))))) -> Out of Bounds
A338: Small System Powerstation Costs
A361: 2008-2011 $ | C361: 1 cfs = 448.83 gal/min or 7.48 gal/sec
A362: gal/min | B362: stand by power k$
A363: 400 | B363: 65 | D363: ='Cost Model L-PSH'!C113*448.83 -> 4011316.623 | E363: gal/min
A364: 700 | B364: 100 | D364: stand by power k$
A365: 1000 | B365: 150 | D365: =0.7799*(D363)^0.7442*1000 -> 64003697.44 | E365: $
A366: 5000 | B366: 400
A367: 10000 | B367: 750
A368: 15000 | B368: 1000
A369: 50000 | B369: 2500
A371: 2011-2015 $
A372: Low Head | B372: 200 ft or less
A373: Turbine generator and Control Cost in $/kW by capacity in MW
A374: y = 1051.9*x^-0.204 | D374: ='Cost Model L-PSH'!I10/1000 -> 1283.324821 | E374: =1051.9*(D374^-0.204)*'Market Adj Factors'!C47 -> 293.3383413
A376: High Head | B376: 200 ft or more
A377: Turbine generator and Control Cost in $/kW by capacity in MW
A378: y = 697.41*x^-0.329 | D378: =D374 -> 1283.324821 | E378: =697.41*D378^-0.329*'Market Adj Factors'!C47 -> 79.49512066

Sheet Cost Model S-PSH
B6: Inputs & Assumptions | F6: Cost Components | G6: Include in Total? (Yes or No - User Option) | H6: Unit | I6: Qty | J6: Base Unit Cost ($/unit) (Includes material, equipment rental, installation labor) | K6: Locational Factor | L6: Inflation Factor (2022) | M6: Market Adjustment Factor (MAF) | N6: Adjusted Unit Cost ($) | O6: Override Qty | P6: Override Unit Cost ($) | Q6: Total Component Cost ($) | R6: % of total cost (component) | S6: % of total cost (category)
B8: Site Related | F8: Land and Land Rights | G8: Yes | H8: Acres | I8: =IF(G8="Yes",IF(O8,O8,C20),0) -> 800 | J8: =IFERROR(VLOOKUP(C9,'Land Value Data'!$A$3:$G$51,7,FALSE),'Land Value Data'!G51) -> 3093.333333 | K8: 1 | L8: =IF(C51="Yes",'Market Adj Factors'!C45,1) -> 2.406321426 | M8: 1 | N8: =IF(P8,P8,J8*K8*L8*M8) -> 7443.554278 | O8: 0 | P8: 0 | Q8: =I8*N8 -> 5954843.422 | R8: =Q8/$Q$52 -> 0.01200412941 | S8: =R8 -> 0.01200412941
B9: Location | C9: United States | D9: #
B10: Avg. Max Upper Reservoir Depth | C10: 40 | D10: feet | F10: Powerplant Structure | G10: Yes | H10: kW | I10: =IF(G10="Yes",IF(O10,O10,C105*1000),0) -> 116216.3582 | J10: =IF(P10,P10,IF(AND(C46="Average",C47="Underground"),IF(C107<=80,IF(C106<=2,'Cost Curves S-PSH'!B11,IF(AND(C106>2,C106<=3),'Cost Curves S-PSH'!C11,IF(AND(C106>3,C106<=4),'Cost Curves S-PSH'!D11,IF(C106>4,'Cost Curves S-PSH'!E11)))),IF(AND(C107>80,C107<=125),IF(C106<=2,'Cost Curves S-PSH'!B53,IF(AND(C106>2,C106<=3),'Cost Curves S-PSH'!C53,IF(AND(C106>3,C106<=4),'Cost Curves S-PSH'!D53,IF(C106>4,'Cost Curves S-PSH'!E53)))),IF(AND(C107>125,C107<=225),IF(C106<=2,'Cost Curves S-PSH'!L53,IF(AND(C106>2,C106<=3),'Cost Curves S-PSH'!M53,IF(AND(C106>3,C106<=4),'Cost Curves S-PSH'!N53,IF(C106>4,'Cost Curves S-PSH'!O53)))),IF(C107>225,IF(C106<=2,'Cost Curves S-PSH'!L11,IF(AND(C106>2,C106<=3),'Cost Curves S-PSH'!M11,IF(AND(C106>3,C106<=4),'Cost Curves S-PSH'!N11,IF(C106>4,'Cost Curves S-PSH'!O11)))))))),IF(AND(C46="Adverse",C47="Underground"),IF(C107<=80,IF(C106<=2,'Cost Curves S-PSH'!F11,IF(AND(C106>2,C106<=3),'Cost Curves S-PSH'!G11,IF(AND(C106>3,C106<=4),'Cost Curves S-PSH'!H11,IF(C106>4,'Cost Curves S-PSH'!I11)))),IF(AND(C107>80,C107<=125),IF(C106<=2,'Cost Curves S-PSH'!F53,IF(AND(C106>2,C106<=3),'Cost Curves S-PSH'!G53,IF(AND(C106>3,C106<=4),'Cost Curves S-PSH'!H53,IF(C106>4,'Cost Curves S-PSH'!I53)))),IF(AND(C107>125,C107<=225),IF(C106<=2,'Cost Curves S-PSH'!P53,IF(AND(C106>2,C106<=3),'Cost Curves S-PSH'!Q53,IF(AND(C106>3,C106<=4),'Cost Curves S-PSH'!R53,IF(C106>4,'Cost Curves S-PSH'!S53)))),IF(C107>225,IF(C106<=2,'Cost Curves S-PSH'!P11,IF(AND(C106>2,C106<=3),'Cost Curves S-PSH'!Q11,IF(AND(C106>3,C106<=4),'Cost Curves S-PSH'!R11,IF(C106>4,'Cost Curves S-PSH'!S11)))))))),IF(AND(C46="Average",C47="Surface"),IF(C107<=80,IF(C106<=2,'Cost Curves S-PSH'!V11,IF(AND(C106>2,C106<=3),'Cost Curves S-PSH'!W11,IF(AND(C106>3,C106<=4),'Cost Curves S-PSH'!X11,IF(C106>4,'Cost Curves S-PSH'!Y11)))),IF(AND(C107>80,C107<=125),IF(C106<=2,'Cost Curves S-PSH'!V53,IF(AND(C106>2,C106<=3),'Cost Curves S-PSH'!W53,IF(AND(C106>3,C106<=4),'Cost Curves S-PSH'!X53,IF(C106>4,'Cost Curves S-PSH'!Y53)))),IF(AND(C107>125,C107<=225),IF(C106<=2,'Cost Curves S-PSH'!AF53,IF(AND(C106>2,C106<=3),'Cost Curves S-PSH'!AG53,IF(AND(C106>3,C106<=4),'Cost Curves S-PSH'!AH53,IF(C106>4,'Cost Curves S-PSH'!AI53)))),IF(C107>225,IF(C106<=2,'Cost Curves S-PSH'!AF11,IF(AND(C106>2,C106<=3),'Cost Curves S-PSH'!AG11,IF(AND(C106>3,C106<=4),'Cost Curves S-PSH'!AH11,IF(C106>4,'Cost Curves S-PSH'!AI11)))))))),IF(AND(C46="Adverse",C47="Surface"),IF(C107<=80,IF(C106<=2,'Cost Curves S-PSH'!Z11,IF(AND(C106>2,C106<=3),'Cost Curves S-PSH'!AA11,IF(AND(C106>3,C106<=4),'Cost Curves S-PSH'!AB11,IF(C106>4,'Cost Curves S-PSH'!AC11)))),IF(AND(C107>80,C107<=125),IF(C106<=2,'Cost Curves S-PSH'!Z53,IF(AND(C106>2,C106<=3),'Cost Curves S-PSH'!AA53,IF(AND(C106>3,C106<=4),'Cost Curves S-PSH'!AB53,IF(C106>4,'Cost Curves S-PSH'!AC53)))),IF(AND(C107>125,C107<=225),IF(C106<=2,'Cost Curves S-PSH'!AJ53,IF(AND(C106>2,C106<=3),'Cost Curves S-PSH'!AK53,IF(AND(C106>3,C106<=4),'Cost Curves S-PSH'!AL53,IF(C106>4,'Cost Curves S-PSH'!AM53)))),IF(C107>225,IF(C106<=2,'Cost Curves S-PSH'!AJ11,IF(AND(C106>2,C106<=3),'Cost Curves S-PSH'!AK11,IF(AND(C106>3,C106<=4),'Cost Curves S-PSH'!AL11,IF(C106>4,'Cost Curves S-PSH'!AM11))))))))))))) -> 59.971712 | K10: =VLOOKUP(C9,'Locational Adj Factors'!$A$3:$B$55,2,FALSE)/100 -> 1 | L10: =IF(C51="Yes",'Market Adj Factors'!C45,1) -> 2.406321426 | M10: ='Market Adj Factors'!C30 -> 1.3 | N10: =IF(P10,P10,J10*K10*L10*M10) -> 187.6045802 | O10: 0 | P10: 0 | Q10: =N10*I10 -> 21802721.1 | R10: =Q10/$Q$52 -> 0.04395122876 | S10: =R10 -> 0.04395122876
B11: Upper Reservoir Area | C11: 40 | D11: acres
B12: Avg. Max Lower Reservoir Depth | C12: 30 | D12: feet | F12: Reservoirs, Dams, and Waterways
B13: Lower Reservoir Area | C13: 35 | D13: acres | F13: Upper Reservoir Dam and Spillway | G13: Yes | H13: CY | I13: =IF(G13="Yes",IF(O13,O13,C83),0) -> 133521 | J13: ='Cost Curves S-PSH'!J95 -> 12.33242146 | K13: =VLOOKUP(C9,'Locational Adj Factors'!$A$3:$B$55,2,FALSE)/100 -> 1 | L13: ='Market Adj Factors'!C45 -> 2.406321426 | M13: ='Market Adj Factors'!C31 -> 1.4 | N13: =IF(P13,P13,J13*K13*L13*M13) -> 41.54607798 | O13: 0 | P13: 0 | Q13: =N13*I13 -> 5547273.878 | R13: =Q13/$Q$52 -> 0.01118252635 | S13: =SUM(R13:R17) -> 0.05312630026
B14: Nominal (Max) Head | C14: 1004 | D14: feet | F14: Upper Reservoir Intake/Outlet | G14: Yes | H14: # | I14: =IF(G14="Yes",IF(O14,O14,C93),0) -> 1 | J14: =IF(C44="Horizontal",'Cost Curves S-PSH'!P88,IF('Cost Model S-PSH'!C44="Vertical",'Cost Curves S-PSH'!P91))*1000000 -> 238006.8554 | K14: =VLOOKUP(C9,'Locational Adj Factors'!$A$3:$B$55,2,FALSE)/100 -> 1 | L14: =IF(C51="Yes",'Market Adj Factors'!C45,1) -> 2.406321426 | M14: ='Market Adj Factors'!C32 -> 2 | N14: =IF(P14,P14,J14*K14*L14*M14) -> 1145441.991 | O14: 0 | P14: 0 | Q14: =N14*I14 -> 1145441.991 | R14: =Q14/$Q$52 -> 0.002309050451
B15: Total Conveyance Length (vert+horiz) | C15: 11080 | D15: feet | F15: Surge Facilities | G15: Yes | H15: LS | I15: =IF(G15="Yes",IF(O15,O15,IF(C96="Yes",40%,0%)),0) -> 0.4 | J15: NA | N15: NA | O15: 0 | P15: NA | Q15: =I15*SUM(Q20:Q25) -> 14480699.46 | R15: =Q15/$Q$52 -> 0.02919105976
B16: Avg. Upper Dam Height | C16: 200 | D16: ft | F16: Lower Reservoir Intake/Outlet | G16: Yes | H16: # | I16: =IF(G16="Yes",IF(C47="Underground",IF(O16,O16,C93),0)) -> 0 | J16: =IF(C45="Horizontal",'Cost Curves S-PSH'!P88,IF('Cost Model S-PSH'!C45="Vertical",'Cost Curves S-PSH'!P91))*1000000 -> 1394421.796 | K16: =VLOOKUP(C9,'Locational Adj Factors'!$A$3:$B$55,2,FALSE)/100 -> 1 | L16: =IF(C51="Yes",'Market Adj Factors'!C45,1) -> 2.406321426 | M16: ='Market Adj Factors'!C33 -> 1.3 | N16: =IF(P16,P16,J16*K16*L16*M16) -> 4362055.158 | O16: 0 | P16: 0 | Q16: =N16*I16 -> 0 | R16: =Q16/$Q$52 -> 0
B17: Upper Dam Crest Length | C17: 30 | D17: ft | F17: Lower Reservoir Dam and Spillway | G17: Yes | H17: CY | I17: =IF(G17="Yes",IF(O17,O17,C84),0) -> 100041 | J17: ='Cost Curves S-PSH'!J96 -> 15.37208788 | K17: =VLOOKUP(C9,'Locational Adj Factors'!$A$3:$B$55,2,FALSE)/100 -> 1 | L17: =IF(C51="Yes",'Market Adj Factors'!C45,1) -> 2.406321426 | M17: ='Market Adj Factors'!C31 -> 1.4 | N17: =IF(P17,P17,J17*K17*L17*M17) -> 51.78625821 | O17: 0 | P17: 0 | Q17: =N17*I17 -> 5180749.057 | R17: =Q17/$Q$52 -> 0.0104436637
B18: Avg. Lower Dam Height | C18: 170 | D18: ft
B19: Lower Dam Crest Length | C19: 30 | D19: ft | F19: Water Conductors
B20: Acreage to be acquired | C20: 800 | D20: acres | F20: Upper Low & High Pressure Tunnels | G20: Yes | H20: Ft | I20: =IF(G20="Yes",IF(O20,O20,(C15-C89-I22/C106-I23/C106)*0.5),0)*$C$93 -> 5113.3 | J20: =IF(C34="Average",IF(I20*C25<=0.5,'Cost Curves S-PSH'!V95,IF(AND(I20*C25>0.5,I20*C25<=1),'Cost Curves S-PSH'!W95,IF(AND(I20*C25>1,I20*C25<=2),'Cost Curves S-PSH'!X95,IF(I20*C25>2,'Cost Curves S-PSH'!Y95)))),IF(C34="Poor",IF(I20*C25<=0.5,'Cost Curves S-PSH'!Z95,IF(AND(I20*C25>0.5,I20*C25<=1),'Cost Curves S-PSH'!AA95,IF(AND(I20*C25>1,I20*C25<=2),'Cost Curves S-PSH'!AB95,IF(I20*C25>2,'Cost Curves S-PSH'!AC95)))))) -> 1246.271462 | K20: =VLOOKUP(C9,'Locational Adj Factors'!$A$3:$B$55,2,FALSE)/100 -> 1 | L20: =IF(C51="Yes",'Market Adj Factors'!C45,1) -> 2.406321426 | M20: ='Market Adj Factors'!C36 -> 1.6 | N20: =IF(P20,P20,J20*K20*L20*M20) -> 4798.287554 | O20: 0 | P20: 0 | Q20: =N20*I20 -> 24535083.75 | R20: =Q20/$Q$52 -> 0.04945928876 | S20: =SUM(R20:R25) -> 0.07297764939
B21: Generation Time | C21: 10 | D21: hours | F21: Vertical Shafts | G21: Yes | H21: Ft | I21: =IF(G21="Yes",IF(O21,O21,C89),0)*C93 -> 853.4 | J21: ='Cost Curves S-PSH'!AI90 -> 2015.932335 | K21: =VLOOKUP(C9,'Locational Adj Factors'!$A$3:$B$55,2,FALSE)/100 -> 1 | L21: =IF(C51="Yes",'Market Adj Factors'!C45,1) -> 2.406321426 | M21: ='Market Adj Factors'!C35 -> 1.8 | N21: 8731.766109 | O21: 0 | P21: 0 | Q21: 7451689.198 | R21: 0.01502156062
F22: Penstock Tunnels | G22: Yes | H22: Ft | I22: =IF(G22="Yes",IF(C48="Underground",IF(O22,O22,C89*0.25),0))*$C$106 -> 0 | J22: =IF(C14<=500,'Cost Curves S-PSH'!B131,IF(AND(C14>500,C14<=1000),'Cost Curves S-PSH'!C131,IF(AND(C14>1000,C14<=1500),'Cost Curves S-PSH'!D131,IF(C14>1500,'Cost Curves S-PSH'!E131)))) -> 2816.19831 | K22: =VLOOKUP(C9,'Locational Adj Factors'!$A$3:$B$55,2,FALSE)/100 -> 1 | L22: =IF($C$51="Yes",'Market Adj Factors'!$C$45,1) -> 2.406321426 | M22: ='Market Adj Factors'!C37 -> 1.9 | N22: 12875.68884 | O22: 0 | P22: 0 | Q22: 0 | R22: 0
B23: Unit Conversion Factors and Constants | F23: Draft Tube Tunnels | G23: Yes | H23: Ft | I23: =IF(G23="Yes",IF(C47="Underground",IF(O23,O23,150),0))*$C$106 -> 0 | J23: =IF(C47="Underground",IF(C14-C88<=500,'Cost Curves S-PSH'!B131,IF(AND(C14-C88>500,C14-C88<=1000),'Cost Curves S-PSH'!C131,IF(AND(C14-C88>1000,C14-C88<=1500),'Cost Curves S-PSH'!D131,IF(C14-C88>1500,'Cost Curves S-PSH'!E131)))),0) -> 0 | K23: =VLOOKUP($C$9,'Locational Adj Factors'!$A$3:$B$55,2,FALSE)/100 -> 1 | L23: =IF($C$51="Yes",'Market Adj Factors'!$C$45,1) -> 2.406321426 | M23: ='Market Adj Factors'!C38 -> 1.9 | N23: 0 | O23: 0 | P23: 0 | Q23: =N23*I23 -> 0 | R23: 0
B24: Meter to Feet | C24: 3.28084 | D24: feet | F24: Tailrace Tunnels | G24: Yes | H24: Ft | I24: =IF(G24="Yes",IF(O24,O24,(C15-C89-I22/C106-I23/C106)*0.5),0)*$C$93 -> 5113.3 | J24: =IF(C47="Underground",IF(C14<=500,'Cost Curves S-PSH'!B131,IF(AND(C14>500,C14<=1000),'Cost Curves S-PSH'!C131,IF(AND(C14>1000,C14<=1500),'Cost Curves S-PSH'!D131,IF(C14>1500,'Cost Curves S-PSH'!E131)))),0) -> 0 | K24: =VLOOKUP($C$9,'Locational Adj Factors'!$A$3:$B$55,2,FALSE)/100 -> 1 | L24: =IF($C$51="Yes",'Market Adj Factors'!$C$45,1) -> 2.406321426 | M24: ='Market Adj Factors'!C36 -> 1.6 | N24: 0 | O24: 0 | P24: 0 | Q24: 0 | R24: 0
B25: Feet to Miles | C25: 0.000189394 | D25: miles | F25: Surface Penstock | G25: Yes | H25: Ft | I25: =IF(G25="Yes",IF(O25,O25,IF( C48="Surface",C106*C89*0.25,0)),0) -> 213.35 | J25: =IF(OR(C104<100, C48="Surface"),IF(C14<=300,'Cost Curves S-PSH'!L131,IF(AND(C14>300,C14<=500),'Cost Curves S-PSH'!M131,IF(AND(C14>500,C14<=700),'Cost Curves S-PSH'!N131,IF(AND(C14>700,C14<=1000),'Cost Curves S-PSH'!O131,IF(C14>1000,'Cost Curves S-PSH'!P131))))),0) -> 6315.466525 | K25: =VLOOKUP($C$9,'Locational Adj Factors'!$A$3:$B$55,2,FALSE)/100 -> 1 | L25: =IF($C$51="Yes",'Market Adj Factors'!$C$45,1) -> 2.406321426 | M25: ='Market Adj Factors'!C34 -> 1.3 | N25: 19756.15514 | O25: 0 | P25: 0 | Q25: 4214975.699 | R25: 0.008496800024
B26: Ac. Ft to Cu. Ft | C26: 43559.9 | D26: cu.ft
B27: Cu. Ft to Cu. Yd | C27: 1613.33 | D27: CY | F27: Powerstation Equipment
B28: Hr to Sec | C28: 3600 | D28: s | F28: Pump/Motors | G28: Yes | H28: LS | I28: =IF(G28="Yes",1,0) -> 1 | J28: =IF(C104>100,0,'Cost Curves S-PSH'!D365) -> 15862782.03 | K28: =VLOOKUP($C$9,'Locational Adj Factors'!$A$3:$B$55,2,FALSE)/100 -> 1 | L28: 1 | M28: 1 | N28: =IF(P28,P28,J28*K28*L28*M28) -> 15862782.03 | O28: 0 | P28: 0 | Q28: =N28*I28 -> 15862782.03 | R28: =Q28/$Q$52 -> 0.03197714444 | S28: =IF(AND(R28=0%,R29=0%),R30,IF(R30=0%,SUM(R28:R29))) -> 0.1441486528
B29: MW to W | C29: 1000000 | D29: W | F29: Generator/Turbines | G29: Yes | H29: kW | I29: =IF(G29="Yes",IF(C104<=100,IF(O29,O29,I10),0),0) -> 116216.3582 | J29: =IF(C104>100,0,IF(C104<=100,'Cost Curves S-PSH'!E374,'Cost Curves S-PSH'!E378)) -> 478.8009193 | K29: =VLOOKUP($C$9,'Locational Adj Factors'!$A$3:$B$55,2,FALSE)/100 -> 1 | L29: 1 | M29: 1 | N29: 478.8009193 | O29: 0 | P29: 0 | Q29: =N29*I29 -> 55644499.16 | R29: =Q29/$Q$52 -> 0.1121715083
B30: acceleration of gravity (metric) | C30: 9.81 | D30: m/s^2 | F30: Total Powerstation | G30: Yes | H30: kW | I30: =IF(G30="Yes",IF(C104>100,IF(O30,O30,C105*1000),0),0) -> 0 | J30: =IF(C104<=100,0,IF(C47="Underground", IF(C107<=80,IF(C106<=2,'Cost Curves S-PSH'!B171,IF(AND(C106>2,C106<=3),'Cost Curves S-PSH'!C171,IF(AND(C106>3,C106<=4),'Cost Curves S-PSH'!D171,IF(C106>4,'Cost Curves S-PSH'!E171)))),IF(AND(C107>80,C107<=125),IF(C106<=2,'Cost Curves S-PSH'!L171,IF(AND(C106>2,C106<=3),'Cost Curves S-PSH'!M171,IF(AND(C106>3,C106<=4),'Cost Curves S-PSH'!N171,IF(C106>4,'Cost Curves S-PSH'!O171)))),IF(AND(C107>125,C107<=225),IF(C106<=2,'Cost Curves S-PSH'!V171,IF(AND(C106>2,C106<=3),'Cost Curves S-PSH'!W171,IF(AND(C106>3,C106<=4),'Cost Curves S-PSH'!X171,IF(C106>4,'Cost Curves S-PSH'!Y171)))),IF(C107>225,IF(C106<=2,'Cost Curves S-PSH'!AF171,IF(AND(C106>2,C106<=3),'Cost Curves S-PSH'!AG171,IF(AND(C106>3,C106<=4),'Cost Curves S-PSH'!AH171,IF(C106>4,'Cost Curves S-PSH'!AI171)))))))),IF(C47="Surface", IF(C107<=80,IF(C106<=2,'Cost Curves S-PSH'!B213,IF(AND(C106>2,C106<=3),'Cost Curves S-PSH'!C213,IF(AND(C106>3,C106<=4),'Cost Curves S-PSH'!D213,IF(C106>4,'Cost Curves S-PSH'!E213)))),IF(AND(C107>80,C107<=125),IF(C106<=2,'Cost Curves S-PSH'!L213,IF(AND(C106>2,C106<=3),'Cost Curves S-PSH'!M213,IF(AND(C106>3,C106<=4),'Cost Curves S-PSH'!N213,IF(C106>4,'Cost Curves S-PSH'!O213)))),IF(AND(C107>125,C107<=225),IF(C106<=2,'Cost Curves S-PSH'!V213,IF(AND(C106>2,C106<=3),'Cost Curves S-PSH'!W213,IF(AND(C106>3,C106<=4),'Cost Curves S-PSH'!X213,IF(C106>4,'Cost Curves S-PSH'!Y213)))),IF(C107>225,IF(C106<=2,'Cost Curves S-PSH'!AF213,IF(AND(C106>2,C106<=3),'Cost Curves S-PSH'!AG213,IF(AND(C106>3,C106<=4),'Cost Curves S-PSH'!AH213,IF(C106>4,'Cost Curves S-PSH'!AI213))))))))))) -> 0 | K30: =VLOOKUP($C$9,'Locational Adj Factors'!$A$3:$B$55,2,FALSE)/100 -> 1 | L30: =IF($C$51="Yes",'Market Adj Factors'!$C$45,1) -> 2.406321426 | M30: ='Market Adj Factors'!C41 -> 1.7 | N30: =IF(P30,P30,J30*K30*L30*M30) -> 0 | O30: 0 | P30: 0 | Q30: =N30*I30 -> 0 | R30: =Q30/$Q$52 -> 0
B31: density of water (metric) | C31: 1000 | D31: kg/m^2
F32: Roads, Railroads, Bridges, and Access
B33: Condition Related | F33: Access Roads | G33: Yes | H33: Miles | I33: =IF(G33="Yes",IF(O33,O33,C38),0) -> 3.61 | J33: =INDEX('Cost Curves S-PSH'!W241:X243,MATCH('Cost Model S-PSH'!C35,'Cost Curves S-PSH'!V241:V243,0),MATCH('Cost Model S-PSH'!C36,'Cost Curves S-PSH'!W240:X240,0)) -> 189000 | K33: =VLOOKUP($C$9,'Locational Adj Factors'!$A$3:$B$55,2,FALSE)/100 -> 1 | L33: =IF($C$51="Yes",'Market Adj Factors'!$C$45,1) -> 2.406321426 | M33: ='Market Adj Factors'!C40 -> 1 | N33: =IF(P33,P33,J33*K33*L33*M33) -> 454794.7495 | O33: 0 | P33: 0 | Q33: =N33*I33 -> 1641809.046 | R33: =Q33/$Q$52 -> 0.003309656837 | S33: =SUM(R33:R35) -> 0.004137071046
B34: Tunneling Condition | C34: Average | D34: # | F34: Access Tunnels | G34: Yes | H34: Ft | I34: =IF(G34="Yes",IF(C47="Surface",0,IF(O34,O34,C39*5280)),0) -> 0 | J34: =IF(C47="Surface",0,'Cost Curves S-PSH'!D242) -> 0 | K34: =VLOOKUP($C$9,'Locational Adj Factors'!$A$3:$B$55,2,FALSE)/100 -> 1 | L34: =IF($C$51="Yes",'Market Adj Factors'!$C$45,1) -> 2.406321426 | M34: ='Market Adj Factors'!C39 -> 1 | N34: =IF(P34,P34,J34*K34*L34*M34) -> 0 | O34: 0 | P34: 0 | Q34: =N34*I34 -> 0 | R34: =Q34/$Q$52 -> 0
B35: Access Road, Terrain | C35: Flat | D35: # | F35: Highway Realignment | G35: Yes | H35: % | I35: =IF(G35="Yes",IF(C37="Yes",25%,0%),0) -> 0.25 | O35: 0 | P35: NA | Q35: =Q33*I35 -> 410452.2614 | R35: =Q35/$Q$52 -> 0.0008274142093
B36: Access Road, Type | C36: New | D36: #
B37: Highway Realignment | C37: Yes | D37: # | F37: Switchyard | G37: Yes | H37: LS | I37: =IF(G37="Yes",1,0) -> 1 | J37: ='Cost Curves S-PSH'!Q248*1000000 -> 1030000 | K37: =VLOOKUP($C$9,'Locational Adj Factors'!$A$3:$B$55,2,FALSE)/100 -> 1 | L37: =IF($C$51="Yes",'Market Adj Factors'!$C$45,1) -> 2.406321426 | M37: ='Market Adj Factors'!C43 -> 1 | N37: =IF(P37,P37,J37*K37*L37*M37) -> 2478511.069 | O37: 0 | P37: 0 | Q37: =N37*I37 -> 2478511.069 | R37: =Q37/$Q$52 -> 0.004996330801 | S37: =R37 -> 0.004996330801
B38: Access Road | C38: 3.61 | D38: miles
B39: Access Tunnel, Length | C39: 0.75 | D39: miles | F39: Transmission Lines | G39: Yes | H39: Miles | I39: =IF(G39="Yes",C61,0) -> 30 | J39: ='Cost Curves S-PSH'!G303*1000*C117*C118 -> 1180442.62 | K39: =VLOOKUP($C$9,'Locational Adj Factors'!$A$3:$B$55,2,FALSE)/100 -> 1 | L39: =IF($C$51="Yes",'Market Adj Factors'!$C$45,1) -> 2.406321426 | M39: ='Market Adj Factors'!C42 -> 1.3 | N39: =IF(P39,P39,J39*K39*L39*M39) -> 3692681.681 | O39: 0 | P39: 0 | Q39: =N39*I39 -> 110780450.4 | R39: =Q39/$Q$52 -> 0.2233178554 | S39: =R39 -> 0.2233178554
B40: Water Supply = | C40: Yes | D40: #
B41: Water Supply Cost = | C41: 0 | D41: $/kW | F41: Others
F42: Water Supply | G42: Yes | H42: kW | I42: =IF(G42="Yes",IF(C40="Yes",C105*1000,0),0) -> 116216.3582 | J42: =C41 -> 0 | K42: =VLOOKUP($C$9,'Locational Adj Factors'!$A$3:$B$55,2,FALSE)/100 -> 1 | L42: 1 | M42: 1 | N42: =IF(P42,P42,J42*K42*L42*M42) -> 0 | O42: 0 | P42: 0 | Q42: =N42*I42 -> 0 | R42: =Q42/$Q$52 -> 0 | S42: =SUM(R42:R43) -> 0
B43: Technology Related
B44: U. Reservoir Intake/Outlet | C44: Vertical | D44: # | F44: Indirect Costs
B45: L. Reservoir Intake/Outlet | C45: Horizontal | D45: # | F45: Mobilization/Demobilization | G45: Yes | H45: % | I45: =IF(G45="Yes",IF(O45,O45,C52),0) -> 0.05 | O45: 0 | P45: NA | Q45: =I45*SUM(Q8:Q42) -> 13856599.08 | R45: =Q45/$Q$52 -> 0.02793296089 | S45: =SUM(R45:R50) -> 0.4413407821
B46: Power Station Structure Geology | C46: Average | D46: # | F46: Sales Tax | G46: Yes | H46: % | I46: =IF(G46="Yes",IF(O46,O46,C54),0) -> 0.06 | O46: 0 | P46: NA | Q46: =I46*C53*SUM(Q8:Q42) -> 16627918.89 | R46: 0.03351955307
B47: Power Station | C47: Surface | D47: # | F47: Contingency | G47: Yes | H47: % | I47: =IF(G47="Yes",IF(O47,O47,C55),0) -> 0.33 | O47: 0 | P47: NA | Q47: =SUM(Q8:Q42)*I47 -> 91453553.9 | R47: 0.1843575419
B48: Penstock | C48: Surface | D48: # | F48: EPC Cost | G48: Yes | H48: % | I48: =IF(G48="Yes",IF(O48,O48,C56),0) -> 0.25 | O48: 0 | P48: NA | Q48: =I48*C53*SUM(Q8:Q42) -> 69282995.38 | R48: 0.1396648045
F49: Developer Cost | G49: Yes | H49: % | I49: =IF(G49="Yes",IF(O49,O49,C57),0) -> 0.03 | O49: 0 | P49: NA | Q49: =SUM(Q8:Q42)*I49 -> 8313959.446 | R49: 0.01675977654
B50: Project Related | F50: Overhead & Profit | G50: Yes | H50: % | I50: =IF(G50="Yes",IF(O50,O50,C58),0) -> 0.07 | O50: 0 | P50: NA | Q50: =SUM(Q8:Q42)*I50*C53 -> 19399238.71 | R50: 0.03910614525
B51: Inflation Factor | C51: Yes | D51: #
B52: Mobilization/Demobilization = | C52: 0.05 | D52: % | F52: Total Direct and Indirect Cost | Q52: =SUM(Q8:Q50) -> 496066246.9 | R52: =SUM(R8:R50) -> 1 | S52: =SUM(S8:S50) -> 1
B53: Material/Equipment % = | C53: 1 | D53: %
B54: Sales Tax = | C54: 0.06 | D54: % | F54: System Cost
B55: Contingency = | C55: 0.33 | D55: % | F55: Total Direct and Indirect Cost $ | G55: =Q52 -> 496066246.9
B56: EPC Cost = | C56: 0.25 | D56: % | F56: $/kW (Max. Power Capacity) | G56: =G55/(C105*1000) -> 4268.471793
B57: Developer Cost = | C57: 0.03 | D57: % | F57: $/kWh (Max. Energy Capacity) | G57: =G55/(C105*C21*1000) -> 426.8471793
B58: Overhead & Profit = | C58: 0.07 | D58: %
B60: Transmission Related
B61: Transmission Distance = | C61: 30 | D61: miles
B62: Transmission = | C62: 500 | D62: kV
B63: Substation = | C63: 300 | D63: kV
B64: Transmission Terrain = | C64: Mountain | D64: #
B65: Transmission Type (# circuits) = | C65: Double | D65: #
B67: Project Related
B68: Active Storage = | C68: 0.85 | D68: x Gross Storage
B69: Hmin/Hmax = | C69: 0.7 | D69: #
B70: Hazen Williams C = | C70: 90 | D70: #
B71: P-T Efficiency = | C71: 0.88 | D71: %
B72: Max Tunnel Velocity = | C72: 20 | D72: fps
B73: Max Tunnel Dia = | C73: 35 | D73: feet
B74: Max Unit Capacity = | C74: 150 | D74: MW
B75: Min No. Units = | C75: 1 | D75: #
B76: Pump Time = | C76: =12/10 -> 1.2 | D76: x gen time
B78: Output Specifications
B79: Project Related
B80: Conveyance Length | C80: =C15*C25 -> 2.09848552 | D80: miles
B81: Avg. Upper Reservoir Volume = | C81: =C11*C10 -> 1600 | D81: ac-ft
B82: Avg. Lower Reservoir Volume = | C82: =C13*C12 -> 1050 | D82: ac-ft
B83: Avg. Upper Dam Volume = | C83: =(0.00009*(C16)^2 + 0.0039*C16 + 0.0707)*1000*C17 -> 133521 | D83: CY
B84: Avg. Lower Dam Volume = | C84: =(0.00009*(C18)^2 + 0.0039*C18 + 0.0707)*1000*C19 -> 100041 | D84: CY
B85: Active Storage = | C85: =C68*C81 -> 1360 | D85: ac-ft
B86: Energy Storage = | C86: =C104*C21 -> 909.079269 | D86: MWh
B87: Mean Gen Discharge = | C87: =C85*C26/C21/C28 -> 1645.596222 | D87: cfs
B88: Min Gross Head = | C88: =C69*C14 -> 702.8 | D88: feet
B89: Mean Gross Head = | C89: =(C88+C14)/2 -> 853.4 | D89: feet
B90: Min Gen Discharge = | C90: =(C88/C$89)^0.5*C$87 -> 1493.354238 | D90: cfs
B91: Max Gen Discharge = | C91: =(C14/C$89)^0.5*C$87 -> 1784.899709 | D91: cfs
B92: Nominal Tunnel Dia = | C92: =((C91/C72)*4/PI())^0.5 -> 10.65974881 | D92: feet
B93: No. Tunnels = | C93: =IF(C92<C73,1,2) -> 1 | D93: #
B94: Adjusted Tunnel Dia = | C94: =((C91/C93/C72)*4/PI())^0.5 -> 10.65974881 | D94: feet
B95: L/H = | C95: =C15/C89 -> 12.98336067 | D95: #
B96: Surge Chambers | C96: =IF(C95>=7,"Yes","No") -> Yes | D96: #
B97: Min Gen Headloss = | C97: =4.73*C90^1.85/C$70^1.85/C$94^4.87*C$15 -> 93.56765865 | D97: feet
B98: Mean Gen Headloss = | C98: =4.73*C87^1.85/C$70^1.85/C$94^4.87*C$15 -> 111.9753894 | D98: feet
B99: Max Gen Headloss = | C99: =4.73*C91^1.85/C$70^1.85/C$94^4.87*C$15 -> 130.1397821 | D99: feet
B100: Net Head @ Min Gen Discharge = | C100: =C88-C97 -> 609.2323413 | D100: feet
B101: Net Head @ Mean Gen Discharge = | C101: =C89-C98 -> 741.4246106 | D101: feet
B102: Net Head @ Max Gen Discharge = | C102: =C$14-C99 -> 873.8602179 | D102: feet
B103: Min Plant Gen Power (Firm Capacity) = | C103: =C90*C100*C$71*$C$30*$C$31/$C$29*(1/C24)^4 -> 67.78869344 | D103: MW
B104: Mean Plant Gen Power = | C104: =C87*C101*C$71*$C$30*$C$31/$C$29*(1/C24)^4 -> 90.9079269 | D104: MW
B105: Max Plant Gen Power = | C105: =C91*C102*C$71*$C$30*$C$31/$C$29*(1/C24)^4 -> 116.2163582 | D105: MW
B106: No. Units = | C106: =IF(C105/C74<=C75,C75,ROUNDUP(C105/C74,0)) -> 1 | D106: #
B107: Unit Rating = | C107: =C105/C106 -> 116.2163582 | D107: MW
B108: Max Penstock Velocity = | C108: ='Cost Curves S-PSH'!V130 -> 23.9416 | D108: fps
B109: Max DraftTube Velocity = | C109: ='Cost Curves S-PSH'!AA130 -> 8.90152 | D109: fps
B110: Penstock Dia = | C110: =((C91/(C108*C106))*4/PI())^0.5 -> 9.742835803 | D110: feet
B111: Draft Tube Tunnel Dia = | C111: =((C91/(C109*C106))*4/PI())^0.5 -> 15.97827468 | D111: feet
B112: Pump Time = | C112: =C76*C21 -> 12 | D112: hrs
B113: Mean Pump Discharge = | C113: =C85*C26/C112/3600 -> 1371.330185 | D113: cfs
B114: Mean Pump Headloss = | C114: =4.73*C113^1.85/C70^1.85/C94^4.87*C15 -> 79.91665106 | D114: feet
B115: Mean Pump Net Head = | C115: =C89+C114 -> 933.3166511 | D115: feet
B116: Mean Pump Power = | C116: =C113*C115*C71*$C$30*$C$31/$C$29*(1/C24)^4 -> 95.36357515 | D116: MW
B117: Tranmission Terrain Multiplier = | C117: =VLOOKUP(C64,'Cost Curves S-PSH'!H276:I284,2,FALSE) -> 1.75 | D117: #
B118: Tranmission Type Multiplier = | C118: =IF(C65="Double",'Cost Curves S-PSH'!I287,1) -> 1.600469629 | D118: #

Sheet Cost Curves S-PSH
B1: Underground Powestation Structure Cost 80MW units | L1: Underground Powestation Structure Cost 350MW units | V1: Surface Powestation Structure Cost 80MW units | AF1: Surface Powestation Structure Cost 350MW units
B2: $/kW Average Conditions | F2: $/kW Adverse Conditions | L2: $/kW Average Conditions | P2: $/kW Adverse Conditions | V2: $/kW Average Conditions | Z2: $/kW Adverse Conditions | AF2: $/kW Average Conditions | AJ2: $/kW Adverse Conditions
A3: Average Head, Ft | B3: 160 MW | C3: 240 MW | D3: 320 MW | E3: 480 MW | F3: 160 MW | G3: 240 MW | H3: 320 MW | I3: 480 MW | K3: Average Head, Ft | L3: 700 MW | M3: 1050 MW | N3: 1400 MW | O3: 2100 MW | P3: 700 MW | Q3: 1050 MW | R3: 1400 MW | S3: 2100 MW | U3: Average Head, Ft | V3: 160 MW | W3: 240 MW | X3: 320 MW | Y3: 480 MW | Z3: 160 MW | AA3: 240 MW | AB3: 320 MW | AC3: 480 MW | AE3: Average Head, Ft | AF3: 700 MW | AG3: 1050 MW | AH3: 1400 MW | AI3: 2100 MW | AJ3: 700 MW | AK3: 1050 MW | AL3: 1400 MW | AM3: 2100 MW
A4: 350 | B4: 135 | C4: 116 | D4: 104 | E4: 92 | F4: 174 | G4: 145 | H4: 132 | I4: 118 | K4: 500 | L4: 78 | M4: 70 | N4: 62 | O4: 58 | P4: 98 | Q4: 84 | R4: 78 | S4: 70 | U4: 350 | V4: 84 | W4: 77 | X4: 72.5 | Y4: 67 | Z4: 112 | AA4: 95 | AB4: 87 | AC4: 78 | AE4: 350 | AF4: 38 | AG4: 35 | AH4: 32 | AI4: 30 | AJ4: 58 | AK4: 48.5 | AL4: 45 | AM4: 39
A5: 500 | B5: 113 | C5: 96 | D5: 86 | E5: 78 | F5: 150 | G5: 124 | H5: 113.5 | I5: 102 | K5: 1000 | L5: 48 | M5: 42 | N5: 37 | O5: 33 | P5: 62 | Q5: 52 | R5: 46 | S5: 42.25 | U5: 500 | V5: 84 | W5: 77.25 | X5: 74 | Y5: 68 | Z5: 113.5 | AA5: 96 | AB5: 89 | AC5: 79.5 | AE5: 500 | AF5: 36 | AG5: 34 | AH5: 30 | AI5: 28 | AJ5: 54 | AK5: 45 | AL5: 42 | AM5: 37
A6: 1000 | B6: 91 | C6: 76 | D6: 68 | E6: 60 | F6: 116 | G6: 98 | H6: 86 | I6: 76.5 | K6: 1500 | L6: 40.5 | M6: 34 | N6: 30 | O6: 26 | P6: 53 | Q6: 43 | R6: 39 | S6: 34.5 | U6: 1000 | V6: 87 | W6: 80 | X6: 76 | Y6: 74 | Z6: 118 | AA6: 102 | AB6: 93 | AC6: 85 | AE6: 1000 | AF6: 31 | AG6: 28 | AH6: 26 | AI6: 25 | AJ6: 45 | AK6: 40 | AL6: 37 | AM6: 34
A7: 1500 | B7: 81 | C7: 69 | D7: 59.5 | E7: 54 | F7: 103 | G7: 88 | H7: 77 | I7: 68.5 | K7: 2000 | L7: 36 | M7: 31 | N7: 26 | O7: 24 | P7: 45 | Q7: 39 | R7: 34.5 | S7: 26 | U7: 1500 | V7: 92.5 | W7: 86 | X7: 84 | Y7: 80 | Z7: 125 | AA7: 108 | AB7: 100 | AC7: 91.5 | AE7: 1500 | AF7: 30 | AG7: 27 | AH7: 26 | AI7: 25.25 | AJ7: 44.5 | AK7: 39 | AL7: 36 | AM7: 32
A8: 2000 | B8: 78 | C8: 63 | D8: 58 | E8: 50 | F8: 98 | G8: 82 | H8: 72 | I8: 62.5 | K8: 2250 | L8: 35 | M8: 30 | N8: 25 | O8: 23 | P8: 44 | Q8: 38 | R8: 33.5 | S8: 25 | U8: 2000 | V8: 102 | W8: 95 | X8: 92 | Y8: 87 | Z8: 134 | AA8: 116 | AB8: 106 | AC8: 98 | AE8: 2000 | AF8: 32 | AG8: 30 | AH8: 29 | AI8: 26 | AJ8: 46 | AK8: 41 | AL8: 38 | AM8: 34
A9: 2250 | B9: 77 | C9: 62 | D9: 57 | E9: 49 | F9: 97 | G9: 81 | H9: 71 | I9: 62 | U9: 2250 | V9: 105.5 | W9: 98 | X9: 95 | Y9: 90 | Z9: 137 | AA9: 119 | AB9: 109.5 | AC9: 100 | AE9: 2250 | AF9: 33 | AG9: 31 | AH9: 30 | AI9: 28 | AJ9: 48 | AK9: 42 | AL9: 39.5 | AM9: 35
B10: y = 740.12x-0.298 | C10: y = 760.42x-0.328 | D10: y = 645.72x-0.32 | E10: y = 640.28x-0.337 | F10: y = 1096.7x-0.319 | G10: y = 878.1x-0.313 | H10: y = 926.99x-0.337 | I10: y = 911.22x-0.352 | L10: y = 2032.8x-0.532 | M10: y = 2231.2x-0.565 | N10: y = 2553x-0.604 | O10: y = 2504.2x-0.615 | P10: y = 2613x-0.533 | Q10: y = 2154.7x-0.53 | R10: y = 2380.6x-0.559 | S10: y = 4996.8x-0.687 | V10: y = 5E-06x2 - 0.0009x + 83.095 | W10: y = 4E-06x2 + 0.0004x + 75.715 | X10: y = 4E-06x2 + 0.0021x + 71.437 | Y10: y = 6E-07x2 + 0.0109x + 62.383 | Z10: y = 3E-06x2 + 0.0062x + 109.48 | AA10: y = 1E-06x2 + 0.0099x + 90.767 | AB10: y = 2E-06x2 + 0.0073x + 84.676 | AC10: y = -1E-07x2 + 0.0123x + 73.167 | AF10: y = 6E-06x2 - 0.0183x + 43.547 | AG10: y = 7E-06x2 - 0.0198x + 41.489 | AH10: y = 6E-06x2 - 0.0162x + 36.672 | AI10: y = 5E-06x2 - 0.0128x + 33.573 | AJ10: y = 1E-05x2 - 0.0308x + 67.023 | AK10: y = 7E-06x2 - 0.0207x + 54.238 | AL10: y = 7E-06x2 - 0.0205x + 50.886 | AM10: y = 5E-06x2 - 0.0146x + 43.361
A11: Est. $/kW | B11: =740.12*('Cost Model S-PSH'!C14)^-0.298 -> 94.35947019 | C11: =760.42*('Cost Model S-PSH'!C14)^-0.328 -> 78.79249867 | D11: =645.72*('Cost Model S-PSH'!C14)^-0.32 -> 70.71140231 | E11: =640.28*('Cost Model S-PSH'!C14)^-0.337 -> 62.34270974 | F11: =1096.7*('Cost Model S-PSH'!C14)^-0.319 -> 120.930205 | G11: =878.1*('Cost Model S-PSH'!C14)^-0.313 -> 100.9255965 | H11: =926.99*('Cost Model S-PSH'!C14)^-0.337 -> 90.2590562 | I11: =911.22*('Cost Model S-PSH'!C14)^-0.352 -> 79.98581539 | K11: Est. $/kW | L11: =2032.8*('Cost Model S-PSH'!C14)^-0.532 -> 51.42476513 | M11: =2231.2*('Cost Model S-PSH'!C14)^-0.565 -> 44.93233141 | N11: =2553*('Cost Model S-PSH'!C14)^-0.604 -> 39.26482374 | O11: =2504.2*('Cost Model S-PSH'!C14)^-0.615 -> 35.69462123 | P11: =2613*('Cost Model S-PSH'!C14)^-0.533 -> 65.64706904 | Q11: =2154.7*('Cost Model S-PSH'!C14)^-0.53 -> 55.26726126 | R11: =2380.6*('Cost Model S-PSH'!C14)^-0.559 -> 49.97091294 | S11: =4996.8*('Cost Model S-PSH'!C14)^-0.687 -> 43.30129712 | U11: Est. $/kW | V11: =0.000005*('Cost Model S-PSH'!C14)^2 - 0.0009*('Cost Model S-PSH'!C14) + 83.095 -> 87.23148 | W11: =0.000004*('Cost Model S-PSH'!C14)^2 + 0.0004*('Cost Model S-PSH'!C14) + 75.715 -> 80.148664 | X11: =0.000004*('Cost Model S-PSH'!C14)^2 + 0.0021*('Cost Model S-PSH'!C14) + 71.437 -> 77.577464 | Y11: =0.0000006*('Cost Model S-PSH'!C14)^2 + 0.0109*('Cost Model S-PSH'!C14) + 62.383 -> 73.9314096 | Z11: =0.000003*('Cost Model S-PSH'!C14)^2 + 0.0062*('Cost Model S-PSH'!C14) + 109.48 -> 118.728848 | AA11: =0.000001*('Cost Model S-PSH'!C14)^2 + 0.0099*('Cost Model S-PSH'!C14) + 90.767 -> 101.714616 | AB11: =0.000002*('Cost Model S-PSH'!C14)^2 + 0.0073*('Cost Model S-PSH'!C14) + 84.676 -> 94.021232 | AC11: =-0.0000001*('Cost Model S-PSH'!C14)^2 + 0.0123*('Cost Model S-PSH'!C14) + 73.167 -> 85.4153984 | AE11: Est. $/kW | AF11: =0.000006*('Cost Model S-PSH'!C14)^2 - 0.0183*('Cost Model S-PSH'!C14) + 43.547 -> 31.221896 | AG11: =0.000007*('Cost Model S-PSH'!C14)^2 - 0.0198*('Cost Model S-PSH'!C14) + 41.489 -> 28.665912 | AH11: =0.000006*('Cost Model S-PSH'!C14)^2 - 0.0162*('Cost Model S-PSH'!C14) + 36.672 -> 26.455296 | AI11: =0.000005*('Cost Model S-PSH'!C14)^2 - 0.0128*('Cost Model S-PSH'!C14) + 33.573 -> 25.76188 | AJ11: =0.00001*('Cost Model S-PSH'!C14)^2 - 0.0308*('Cost Model S-PSH'!C14) + 67.023 -> 46.17996 | AK11: =0.000007*('Cost Model S-PSH'!C14)^2 - 0.0207*('Cost Model S-PSH'!C14) + 54.238 -> 40.511312 | AL11: =0.000007*('Cost Model S-PSH'!C14)^2 - 0.0205*('Cost Model S-PSH'!C14) + 50.886 -> 37.360112 | AM11: =0.000005*('Cost Model S-PSH'!C14)^2 - 0.0146*('Cost Model S-PSH'!C14) + 43.361 -> 33.74268
B43: Underground Powestation Structure Cost 125MW units | L43: Underground Powestation Structure Cost 225MW units | V43: Surface Powestation Structure Cost 125MW units | AF43: Surface Powestation Structure Cost 225MW units
B44: $/kW Average Conditions | F44: $/kW Adverse Conditions | L44: $/kW Average Conditions | P44: $/kW Adverse Conditions | V44: $/kW Average Conditions | Z44: $/kW Adverse Conditions | AF44: $/kW Average Conditions | AJ44: $/kW Adverse Conditions
A45: Average Head, Ft | B45: 250 MW | C45: 375 MW | D45: 500 MW | E45: 750 MW | F45: 250 MW | G45: 375 MW | H45: 500 MW | I45: 750 MW | K45: Average Head, Ft | L45: 450 MW | M45: 675 MW | N45: 900 MW | O45: 1350 MW | P45: 450 MW | Q45: 675 MW | R45: 900 MW | S45: 1350 MW | U45: Average Head, Ft | V45: 250 MW | W45: 375 MW | X45: 500 MW | Y45: 750 MW | Z45: 250 MW | AA45: 375 MW | AB45: 500 MW | AC45: 750 MW | AE45: Average Head, Ft | AF45: 450 MW | AG45: 675 MW | AH45: 900 MW | AI45: 1350 MW | AJ45: 450 MW | AK45: 675 MW | AL45: 900 MW | AM45: 1350 MW
A46: 350 | B46: 123 | C46: 108 | D46: 97 | E46: 90 | F46: 158 | G46: 134 | H46: 122 | I46: 112 | K46: 350 | L46: 116 | M46: 100 | N46: 92 | O46: 83 | P46: 148 | Q46: 126 | R46: 116 | S46: 104 | U46: 350 | V46: 63 | W46: 56 | X46: 52 | Y46: 48 | Z46: 92 | AA46: 75.5 | AB46: 70 | AC46: 64 | AE46: 350 | AF46: 50 | AG46: 44 | AH46: 41 | AI46: 38 | AJ46: 73 | AK46: 61.5 | AL46: 56 | AM46: 50
A47: 500 | B47: 95 | C47: 83 | D47: 75 | E47: 68 | F47: 120 | G47: 103 | H47: 96 | I47: 86 | K47: 500 | L47: 95 | M47: 80 | N47: 73 | O47: 64 | P47: 116 | Q47: 100 | R47: 94 | S47: 83 | U47: 500 | V47: 62 | W47: 55 | X47: 52 | Y47: 48 | Z47: 90 | AA47: 76 | AB47: 71 | AC47: 64 | AE47: 500 | AF47: 46 | AG47: 41.5 | AH47: 38 | AI47: 36 | AJ47: 70 | AK47: 59 | AL47: 55 | AM47: 48
A48: 1000 | B48: 69 | C48: 58 | D48: 52 | E48: 48 | F48: 87 | G48: 74 | H48: 66 | I48: 58 | K48: 1000 | L48: 59 | M48: 52 | N48: 44 | O48: 40 | P48: 74 | Q48: 64 | R48: 55 | S48: 52 | U48: 1000 | V48: 60 | W48: 54 | X48: 53 | Y48: 49 | Z48: 90 | AA48: 78 | AB48: 74 | AC48: 66 | AE48: 1000 | AF48: 42 | AG48: 37 | AH48: 36 | AI48: 34.5 | AJ48: 64 | AK48: 55.5 | AL48: 51 | AM48: 46
A49: 1500 | B49: 63 | C49: 54 | D49: 46 | E49: 41 | F49: 79 | G49: 69 | H49: 62 | I49: 56 | K49: 1500 | L49: 46 | M49: 41 | N49: 36 | O49: 32 | P49: 60 | Q49: 50 | R49: 44 | S49: 40 | U49: 1500 | V49: 62 | W49: 56 | X49: 54.5 | Y49: 53 | Z49: 94 | AA49: 82 | AB49: 75.5 | AC49: 69 | AE49: 1500 | AF49: 44 | AG49: 40 | AH49: 37.5 | AI49: 36 | AJ49: 62 | AK49: 55 | AL49: 50 | AM49: 47
A50: 2000 | B50: 58 | C50: 50 | D50: 44 | E50: 39 | F50: 76 | G50: 64 | H50: 56 | I50: 52 | K50: 2000 | L50: 45 | M50: 38.75 | N50: 34 | O50: 30 | P50: 56 | Q50: 48 | R50: 43 | S50: 38 | U50: 2000 | V50: 66 | W50: 64 | X50: 59 | Y50: 56 | Z50: 98 | AA50: 85 | AB50: 80 | AC50: 74 | AE50: 2000 | AF50: 45 | AG50: 43 | AH50: 40 | AI50: 38 | AJ50: 64 | AK50: 56 | AL50: 53 | AM50: 49
A51: 2250 | B51: 56 | C51: 49 | D51: 43 | E51: 38 | F51: 74 | G51: 62 | H51: 54 | I51: 51 | K51: 2250 | L51: 45 | M51: 38.5 | N51: 33.75 | O51: 29.5 | P51: 57 | Q51: 48 | R51: 43 | S51: 38.5 | U51: 2250 | V51: 71 | W51: 66 | X51: 63 | Y51: 60 | Z51: 101 | AA51: 89 | AB51: 83 | AC51: 75 | AE51: 2250 | AF51: 46 | AG51: 44 | AH51: 41 | AI51: 38.5 | AJ51: 66 | AK51: 58 | AL51: 55 | AM51: 50
B52: y = 1229.6x-0.405 | C52: y = 1113.2x-0.412 | D52: y = 1126.8x-0.431 | E52: y = 1195.5x-0.454 | F52: y = 1435.5x-0.392 | G52: y = 1258x-0.396 | H52: y = 1375x-0.424 | I52: y = 1131x-0.41 | L52: y = 2163.3x-0.512 | M52: y = 1725.2x-0.501 | N52: y = 1735.2x-0.52 | O52: y = 1578.2x-0.524 | P52: y = 2315.8x-0.49 | Q52: y = 2194.6x-0.505 | R52: y = 2353.1x-0.53 | S52: y = 2162.4x-0.533 | V52: y = 7E-06x2 - 0.0146x + 67.574 | W52: y = 7E-06x2 - 0.0117x + 59.042 | X52: y = 5E-06x2 - 0.0065x + 54.377 | Y52: y = 3E-06x2 - 0.0018x + 48.04 | Z52: y = 4E-06x2 - 0.0039x + 90.761 | AA52: y = 2E-06x2 + 0.0008x + 75.02 | AB52: y = 2E-06x2 + 0.0002x + 70.655 | AC52: y = 2E-06x2 + 0.002x + 62.446 | AF52: y = 6E-06x2 - 0.0159x + 53.593 | AG52: y = 6E-06x2 - 0.0157x + 47.989 | AH52: y = 5E-06x2 - 0.0116x + 43.522 | AI52: y = 3E-06x2 - 0.0078x + 39.647 | AJ52: y = 8E-06x2 - 0.0241x + 80.261 | AK52: y = 5E-06x2 - 0.0155x + 65.884 | AL52: y = 6E-06x2 - 0.0165x + 61.35 | AM52: y = 4E-06x2 - 0.0099x + 52.44
A53: Est. $/kW | B53: =1229.6*('Cost Model S-PSH'!C14)^-0.405 -> 74.82758015 | C53: =1113.2*('Cost Model S-PSH'!C14)^-0.412 -> 64.54445053 | D53: =1126.8*('Cost Model S-PSH'!C14)^-0.431 -> 57.29274203 | E53: =1195.5*('Cost Model S-PSH'!C14)^-0.454 -> 51.85163734 | F53: =1435.5*('Cost Model S-PSH'!C14)^-0.392 -> 95.57043911 | G53: =1258*('Cost Model S-PSH'!C14)^-0.396 -> 81.46931989 | H53: =1375*('Cost Model S-PSH'!C14)^-0.424 -> 73.3782929 | I53: =1131*('Cost Model S-PSH'!C14)^-0.41 -> 66.48930336 | K53: Est. $/kW | L53: =2163.3*('Cost Model S-PSH'!C14)^-0.512 -> 62.83897455 | M53: =1725.2*('Cost Model S-PSH'!C14)^-0.501 -> 54.07180402 | N53: =1735.2*('Cost Model S-PSH'!C14)^-0.52 -> 47.69227158 | O53: =1578.2*('Cost Model S-PSH'!C14)^-0.524 -> 42.19427932 | P53: =2315.8*('Cost Model S-PSH'!C14)^-0.49 -> 78.31618621 | Q53: =2194.6*('Cost Model S-PSH'!C14)^-0.505 -> 66.90827757 | R53: =2353.1*('Cost Model S-PSH'!C14)^-0.53 -> 60.35614817 | S53: =2162.4*('Cost Model S-PSH'!C14)^-0.533 -> 54.32652969 | U53: Est. $/kW | V53: =0.000007*('Cost Model S-PSH'!C14)^2 - 0.0146*('Cost Model S-PSH'!C14) + 67.574 -> 59.971712 | W53: =0.000007*('Cost Model S-PSH'!C14)^2 - 0.0117*('Cost Model S-PSH'!C14) + 59.042 -> 54.351312 | X53: =0.000005*('Cost Model S-PSH'!C14)^2 - 0.0065*('Cost Model S-PSH'!C14) + 54.377 -> 52.89108 | Y53: =0.000003*('Cost Model S-PSH'!C14)^2 - 0.0018*('Cost Model S-PSH'!C14) + 48.04 -> 49.256848 | Z53: =0.000004*('Cost Model S-PSH'!C14)^2 - 0.0039*('Cost Model S-PSH'!C14) + 90.761 -> 90.877464 | AA53: =0.000002*('Cost Model S-PSH'!C14)^2 + 0.0008*('Cost Model S-PSH'!C14) + 75.02 -> 77.839232 | AB53: =0.000002*('Cost Model S-PSH'!C14)^2 + 0.0002*('Cost Model S-PSH'!C14) + 70.655 -> 72.871832 | AC53: =0.000002*('Cost Model S-PSH'!C14)^2 + 0.002*('Cost Model S-PSH'!C14)+ 62.446 -> 66.470032 | AE53: Est. $/kW | AF53: =0.000006*('Cost Model S-PSH'!C14)^2 - 0.0159*('Cost Model S-PSH'!C14) + 53.593 -> 43.677496 | AG53: =0.000006*('Cost Model S-PSH'!C14)^2 - 0.0157*('Cost Model S-PSH'!C14) + 47.989 -> 38.274296 | AH53: =0.000005*('Cost Model S-PSH'!C14)^2 - 0.0116*('Cost Model S-PSH'!C14)+ 43.522 -> 36.91568 | AI53: =0.000003*('Cost Model S-PSH'!C14)^2 - 0.0078*('Cost Model S-PSH'!C14) + 39.647 -> 34.839848 | AJ53: =0.000008*('Cost Model S-PSH'!C14)^2 - 0.0241*('Cost Model S-PSH'!C14)+ 80.261 -> 64.128728 | AK53: =0.000005*('Cost Model S-PSH'!C14)^2 - 0.0155*('Cost Model S-PSH'!C14) + 65.884 -> 55.36208 | AL53: =0.000006*('Cost Model S-PSH'!C14)^2 - 0.0165*('Cost Model S-PSH'!C14) + 61.35 -> 50.832096 | AM53: =0.000004*('Cost Model S-PSH'!C14)^2 - 0.0099*('Cost Model S-PSH'!C14) + 52.44 -> 46.532464
A85: Embankment Structure Cost $/CY | K85: Cost of Intakes/Outlets $M | V85: Cost of concrete lined water conductors | AE85: Cost of Vertical Shafts $/LF
A86: Average Dam Height, Ft | B86: Unit Volume CY/FT * 1000 | D86: Total Dam Volume (CY x 10^6) | E86: Unit Cost $/CY | F86: 1/x | G86: 1/y | H86: hyperbolic fit | K86: Water Conductor Diameter, Ft | L86: Horizontal Intake | M86: Vertical Intake | V86: $/LF Average Tunneling Conditions | Z86: $/LF Poor Tunneling Conditions | AE86: Shaft Diameter, Ft | AF86: $/LF
A87: 25 | B87: 0.2 | D87: 0.114 | E87: 13.5 | F87: =1/D87 -> 8.771929825 | G87: =1/E87 -> 0.07407407407 | H87: =($H$98*D87)/($H$96+D87) -> 13.72056559 | K87: 10 | L87: 1.3 | M87: 0.2 | P87: 0.0154x2 - 0.1968x + 1.85 | U87: Inside Diameter, Ft | V87: 1/2 Mile | W87: 1 Mile | X87: 2 Mile | Y87: 4 Mile | Z87: 1/2 Mile | AA87: 1 Mile | AB87: 2 Mile | AC87: 4 Mile | AE87: 10 | AF87: 1950
A88: 50 | B88: 0.5 | D88: 1 | E88: 9 | F88: =1/D88 -> 1 | G88: 0.1111111111 | H88: 8.156526608 | K88: 15 | L88: 2.5 | M88: 0.45 | O88: horizontal | P88: =0.0154*('Cost Model S-PSH'!C110)^2 - 0.1968*'Cost Model S-PSH'!C110 + 1.85 -> 1.394421796 | U88: 10 | V88: 1000 | W88: 1200 | X88: 1300 | Y88: 1400 | Z88: 1400 | AA88: 1500 | AB88: 1550 | AC88: 1600 | AE88: 15 | AF88: 2800
A89: 100 | B89: 1.4 | D89: 2 | E89: 8 | F89: 0.5 | G89: 0.125 | H89: 7.949140595 | K89: 20 | L89: 4.2 | M89: 0.9 | U89: 15 | V89: 1500 | W89: 1700 | X89: 1800 | Y89: 1900 | Z89: 2200 | AA89: 2400 | AB89: 2500 | AC89: 2600 | AE89: 20 | AF89: 3700 | AI89: 186.57x + 27.143
A90: 150 | B90: 2.7 | D90: 4 | E90: 7.8 | F90: 0.25 | G90: 0.1282051282 | H90: 7.849352657 | K90: 25 | L90: 6.4 | M90: 1.3 | P90: 0.0046x2 - 0.0819x + 0.5993 | U90: 20 | V90: 2200 | W90: 2400 | X90: 2500 | Y90: 2700 | Z90: 3200 | AA90: 3450 | AB90: 3600 | AC90: 3900 | AE90: 25 | AF90: 4700 | AH90: $/lf | AI90: =186.57*'Cost Model S-PSH'!C94 + 27.143 -> 2015.932335
A91: 200 | B91: 4.4 | D91: 6 | E91: 7.7 | F91: 0.1666666667 | G91: 0.1298701299 | H91: 7.816644432 | K91: 30 | L91: 9.6 | M91: 2.3 | O91: vertical | P91: =0.0046*('Cost Model S-PSH'!C110)^2 - 0.0819*'Cost Model S-PSH'!C110 + 0.5993 -> 0.2380068554 | U91: 25 | V91: 3200 | W91: 3400 | X91: 3550 | Y91: 3900 | Z91: 4600 | AA91: 4900 | AB91: 5200 | AC91: 5600 | AE91: 30 | AF91: 5600
A92: 250 | B92: 6.7 | D92: 8 | E92: 7.6 | F92: 0.125 | G92: 0.1315789474 | H92: 7.800392328 | K92: 35 | L92: 13.9 | M92: 3.4 | U92: 30 | V92: 4400 | W92: 4550 | X92: 4975 | Y92: 5450 | Z92: 6500 | AA92: 6700 | AB92: 7400 | AC92: 8100 | AE92: 35 | AF92: 6600
A93: 300 | B93: 9.4 | D93: 10 | E93: 7.5 | F93: 0.1 | G93: 0.1333333333 | H93: 7.790673465 | U93: 35 | V93: 5600 | W93: 5900 | X93: 6450 | Y93: 7500 | Z93: 8450 | AA93: 8750 | AB93: 9350 | AC93: 11250
A94: 350 | B94: 12.5 | H94: y = (7.75204x)/(x - 0.049591) | V94: 3.9286x2 + 10.071x + 481.43 | W94: 4.3214x2 - 5.6071x + 815 | X94: 5.5536x2 - 42.339x + 1165.4 | Y94: 7.6786x2 - 103.54x + 1690.7 | Z94: 6.6786x2 - 17.393x + 915 | AA94: 6.25x2 + 7.8929x + 819.29 | AB94: 6.7143x2 + 13.857x + 732.86 | AC94: 11.107x2 - 120.11x + 1777.9
C95: Upper Dam | E95: Lower Dam | G95: slope-> | H95: =SLOPE(G87:G93,F87:F93) -> -0.006397112993 | I95: $/CY Upper | J95: =(7.75204*C98)/(C98 - 0.049591) -> 12.33242146 | V95: =3.9286*('Cost Model S-PSH'!C94)^2 + 10.071*('Cost Model S-PSH'!C94) + 481.43 -> 1035.192109 | W95: =4.3214*('Cost Model S-PSH'!C94)^2 - 5.6071*('Cost Model S-PSH'!C94) + 815 -> 1246.271462 | X95: =5.5536*('Cost Model S-PSH'!C94)^2 - 42.339*'Cost Model S-PSH'!C94 + 1165.4 -> 1345.133822 | Y95: =7.6786*('Cost Model S-PSH'!C94)^2 - 103.54*'Cost Model S-PSH'!C94 + 1690.7 -> 1459.510805 | Z95: =6.6786*('Cost Model S-PSH'!C94)^2 - 17.393*'Cost Model S-PSH'!C94 + 915 -> 1488.485941 | AA95: =6.25*('Cost Model S-PSH'!C94)^2 + 7.8929*'Cost Model S-PSH'!C94 + 819.29 -> 1613.615361 | AB95: =6.7143*('Cost Model S-PSH'!C94)^2 + 13.857*'Cost Model S-PSH'!C94 + 732.86 -> 1643.519691 | AC95: =11.107*('Cost Model S-PSH'!C94)^2 - 120.11*'Cost Model S-PSH'!C94 + 1777.9 -> 1759.648698
B96: U.Unit Volume CY/Ft | C96: =(0.00009*('Cost Model S-PSH'!C16)^2 + 0.0039*'Cost Model S-PSH'!C16 + 0.0707)*1000 -> 4450.7 | D96: L.Unit Volume CY/Ft | E96: =(0.00009*('Cost Model S-PSH'!C18)^2 + 0.0039*'Cost Model S-PSH'!C18 + 0.0707)*1000 -> 3334.7 | G96: hyper k-> | H96: =H95*H98 -> -0.04959066937 | I96: $/CY Lower | J96: =(7.75204*E98)/(E98 - 0.049591) -> 15.37208788
B97: U.Total Volume CY | C97: =C96*'Cost Model S-PSH'!C17 -> 133521 | D97: L.Total Volume CY | E97: =E96*'Cost Model S-PSH'!C19 -> 100041 | G97: intercept-> | H97: =INTERCEPT(G87:G93,F87:F93) -> 0.1289983191
B98: U.Volume CY * 10^6 | C98: =C97/(10^6) -> 0.133521 | D98: L.Volume CY * 10^6 | E98: =E97/(10^6) -> 0.100041 | G98: hyper m-> | H98: =1/H97 -> 7.752038994
U121: Penstock Tunnel Max Velocity | Y121: Draft Tube Tunnel Max Velocity
A122: Cost of Pennstocks and Draft Tube Tunnels $/Ft | K122: Cost of Surface Pennstocks $/Ft | U122: Head (ft) | V122: Velocity (Fps) | Y122: Head (ft) | Z122: Velocity (Fps)
A123: Diameter, Ft | B123: 500 Ft | C123: 1000 Ft | D123: 1500 Ft | E123: 2000 Ft | K123: Diameter, Ft | L123: 300 Ft | M123: 500 Ft | N123: 700 Ft | O123: 1000 Ft | P123: 1500 Ft | U123: 300 | V123: 18 | Y123: 300 | Z123: 8
A124: 5 | K124: 10 | L124: 1.55 | M124: 2.2 | N124: 3.2 | O124: 4.5 | P124: 6.65 | U124: 500 | V124: 20 | Y124: 500 | Z124: 10
A125: 10 | B125: 2200 | C125: 2400 | D125: 3000 | E125: 3800 | K125: 15 | L125: 3.3 | M125: 5 | N125: 7 | O125: 10 | P125: 14.75 | U125: 1000 | V125: 25 | Y125: 1000 | Z125: 13
A126: 15 | B126: 4100 | C126: 4600 | D126: 6000 | E126: 7600 | K126: 20 | L126: 5.6 | M126: 8.7 | N126: 12.3 | U126: 1500 | V126: 28 | Y126: 1500 | Z126: 15
A127: 20 | B127: 6900 | C127: 7800 | D127: 10300 | E127: 13250 | K127: 25 | L127: 8.6 | M127: 13.7 | U127: 2200 | V127: 32 | Y127: 2200 | Z127: 17
A128: 25 | B128: 10000 | C128: 11700 | D128: 15800 | K128: 30 | L128: 12.2
A129: 30 | K129: 35 | L129: 16.5 | V129: 0.0074x + 16.512 | AA129: 0.0046x + 7.516
B130: 47.162x1.6615 | C130: 43.711x1.7314 | D130: 45.454x1.8126 | E130: 60.182x1.7959 | L130: 0.02x1.885 | M130: 0.0226x1.9901 | N130: 0.0365x1.9417 | O130: 0.0483x1.9694 | P130: 0.0721x1.9647 | V130: =0.0074*'Cost Model S-PSH'!C14 + 16.512 -> 23.9416 | AA130: =0.0046*('Cost Model S-PSH'!C14-'Cost Model S-PSH'!C88)+ 7.516 -> 8.90152
B131: =47.162*('Cost Model S-PSH'!C110)^1.6615 -> 2071.538354 | C131: =43.711*('Cost Model S-PSH'!C110)^1.7314 -> 2251.130204 | D131: =45.454*('Cost Model S-PSH'!C110)^1.8126 -> 2816.19831 | E131: =60.182*('Cost Model S-PSH'!C110)^1.7959 -> 3589.605289 | L131: =0.02*('Cost Model S-PSH'!C110)^1.885*1000 -> 1461.174026 | M131: =0.0226*('Cost Model S-PSH'!C110)^1.9901*1000 -> 2097.448087 | N131: =0.0365*('Cost Model S-PSH'!C110)^1.9417*1000 -> 3034.053772 | O131: =0.0483*('Cost Model S-PSH'!C110)^1.9694*1000 -> 4276.260217 | P131: =0.0721*('Cost Model S-PSH'!C110)^1.9647*1000 -> 6315.466525
A161: Underground Powerstation Equipment Costs 80MW Units $/kW | K161: Underground Powerstation Equipment Costs 125MW Units $/kW | U161: Underground Powerstation Equipment Costs 225MW Units $/kW | AE161: Underground Powerstation Equipment Costs 350MW Units $/kW
A162: Average Head, Ft | B162: 160 MW | C162: 240 MW | D162: 320 MW | E162: 480 MW | K162: Average Head, Ft | L162: 250 MW | M162: 375 MW | N162: 500 MW | O162: 750 MW | U162: Average Head, Ft | V162: 450 MW | W162: 675 MW | X162: 900 MW | Y162: 1350 MW | AE162: Average Head, Ft | AF162: 700 MW | AG162: 1050 MW | AH162: 1400 MW | AI162: 2100 MW
A163: 350 | B163: 242 | C163: 229 | D163: 223 | E163: 216 | K163: 350 | L163: 203 | M163: 194 | N163: 188 | O163: 184 | U163: 350 | V163: 163 | W163: 155 | X163: 151 | Y163: 146 | AE163: 350 | AF163: 130 | AG163: 124 | AH163: 121 | AI163: 117
A164: 500 | B164: 235 | C164: 224 | D164: 217 | E164: 210 | K164: 500 | L164: 194 | M164: 185 | N164: 180 | O164: 176 | U164: 500 | V164: 153 | W164: 145 | X164: 142 | Y164: 137 | AE164: 500 | AF164: 124 | AG164: 116 | AH164: 114 | AI164: 111
A165: 1000 | B165: 224 | C165: 212 | D165: 205 | E165: 200 | K165: 1000 | L165: 183 | M165: 174 | N165: 169 | O165: 165 | U165: 1000 | V165: 139 | W165: 134 | X165: 130 | Y165: 126 | AE165: 1000 | AF165: 112 | AG165: 107 | AH165: 105 | AI165: 102
A166: 1500 | B166: 222 | C166: 210 | D166: 204 | E166: 200 | K166: 1500 | L166: 180 | M166: 173 | N166: 168 | O166: 164 | U166: 1500 | V166: 138.5 | W166: 133.5 | X166: 129 | Y166: 126 | AE166: 1500 | AF166: 114 | AG166: 107.5 | AH166: 105.5 | AI166: 103
A167: 2000 | B167: 237 | C167: 226 | D167: 220 | E167: 215 | K167: 2000 | L167: 185 | M167: 176 | N167: 173 | O167: 168 | U167: 2000 | V167: 143 | W167: 135.5 | X167: 134 | Y167: 130 | AE167: 2000 | AF167: 115 | AG167: 110 | AH167: 107 | AI167: 104.5
A168: 2250 | B168: 245 | C168: 234 | D168: 228 | E168: 223 | K168: 2250 | L168: 187 | M168: 179 | N168: 175 | O168: 171 | U168: 2250 | V168: 145 | W168: 137 | X168: 135 | Y168: 132 | AE168: 2250 | AF168: 115.5 | AG168: 110.5 | AH168: 107.5 | AI168: 105.5
B170: 2E-05x2 - 0.0609x + 259.97 | C170: 2E-05x2 - 0.0609x + 247.79 | D170: 2E-05x2 - 0.0617x + 241.53 | E170: 2E-05x2 - 0.0555x + 232.3 | L170: 2E-05x2 - 0.0485x + 216.18 | M170: 2E-05x2 - 0.0462x + 206.27 | N170: 2E-05x2 - 0.0453x + 200.29 | O170: 2E-05x2 - 0.0456x + 196.43 | V170: 2E-05x2 - 0.0544x + 177.56 | W170: 1E-05x2 - 0.0448x + 166.28 | X170: 2E-05x2 - 0.048x + 163.78 | Y170: 2E-05x2 - 0.0452x + 157.75 | AF170: 1E-05x2 - 0.0365x + 139.89 | AG170: 1E-05x2 - 0.0355x + 132.8 | AH170: 1E-05x2 - 0.033x + 129.39 | AI170: 1E-05x2 - 0.0316x + 125.28
B171: =0.00002*('Cost Model S-PSH'!C89)^2 - 0.0609*'Cost Model S-PSH'!C89 + 259.97 -> 222.5637712 | C171: =0.00002*('Cost Model S-PSH'!C89)^2 - 0.0609*('Cost Model S-PSH'!C89) + 247.79 -> 210.3837712 | D171: =0.00002*('Cost Model S-PSH'!C89)^2 - 0.0617*('Cost Model S-PSH'!C89) + 241.53 -> 203.4410512 | E171: =0.00002*('Cost Model S-PSH'!C89)^2 - 0.0555*('Cost Model S-PSH'!C89) + 232.3 -> 199.5021312 | L171: =0.00002*('Cost Model S-PSH'!C89)^2 - 0.0485*('Cost Model S-PSH'!C89) + 216.18 -> 189.3559312 | M171: =0.00002*('Cost Model S-PSH'!C89)^2 - 0.0462*('Cost Model S-PSH'!C89) + 206.27 -> 181.4087512 | N171: =0.00002*('Cost Model S-PSH'!C89)^2 - 0.0453*('Cost Model S-PSH'!C89) + 200.29 -> 176.1968112 | O171: =0.00002*('Cost Model S-PSH'!C89)^2 - 0.0456*('Cost Model S-PSH'!C89) + 196.43 -> 172.0807912 | V171: =0.00002*('Cost Model S-PSH'!C89)^2 - 0.0544*('Cost Model S-PSH'!C89) + 177.56 -> 145.7008712 | W171: =0.00001*('Cost Model S-PSH'!C89)^2 - 0.0448*('Cost Model S-PSH'!C89) + 166.28 -> 135.3305956 | X171: =0.00002*('Cost Model S-PSH'!C89)^2 - 0.048*('Cost Model S-PSH'!C89) + 163.78 -> 137.3826312 | Y171: =0.00002*('Cost Model S-PSH'!C89)^2 - 0.0452*('Cost Model S-PSH'!C89) + 157.75 -> 133.7421512 | AF171: =0.00001*('Cost Model S-PSH'!C89)^2 - 0.0365*('Cost Model S-PSH'!C89) + 139.89 -> 116.0238156 | AG171: =0.00001*('Cost Model S-PSH'!C89)^2 - 0.0355*('Cost Model S-PSH'!C89) + 132.8 -> 109.7872156 | AH171: =0.00001*('Cost Model S-PSH'!C89)^2 - 0.033*('Cost Model S-PSH'!C89) + 129.39 -> 108.5107156 | AI171: =0.00001*('Cost Model S-PSH'!C89)^2 - 0.0316*('Cost Model S-PSH'!C89) + 125.28 -> 105.5954756
A203: Surface Powerstation Equipment Costs 80MW Units $/kW | K203: Surface Powerstation Equipment Costs 125MW Units $/kW | U203: Surface Powerstation Equipment Costs 225MW Units $/kW | AE203: Surface Powerstation Equipment Costs 350MW Units $/kW
A204: Average Head, Ft | B204: 160 MW | C204: 240 MW | D204: 320 MW | E204: 480 MW | K204: Average Head, Ft | L204: 250 MW | M204: 375 MW | N204: 500 MW | O204: 750 MW | U204: Average Head, Ft | V204: 450 MW | W204: 675 MW | X204: 900 MW | Y204: 1350 MW | AE204: Average Head, Ft | AF204: 700 MW | AG204: 1050 MW | AH204: 1400 MW | AI204: 2100 MW
A205: 350 | B205: 237 | C205: 225 | D205: 219 | E205: 214 | K205: 350 | L205: 200 | M205: 190 | N205: 185 | O205: 183 | U205: 350 | V205: 157 | W205: 151 | X205: 146 | Y205: 144 | AE205: 350 | AF205: 133 | AG205: 126 | AH205: 124 | AI205: 120
A206: 500 | B206: 236.5 | C206: 224 | D206: 217 | E206: 213 | K206: 500 | L206: 189 | M206: 179.5 | N206: 176 | O206: 171.5 | U206: 500 | V206: 151 | W206: 144.5 | X206: 142 | Y206: 136 | AE206: 500 | AF206: 124 | AG206: 117 | AH206: 115 | AI206: 114
A207: 1000 | B207: 234 | C207: 222 | D207: 216 | E207: 210 | K207: 1000 | L207: 180 | M207: 170.5 | N207: 167 | O207: 162 | U207: 1000 | V207: 144 | W207: 137 | X207: 134 | Y207: 130.5 | AE207: 1000 | AF207: 111.5 | AG207: 105.5 | AH207: 104 | AI207: 101
A208: 1500 | B208: 234.5 | C208: 223 | D208: 216.5 | E208: 212 | K208: 1500 | L208: 181.5 | M208: 174 | N208: 168 | O208: 164 | U208: 1500 | V208: 144 | W208: 137.5 | X208: 134 | Y208: 131 | AE208: 1500 | AF208: 110 | AG208: 105 | AH208: 104 | AI208: 100
A209: 2000 | B209: 238.5 | C209: 228 | D209: 224 | E209: 217 | K209: 2000 | L209: 187.5 | M209: 180 | N209: 176 | O209: 173 | U209: 2000 | V209: 146 | W209: 143 | X209: 137 | Y209: 135 | AE209: 2000 | AF209: 110.5 | AG209: 105 | AH209: 104 | AI209: 100.5
A210: 2250 | B210: 245 | C210: 234 | D210: 228 | E210: 222 | K210: 2250 | L210: 194 | M210: 185 | N210: 180 | O210: 176 | U210: 2250 | V210: 150 | W210: 144.5 | X210: 140.5 | Y210: 137 | AE210: 2250 | AF210: 111 | AG210: 105.3 | AH210: 104 | AI210: 101
B212: 8E-06x2 - 0.0174x + 242.74 | C212: 8E-06x2 - 0.017x + 230.3 | D212: 8E-06x2 - 0.0168x + 223.7 | E212: 8E-06x2 - 0.0173x + 219.28 | L212: 2E-05x2 - 0.0499x + 212.36 | M212: 2E-05x2 - 0.0457x + 200.9 | N212: 2E-05x2 - 0.046x + 196.81 | O212: 2E-05x2 - 0.0501x + 195 | V212: 1E-05x2 - 0.0319x + 165.52 | W212: 1E-05x2 - 0.0338x + 159.73 | X212: 1E-05x2 - 0.0313x + 155.12 | Y212: 1E-05x2 - 0.0309x + 151.13 | AF212: 1E-05x2 - 0.0447x + 144.85 | AG212: 1E-05x2 - 0.041x + 136.46 | AH212: 1E-05x2 - 0.0391x + 133.75 | AI212: 1E-05x2 - 0.0406x + 131.67
B213: =0.000008*('Cost Model S-PSH'!C89)^2 - 0.0174*('Cost Model S-PSH'!C89) + 242.74 -> 233.7171725 | C213: =0.000008*('Cost Model S-PSH'!C89)^2 - 0.017*('Cost Model S-PSH'!C89) + 230.3 -> 221.6185325 | D213: =0.000008*('Cost Model S-PSH'!C89)^2 - 0.0168*('Cost Model S-PSH'!C89) + 223.7 -> 215.1892125 | E213: =0.000008*('Cost Model S-PSH'!C89)^2 - 0.0173*('Cost Model S-PSH'!C89) + 219.28 -> 210.3425125 | L213: =0.00002*('Cost Model S-PSH'!C89)^2 - 0.0499*('Cost Model S-PSH'!C89) + 212.36 -> 184.3411712 | M213: =0.00002*('Cost Model S-PSH'!C89)^2 - 0.0457*('Cost Model S-PSH'!C89) + 200.9 -> 176.4654512 | N213: =0.00002*('Cost Model S-PSH'!C89)^2 - 0.046*('Cost Model S-PSH'!C89) + 196.81 -> 172.1194312 | O213: =0.00002*('Cost Model S-PSH'!C89)^2 - 0.0501*('Cost Model S-PSH'!C89)+ 195 -> 166.8104912 | V213: =0.00001*('Cost Model S-PSH'!C89)^2 - 0.0319*('Cost Model S-PSH'!C89) + 165.52 -> 145.5794556 | W213: =0.00001*('Cost Model S-PSH'!C89)^2 - 0.0338*('Cost Model S-PSH'!C89)+ 159.73 -> 138.1679956 | X213: =0.00001*('Cost Model S-PSH'!C89)^2 - 0.0313*('Cost Model S-PSH'!C89) + 155.12 -> 135.6914956 | Y213: =0.00001*('Cost Model S-PSH'!C89)^2 - 0.0309*('Cost Model S-PSH'!C89) + 151.13 -> 132.0428556 | AF213: =0.00001*('Cost Model S-PSH'!C89)^2 - 0.0447*('Cost Model S-PSH'!C89) + 144.85 -> 113.9859356 | AG213: =0.00001*('Cost Model S-PSH'!C89)^2 - 0.041*('Cost Model S-PSH'!C89)+ 136.46 -> 108.7535156 | AH213: =0.00001*('Cost Model S-PSH'!C89)^2 - 0.0391*('Cost Model S-PSH'!C89) + 133.75 -> 107.6649756 | AI213: =0.00001*('Cost Model S-PSH'!C89)^2 - 0.0406*('Cost Model S-PSH'!C89) + 131.67 -> 104.3048756
A239: Access Tunnel Costs, $/LF | K239: Switchyard Costs, $M | V239: Access Road, $/mile
A240: Tunnel Length, Miles | B240: $/LF | K240: No. of generating units | L240: 115 to 161 kV | M240: 230 kV | N240: 345 kV | O240: 500 kV | V240: Terrain | W240: New | X240: Rebuild
A241: 0.25 | B241: 2090 | D241: 2489.4x0.118 | K241: 2 | L241: 1.4 | M241: 1.7 | N241: 3.55 | O241: 7.35 | V241: Steep | W241: 439000 | X241: 293000
A242: 0.5 | B242: 2330 | D242: =2489.4*('Cost Model S-PSH'!C39)^0.118 -> 2406.311875 | K242: 3 | L242: 2.2 | M242: 2.8 | N242: 6.15 | O242: 13.5 | V242: Mild | W242: 283000 | X242: 186000
A243: 1 | B243: 2500 | K243: 4 | L243: 2.75 | M243: 3.7 | N243: 7.9 | O243: 16.5 | V243: Flat | W243: 189000 | X243: 123000
A244: 1.5 | B244: 2600 | K244: 5 | L244: 3.3 | M244: 4.4 | N244: 9.4 | O244: 19
A245: 2 | B245: 2690 | K245: 6 | L245: 3.65 | M245: 4.9 | N245: 11 | O245: 21
L247: -0.0643x2 + 1.0743x - 0.48 | M247: -0.1x2 + 1.6x - 1.1 | N247: -0.1607x2 + 3.1007x - 1.91 | O247: -0.6286x2 + 8.3086x - 6.45
L248: =-0.0643*('Cost Model S-PSH'!C106)^2 + 1.0743*'Cost Model S-PSH'!C106 - 0.48 -> 0.53 | M248: =-0.1*('Cost Model S-PSH'!C106)^2 + 1.6*('Cost Model S-PSH'!C106) - 1.1 -> 0.4 | N248: =-0.1607*('Cost Model S-PSH'!C106)^2 + 3.1007*('Cost Model S-PSH'!C106) - 1.91 -> 1.03 | O248: =-0.6286*('Cost Model S-PSH'!C106)^2 + 8.3086*('Cost Model S-PSH'!C106) - 6.45 -> 1.23 | Q248: =IF('Cost Model S-PSH'!C63<=160,'Cost Curves S-PSH'!L248,IF(AND('Cost Model S-PSH'!C63>160,'Cost Model S-PSH'!C63<=230),'Cost Curves S-PSH'!M248,IF(AND('Cost Model S-PSH'!C63>230,'Cost Model S-PSH'!C63<=345),'Cost Curves S-PSH'!N248,IF('Cost Model S-PSH'!C63>345,'Cost Curves S-PSH'!O248)))) -> 1.03
A274: Transmission Line Costs Per Mile, $1000s
A275: Transmitted Power, MW | B275: 138 kV | C275: 230 kV | D275: 345 kV | E275: 500 kV | H275: Transmission Terrain Multiplier
A276: 28.5 | B276: 110 | H276: Desert | I276: 1.05
A277: 30 | B277: 112 | H277: Flat | I277: 1
A278: 40 | B278: 115 | H278: Farmland | I278: 1
A279: 50 | B279: 120 | H279: Forested | I279: 2.25
A280: 60 | B280: 122 | H280: Rolling Hill | I280: 1.4
A281: 70 | B281: 128 | H281: Mountain | I281: 1.75
A282: 80 | B282: 132 | H282: Wetland | I282: 1.2
A283: 90 | B283: 140 | H283: Suburban | I283: 1.27
A284: 100 | B284: 150 | H284: Urban | I284: 1.59
A285: 125 | B285: 172
A286: 102 | C286: 175 | H286: Tranmission Circuit Multiplier
A287: 150 | C287: 180 | H287: Double | I287: =AVERAGE(K290:K292) -> 1.600469629
A288: 200 | C288: 190
A289: 300 | C289: 230 | H289: Transmission kV | I289: Single Circuit $/mile | J289: Double Circuit $/mile
A290: 340 | C290: 240 | H290: 230 | I290: 959700 | J290: 1536400 | K290: =J290/I290 -> 1.600916953
A291: 350 | D291: 275 | H291: 345 | I291: 1343800 | J291: 2150300 | K291: =J291/I291 -> 1.600163715
A292: 400 | D292: 280 | H292: 500 | I292: 1919450 | J292: 3071750 | K292: =J292/I292 -> 1.600328219
A293: 500 | D293: 285
A294: 600 | D294: 290
A295: 700 | D295: 295
A296: 800 | D296: 305
A297: 900 | D297: 325 | E297: 400
A298: 1000 | D298: 370 | E298: 402
A299: 2000 | E299: 450
A300: 3000 | E300: 575
B302: 0.0043x2 - 0.028x + 108.72 | C302: 0.0007x2 - 0.0382x + 169.98 | D302: 0.0003x2 - 0.2536x + 335.57 | E302: 4E-05x2 - 0.0652x + 428.5
B303: =0.0043*('Cost Model S-PSH'!C105)^2 - 0.028*'Cost Model S-PSH'!C105 + 108.72 -> 163.5427822 | C303: =0.0007*('Cost Model S-PSH'!C105)^2 - 0.0382*('Cost Model S-PSH'!C105) + 169.98 -> 174.9949045 | D303: =0.0003*('Cost Model S-PSH'!C105)^2 - 0.2536*('Cost Model S-PSH'!C105) + 335.57 -> 310.1494041 | E303: =0.00004*('Cost Model S-PSH'!C105)^2 - 0.0652*('Cost Model S-PSH'!C105)+ 428.5 -> 421.4629431 | G303: =IF('Cost Model S-PSH'!C62<=138,'Cost Curves S-PSH'!B303,IF(AND('Cost Model S-PSH'!C62>138,'Cost Model S-PSH'!C62<=230),'Cost Curves S-PSH'!C303,IF(AND('Cost Model S-PSH'!C62>230,'Cost Model S-PSH'!C62<=345),'Cost Curves S-PSH'!D303,IF('Cost Model S-PSH'!C62<=138>=345,'Cost Curves S-PSH'!E303)))) -> 421.4629431
A332: Power Station | B332: ='Cost Model S-PSH'!C47 -> Surface
A333: UR Connection | B333: =IF('Cost Model S-PSH'!C44="Horizontal","Horizontal Intake to Upper low pressure tunnel to Shaft to Upper high pressure tunnel",IF('Cost Model S-PSH'!C44="Vertical","Vertical Intake to Shaft to Upper Tunnel")) -> Vertical Intake to Shaft to Upper Tunnel
A334: Water Conductor | B334: Penstock
A335: LR Connection | B335: Direct Discharge
A337: Configuration | B337: =IF(AND(B332="Underground",B333="Vertical Intake to Shaft to Upper Tunnel",B334="Tunnel",B335="Tailrace tunnel"),"A",IF(AND(B332="Underground",B333="Horizontal Intake to Upper low pressure tunnel to Shaft to Upper high pressure tunnel",B334="Tunnel",B335="Tailrace tunnel"),"B",IF(AND(B332="Surface",B333="Vertical Intake to Shaft to Upper Tunnel",B334="Tunnel",B335="Direct Discharge"),"C",IF(AND(B332="Surface",B333="Horizontal Intake to Upper low pressure tunnel to Shaft to Upper high pressure tunnel",B334="Tunnel",B335="Tailrace tunnel"),"D",IF(AND(B332="Surface",B333="Horizontal Intake to Upper low pressure tunnel to Shaft to Upper high pressure tunnel",B334="Penstock",B335="Tailrace tunnel"),"E",IF(AND(B332="Surface",B333="Horizontal Intake to Upper low pressure tunnel to Shaft to Upper high pressure tunnel",B334="Penstock",B335="Direct Discharge"),"F","Out of Bounds")))))) -> Out of Bounds
A338: Small System Powerstation Costs
A361: 2008-2011 $ | C361: 1 cfs = 448.83 gal/min or 7.48 gal/sec
A362: gal/min | B362: stand by power k$
A363: 400 | B363: 65 | D363: ='Cost Model S-PSH'!C113*448.83 -> 615494.127 | E363: gal/min
A364: 700 | B364: 100 | D364: stand by power k$
A365: 1000 | B365: 150 | D365: =0.7799*(D363)^0.7442*1000 -> 15862782.03 | E365: $
A366: 5000 | B366: 400
A367: 10000 | B367: 750
A368: 15000 | B368: 1000
A369: 50000 | B369: 2500
A371: 2011-2015 $
A372: Low Head | B372: 200 ft or less
A373: Turbine generator and Control Cost in $/kW by capacity in MW
A374: y = 1051.9*x^-0.204 | D374: ='Cost Model S-PSH'!I10/1000 -> 116.2163582 | E374: =1051.9*(D374^-0.204)*'Market Adj Factors'!C47 -> 478.8009193
A376: High Head | B376: 200 ft or more
A377: Turbine generator and Control Cost in $/kW by capacity in MW
A378: y = 697.41*x^-0.329 | D378: =D374 -> 116.2163582 | E378: =697.41*D378^-0.329*'Market Adj Factors'!C47 -> 175.1903915

Sheet Market Adj Factors
B5: Category | C5: Suggested | D5: EPRI Fig | G5: Year | H5: Avg. CPI | I5: Inflation Adjustment to 1988$
B6: Power station | C6: 1.3 | D6: 6-8/6-9 | G6: 1970 | H6: 38.84166667 | I6: =H6/$H$24 -> 0.3284013246
B7: Dams, spillways, diversions, emb | C7: 1.4 | D7: 6-10 | G7: 1971 | H7: 40.48333333 | I7: 0.3422814063
B8: Upper intake/outlet (vertical) | C8: 2 | D8: 6-12 | G8: 1972 | H8: 41.80833333 | I8: 0.3534841119
B9: Lower intake/outlet (horizontal) | C9: 1.3 | D9: 6-12 | G9: 1973 | H9: 44.425 | I9: 0.3756076939
B10: Surface penstocks | C10: 1.3 | D10: 6-16 | G10: 1974 | H10: 49.31666667 | I10: 0.4169661101
B11: Vertical shaft | C11: 1.8 | D11: 6-14 | G11: 1975 | H11: 53.825 | I11: 0.4550834919
B12: Concrete lined tunnels (e.g. tailrace & power tun) | C12: 1.6 | D12: 6-13 | G12: 1976 | H12: 56.93333333 | I12: 0.4813640527
B13: Steel-Lined tunnels (underground penstocks) | C13: 1.9 | D13: 6-15 | G13: 1977 | H13: 60.61666667 | I13: 0.512506165
B14: Draft tubes | C14: 1.9 | D14: 6-15 | G14: 1978 | H14: 65.24166667 | I14: 0.5516099486
B15: Access and voltage tunnels | C15: 1 | D15: 6-19 | G15: 1979 | H15: 72.58333333 | I15: 0.6136828014
B16: Roads | C16: Allowance | D16: N/A | G16: 1980 | H16: 82.38333333 | I16: 0.6965405482
B17: Electro-Mechanical* | C17: 1.7 | D17: 6-17/6-18 | G17: 1981 | H17: 90.93333333 | I17: 0.7688297048
B18: Transmission works | C18: 1.3 | D18: 6-21 | G18: 1982 | H18: 96.53333333 | I18: 0.8161769887
B19: Switchyard | C19: 1 | D19: 6-20 | G19: 1983 | H19: 99.58333333 | I19: 0.8419643486
B20: EPC Contractor's Indirects | C20: 0.25 | D20: N/A | G20: 1984 | H20: 103.9333333 | I20: 0.8787430423
B21: Owner's Indirects | C21: 0.1 | D21: N/A | G21: 1985 | H21: 107.6 | I21: 0.9097442401
B22: Contingency | C22: 0.33 | D22: N/A | G22: 1986 | H22: 109.6916667 | I22: 0.9274290143
B23: O&M | C23: 1.3 | D23: N/A | G23: 1987 | H23: 113.6166667 | I23: 0.9606143874
G24: 1988 | H24: 118.275 | I24: 1
G25: 1989 | H25: 123.9416667 | I25: 1.047910942
G26: 1990 | H26: 130.6583333 | I26: 1.1046995
G27: 1991 | H27: 136.1666667 | I27: 1.151271754
G28: 1992 | H28: 140.3083333 | I28: 1.186289016
B29: Category | C29: Suggested | D29: Inflation Factor | G29: 1993 | H29: 144.475 | I29: 1.22151765
B30: Power station | C30: 1.3 | D30: =$C$45 -> 2.406321426 | G30: 1994 | H30: 148.225 | I30: 1.25322342
B31: Dams, spillways, diversions, emb | C31: 1.4 | D31: 2.406321426 | G31: 1995 | H31: 152.3833333 | I31: 1.288381597
B32: Upper intake/outlet (vertical) | C32: 2 | D32: 2.406321426 | G32: 1996 | H32: 156.8583333 | I32: 1.326217149
B33: Lower intake/outlet (horizontal) | C33: 1.3 | D33: 2.406321426 | G33: 1997 | H33: 160.525 | I33: 1.357218347
B34: Surface penstocks | C34: 1.3 | D34: 2.406321426 | G34: 1998 | H34: 163.0083333 | I34: 1.378214613
B35: Vertical shaft | C35: 1.8 | D35: 2.406321426 | G35: 1999 | H35: 166.5833333 | I35: 1.408440781
B36: Concrete lined tunnels (e.g. tailrace & power tun) | C36: 1.6 | D36: 2.406321426 | G36: 2000 | H36: 172.1916667 | I36: 1.455858522
B37: Steel-Lined tunnels (underground penstocks) | C37: 1.9 | D37: 2.406321426 | G37: 2001 | H37: 177.0416667 | I37: 1.496864652
B38: Draft tubes | C38: 1.9 | D38: 2.406321426 | G38: 2002 | H38: 179.8666667 | I38: =H38/$H$24 -> 1.520749665
B39: Access and voltage tunnels | C39: 1 | D39: 2.406321426 | G39: 2003 | H39: 184 | I39: 1.55569647
B40: Roads | C40: 1 | D40: 2.406321426 | G40: 2004 | H40: 188.9083333 | I40: 1.597195801
B41: Electro-Mechanical* | C41: 1.7 | D41: 2.406321426 | G41: 2005 | H41: 195.2666667 | I41: 1.650954696
B42: Transmission works | C42: 1.3 | D42: 2.406321426 | G42: 2006 | H42: 201.5583333 | I42: 1.704149933
B43: Switchyard | C43: 1 | D43: 2.406321426 | G43: 2007 | H43: 207.3441667 | I43: 1.753068414
G44: 2008 | H44: 215.25425 | I44: 1.819947157
B45: 1988-2022 adjustment | C45: =H58/$H$24 -> 2.406321426 | G45: 2009 | H45: 214.5646667 | I45: 1.814116818
B46: 2011-2022 adjustment | C46: =H58/H47 -> 1.265355996 | G46: 2010 | H46: 218.0761667 | I46: 1.843806102
B47: 2015-2022 adjustment | C47: =H58/H51 -> 1.200867363 | G47: 2011 | H47: 224.923 | I47: 1.901695202
B48: 2021-2022 Adjustment | C48: =C45/I57 -> 1.050346831 | G48: 2012 | H48: 229.5860833 | I48: 1.941120975
G49: 2013 | H49: 232.95175 | I49: 1.969577256
G50: 2014 | H50: 236.715 | I50: 2.001395054
G51: 2015 | H51: 237.00175 | I51: 2.003819488
G52: 2016 | H52: 240.0054167 | I52: 2.029215106
G53: 2017 | H53: 245.121 | I53: 2.072466709
G54: 2018 | H54: 251.0989167 | I54: 2.12300923
G55: 2019 | H55: 255.6465 | I55: 2.161458465
G56: 2020 | H56: 258.83825 | I56: 2.188444304
G57: 2021 | H57: 270.9654167 | I57: 2.290977947
G58: 2022 | H58: 284.6076667 | I58: 2.406321426

Sheet Locational Adj Factors
B1: Location Factor
A2: State | B2: Material Cost | C2: Equipment Rental
A3: Alabama | B3: 96.8 | C3: 59.3
A4: Alaska | B4: 125.3 | C4: 114.2
A5: Arizona | B5: 97.5 | C5: 68.8
A6: Arkansas | B6: 95.3 | C6: 57.3
A7: California | B7: 98.2 | C7: 118.8
A8: Colorado | B8: 101.2 | C8: 80.5
A9: Connecticut | B9: 101.3 | C9: 120.1
A10: Delaware | B10: 99.3 | C10: 107.9
A11: DC | B11: 102.4 | C11: 92.8
A12: Florida | B12: 99.8 | C12: 72.5
A13: Georgia | B13: 97.2 | C13: 63
A14: Hawaii | B14: 111.8 | C14: 121.2
A15: Idaho | B15: 102.5 | C15: 68.6
A16: Illinois | B16: 96.9 | C16: 114.6
A17: Indiana | B17: 96 | C17: 84.3
A18: Iowa | B18: 99.1 | C18: 72.8
A19: Kansas | B19: 98.8 | C19: 69.2
A20: Kentucky | B20: 94.4 | C20: 85.2
A21: Louisiana | B21: 99.1 | C21: 60.2
A22: Maine | B22: 96.6 | C22: 79.3
A23: Maryland | B23: 97.8 | C23: 80
A24: Massachusetts | B24: 98.8 | C24: 121.9
A25: Michigan | B25: 95.5 | C25: 92.2
A26: Minnesota | B26: 98.8 | C26: 107.5
A27: Mississippi | B27: 97.7 | C27: 59.5
A28: Missouri | B28: 98 | C28: 89.5
A29: Montana | B29: 102.3 | C29: 71.6
A30: Nebraska | B30: 98.5 | C30: 74.1
A31: Nevada | B31: 98.4 | C31: 96.3
A32: New Hampshire | B32: 97.8 | C32: 68.4
A33: New Jersey | B33: 99.7 | C33: 123.8
A34: New Mexico | B34: 98.1 | C34: 73
A35: New York | B35: 99.7 | C35: 125.2
A36: North Carolina | B36: 98.2 | C36: 44.8
A37: North Dakota | B37: 102 | C37: 59.3
A38: Ohio | B38: 96.9 | C38: 89.4
A39: Oklahoma | B39: 95.6 | C39: 55.7
A40: Oregon | B40: 97.6 | C40: 97.6
A41: Pennsylvania | B41: 95.7 | C41: 100.3
A42: Rhode Island | B42: 99.7 | C42: 111.1
A43: South Carolina | B43: 97.1 | C43: 52.1
A44: South Dakota | B44: 100.2 | C44: 53.1
A45: Tennessee | B45: 97.5 | C45: 64.3
A46: Texas | B46: 97.5 | C46: 54.7
A47: Utah | B47: 99.5 | C47: 68.5
A48: Vermont | B48: 97.8 | C48: 63.8
A49: Virginia | B49: 99.8 | C49: 64.7
A50: Washington | B50: 101.9 | C50: 91.8
A51: West Virginia | B51: 99 | C51: 86.8
A52: Wisconsin | B52: 98.9 | C52: 95
A53: Wyoming | B53: 98.4 | C53: 58.5
A54: Puerto Rico | B54: 121.3 | C54: 24.1
A55: United States | B55: 100 | C55: 100

Sheet Land Value Data
A2: State | B2: Farm Real Estate $/Acre 2021 | C2: Cropland $/Acre 2021 | D2: Irrigated Cropland $/Acre 2021 | E2: Non-Irrigated Cropland $/Acre 2021 | F2: Pasture $/Acre 2021 | G2: Average $/Acre 2021
A3: Connecticut | B3: 12500 | C3: 8770 | F3: 6870 | G3: =AVERAGE(B3:F3) -> 9380
A4: Delaware | B4: 9300 | C4: 8600 | F4: 6870 | G4: =AVERAGE(B4:F4) -> 8256.666667
A5: Maine | B5: 2600 | C5: 8770 | F5: 6870 | G5: 6080
A6: Maryland | B6: 8670 | C6: 7960 | G6: 8315
A7: Massachusetts | B7: 13700 | C7: 8770 | F7: 6870 | G7: 9780
A8: New Hampshire | B8: 5050 | C8: 8770 | F8: 6870 | G8: 6896.666667
A9: New Jersey | B9: 14400 | C9: 14800 | F9: 13400 | G9: 14200
A10: New York | B10: 3270 | C10: 2910 | F10: 1580 | G10: 2586.666667
A11: Pennsylvania | B11: 6800 | C11: 7600 | F11: 3440 | G11: 5946.666667
A12: Rhode Island | B12: 16400 | C12: 8770 | F12: 6870 | G12: 10680
A13: Vermont | B13: 3900 | C13: 8770 | F13: 6870 | G13: 6513.333333
A14: Michigan | B14: 5300 | C14: 4700 | F14: 2740 | G14: 4246.666667
A15: Minnesota | B15: 5240 | C15: 5270 | F15: 1830 | G15: 4113.333333
A16: Wisconsin | B16: 5190 | C16: 5280 | F16: 2520 | G16: 4330
A17: Illinois | B17: 7900 | C17: 7900 | F17: 3400 | G17: 6400
A18: Indiana | B18: 7100 | C18: 6800 | F18: 2490 | G18: 5463.333333
A19: Iowa | B19: 7740 | C19: 7810 | F19: 3020 | G19: 6190
A20: Missouri | B20: 3700 | C20: 3810 | D20: 4800 | E20: 3700 | F20: 2160 | G20: 3634
A21: Ohio | B21: 6600 | C21: 6800 | F21: 3440 | G21: 5613.333333
A22: Kansas | B22: 2100 | C22: 2370 | D22: 3700 | E22: 2250 | F22: 1500 | G22: 2384
A23: Nebraska | B23: 3100 | C23: 4960 | D23: 6530 | E23: 3990 | F23: 1080 | G23: 3932
A24: North Dakota | B24: 1820 | C24: 2060 | F24: 840 | G24: 1573.333333
A25: South Dakota | B25: 2190 | C25: 3390 | E25: 3180 | F25: 1060 | G25: 2455
A26: Kentucky | B26: 4000 | C26: 4510 | F26: 3080 | G26: 3863.333333
A27: North Carolina | B27: 4750 | C27: 4290 | F27: 4850 | G27: 4630
A28: Tennessee | B28: 4260 | C28: 4130 | F28: 4000 | G28: 4130
A29: Virginia | B29: 4700 | C29: 4790 | F29: 4060 | G29: 4516.666667
A30: West Virginia | B30: 2770 | C30: 3330 | F30: 2200 | G30: 2766.666667
A31: Alabama | B31: 3200 | C31: 3550 | F31: 2650 | G31: 3133.333333
A32: Florida | B32: 6020 | C32: 7300 | D32: 8350 | E32: 6320 | F32: 5530 | G32: 6704
A33: Georgia | B33: 3670 | C33: 3480 | D33: 4350 | E33: 3130 | F33: 4060 | G33: 3738
A34: South Carolina | B34: 3600 | C34: 2900 | F34: 3350 | G34: 3283.333333
A35: Arkansas | B35: 3390 | C35: 2930 | D35: 3420 | E35: 2130 | F35: 2700 | G35: 2914
A36: Louisiana | B36: 3220 | C36: 2980 | D36: 2880 | E36: 3020 | F36: 2950 | G36: 3010
A37: Mississippi | B37: 2860 | C37: 3150 | D37: 3700 | E37: 2830 | F37: 2480 | G37: 3004
A38: Oklahoma | B38: 2020 | C38: 1810 | E38: 1790 | F38: 1600 | G38: 1805
A39: Texas | B39: 2380 | C39: 2150 | D39: 2540 | E39: 2090 | F39: 1800 | G39: 2192
A40: Arizona | B40: 3900 | C40: 7700 | D40: 7700 | G40: 6433.333333
A41: Colorado | B41: 1610 | C41: 2240 | D41: 5400 | E41: 1400 | F41: 875 | G41: 2305
A42: Idaho | B42: 3350 | C42: 4450 | D42: 6800 | E42: 1890 | F42: 1700 | G42: 3638
A43: Montana | B43: 930 | C43: 1050 | D43: 3050 | E43: 835 | F43: 700 | G43: 1313
A44: Nevada | B44: 1010 | G44: 1010
A45: New Mexico | B45: 600 | C45: 1660 | D45: 4550 | E45: 485 | F45: 440 | G45: 1547
A46: Utah | B46: 2620 | C46: 4190 | D46: 6650 | E46: 1550 | F46: 1370 | G46: 3276
A47: Wyoming | B47: 790 | C47: 1600 | D47: 2550 | E47: 890 | F47: 610 | G47: 1288
A48: California | B48: 10900 | C48: 13860 | D48: 16300 | E48: 5900 | F48: 3100 | G48: 10012
A49: Oregon | B49: 2790 | C49: 3310 | D49: 5800 | E49: 2340 | F49: 830 | G49: 3014
A50: Washington | B50: 2900 | C50: 2700 | D50: 7800 | E50: 1310 | F50: 750 | G50: 3092
A51: United States | B51: 3380 | C51: 4420 | F51: 1480 | G51: 3093.333333

Sheet Sensitivity Analysis
A1: # | B1: Duration (Hrs) | C1: Nominal Head (Ft) | D1: Conveyance Length (Ft) | E1: Average U. Dam Height (ft) | F1: Average L. Dam Height (ft) | G1: Power Station Type | H1: Transmission Miles | I1: Average U. Crest Length (Ft) | J1: Average L. Crest Length (Ft) | K1: Power Station Structure Geology Type | L1: Access Tunnel Length (Miles) | M1: U. Reservoir Intake/Outlet Type | N1: Tranmission Type | O1: Penstock Type | P1: L. Reservoir Intake/Outlet Type | Q1: $/kWh | R1: $/kW
A2: 1 | B2: 18.5 | C2: 1560 | D2: 14394 | E2: 120 | F2: 60 | G2: Underground | H2: 13.5 | I2: 1300 | J2: 1100 | K2: Adverse | L2: 1.25 | M2: Vertical | N2: Double | O2: Underground | P2: Horizontal | Q2: 99.4195 | R2: 1839.2601
A3: 2 | B3: 24 | C3: 1560 | D3: 14394 | E3: 120 | F3: 60 | G3: Underground | H3: 13.5 | I3: 1300 | J3: 1100 | K3: Adverse | L3: 1.25 | M3: Vertical | N3: Double | O3: Underground | P3: Horizontal | Q3: 82.3412 | R3: 1976.19
A4: 3 | B4: 10 | C4: 1560 | D4: 14394 | E4: 120 | F4: 60 | G4: Underground | H4: 13.5 | I4: 1300 | J4: 1100 | K4: Adverse | L4: 1.25 | M4: Vertical | N4: Double | O4: Underground | P4: Horizontal | Q4: 160.5329 | R4: 1605.3286
A5: 4 | B5: 18.5 | C5: 2500 | D5: 14394 | E5: 120 | F5: 60 | G5: Underground | H5: 13.5 | I5: 1300 | J5: 1100 | K5: Adverse | L5: 1.25 | M5: Vertical | N5: Double | O5: Underground | P5: Horizontal | Q5: 73.1789 | R5: 1353.8104
A6: 5 | B6: 18.5 | C6: 800 | D6: 14394 | E6: 120 | F6: 60 | G6: Underground | H6: 13.5 | I6: 1300 | J6: 1100 | K6: Adverse | L6: 1.25 | M6: Vertical | N6: Double | O6: Underground | P6: Horizontal | Q6: 157.6845 | R6: 2917.1626
A7: 6 | B7: 18.5 | C7: 1560 | D7: 5000 | E7: 120 | F7: 60 | G7: Underground | H7: 13.5 | I7: 1300 | J7: 1100 | K7: Adverse | L7: 1.25 | M7: Vertical | N7: Double | O7: Underground | P7: Horizontal | Q7: 80.3289 | R7: 1486.0837
A8: 7 | B8: 18.5 | C8: 1560 | D8: 25000 | E8: 120 | F8: 60 | G8: Underground | H8: 13.5 | I8: 1300 | J8: 1100 | K8: Adverse | L8: 1.25 | M8: Vertical | N8: Double | O8: Underground | P8: Horizontal | Q8: 121.1172 | R8: 2240.6681
A9: 8 | B9: 18.5 | C9: 1560 | D9: 14394 | E9: 60 | F9: 60 | G9: Underground | H9: 13.5 | I9: 1300 | J9: 1100 | K9: Adverse | L9: 1.25 | M9: Vertical | N9: Double | O9: Underground | P9: Horizontal | Q9: 96.3367 | R9: 1782.2294 | T9: *Any changes to current input cell reference need to be manually updated in the macro.
A10: 9 | B10: 18.5 | C10: 1560 | D10: 14394 | E10: 240 | F10: 240 | G10: Underground | H10: 13.5 | I10: 1300 | J10: 1100 | K10: Adverse | L10: 1.25 | M10: Vertical | N10: Double | O10: Underground | P10: Horizontal | Q10: 122.6078 | R10: 2268.244 | T10: Yellow highlighted cell inputs affect the sensitivity graphs
A11: 10 | B11: 18.5 | C11: 1560 | D11: 14394 | E11: 120 | F11: 60 | G11: Surface | H11: 13.5 | I11: 1300 | J11: 1100 | K11: Adverse | L11: 1.25 | M11: Vertical | N11: Double | O11: Underground | P11: Horizontal | Q11: 90.0919 | R11: 1666.7007
A12: 11 | B12: 18.5 | C12: 1560 | D12: 14394 | E12: 120 | F12: 60 | G12: Underground | H12: 13.5 | I12: 1300 | J12: 1100 | K12: Adverse | L12: 1.25 | M12: Vertical | N12: Double | O12: Underground | P12: Horizontal | Q12: 99.4195 | R12: 1839.2601
A13: 12 | B13: 18.5 | C13: 1560 | D13: 14394 | E13: 120 | F13: 60 | G13: Underground | H13: 5 | I13: 1300 | J13: 1100 | K13: Adverse | L13: 1.25 | M13: Vertical | N13: Double | O13: Underground | P13: Horizontal | Q13: 97.1134 | R13: 1796.5975
A14: 13 | B14: 18.5 | C14: 1560 | D14: 14394 | E14: 120 | F14: 60 | G14: Underground | H14: 25 | I14: 1300 | J14: 1100 | K14: Adverse | L14: 1.25 | M14: Vertical | N14: Double | O14: Underground | P14: Horizontal | Q14: 102.5395 | R14: 1896.98
A15: 14 | B15: 18.5 | C15: 1560 | D15: 14394 | E15: 120 | F15: 60 | G15: Underground | H15: 13.5 | I15: 800 | J15: 800 | K15: Adverse | L15: 1.25 | M15: Vertical | N15: Double | O15: Underground | P15: Horizontal | Q15: 97.2463 | R15: 1799.057
A16: 15 | B16: 18.5 | C16: 1560 | D16: 14394 | E16: 120 | F16: 60 | G16: Underground | H16: 13.5 | I16: 1800 | J16: 1800 | K16: Adverse | L16: 1.25 | M16: Vertical | N16: Double | O16: Underground | P16: Horizontal | Q16: 102.0886 | R16: 1888.6389
A17: 16 | B17: 18.5 | C17: 1560 | D17: 14394 | E17: 120 | F17: 60 | G17: Underground | H17: 13.5 | I17: 1300 | J17: 1100 | K17: Average | L17: 1.25 | M17: Vertical | N17: Double | O17: Underground | P17: Horizontal | Q17: 96.7041 | R17: 1789.0265
A18: 17 | B18: 18.5 | C18: 1560 | D18: 14394 | E18: 120 | F18: 60 | G18: Underground | H18: 13.5 | I18: 1300 | J18: 1100 | K18: Adverse | L18: 1.25 | M18: Vertical | N18: Double | O18: Underground | P18: Horizontal | Q18: 99.4195 | R18: 1839.2601
A19: 18 | B19: 18.5 | C19: 1560 | D19: 14394 | E19: 120 | F19: 60 | G19: Underground | H19: 13.5 | I19: 1300 | J19: 1100 | K19: Adverse | L19: 0.75 | M19: Vertical | N19: Double | O19: Underground | P19: Horizontal | Q19: 98.0879 | R19: 1814.6263
A20: 19 | B20: 18.5 | C20: 1560 | D20: 14394 | E20: 120 | F20: 60 | G20: Underground | H20: 13.5 | I20: 1300 | J20: 1100 | K20: Adverse | L20: 1.75 | M20: Vertical | N20: Double | O20: Underground | P20: Horizontal | Q20: 100.8171 | R20: 1865.1171
A21: 20 | B21: 18.5 | C21: 1560 | D21: 14394 | E21: 120 | F21: 60 | G21: Underground | H21: 13.5 | I21: 1300 | J21: 1100 | K21: Adverse | L21: 1.25 | M21: Horizontal | N21: Double | O21: Underground | P21: Horizontal | Q21: 101.3388 | R21: 1874.7687
A22: 21 | B22: 18.5 | C22: 1560 | D22: 14394 | E22: 120 | F22: 60 | G22: Underground | H22: 13.5 | I22: 1300 | J22: 1100 | K22: Adverse | L22: 1.25 | M22: Vertical | N22: Double | O22: Underground | P22: Horizontal | Q22: 99.4195 | R22: 1839.2601
A23: 22 | B23: 18.5 | C23: 1560 | D23: 14394 | E23: 120 | F23: 60 | G23: Underground | H23: 13.5 | I23: 1300 | J23: 1100 | K23: Adverse | L23: 1.25 | M23: Vertical | N23: Single | O23: Underground | P23: Horizontal | Q23: 98.0453 | R23: 1813.8384
A24: 23 | B24: 18.5 | C24: 1560 | D24: 14394 | E24: 120 | F24: 60 | G24: Underground | H24: 13.5 | I24: 1300 | J24: 1100 | K24: Adverse | L24: 1.25 | M24: Vertical | N24: Double | O24: Underground | P24: Horizontal | Q24: 99.4195 | R24: 1839.2601
A25: 24 | B25: 18.5 | C25: 1560 | D25: 14394 | E25: 120 | F25: 60 | G25: Underground | H25: 13.5 | I25: 1300 | J25: 1100 | K25: Adverse | L25: 1.25 | M25: Vertical | N25: Double | O25: Surface | P25: Horizontal | Q25: 100.6477 | R25: 1861.9821
A26: 24 | B26: 18.5 | C26: 1560 | D26: 14394 | E26: 120 | F26: 60 | G26: Underground | H26: 13.5 | I26: 1300 | J26: 1100 | K26: Adverse | L26: 1.25 | M26: Vertical | N26: Double | O26: Underground | P26: Horizontal | Q26: 99.4195 | R26: 1839.2601
A27: 24 | B27: 18.5 | C27: 1560 | D27: 14394 | E27: 120 | F27: 60 | G27: Underground | H27: 13.5 | I27: 1300 | J27: 1100 | K27: Adverse | L27: 1.25 | M27: Vertical | N27: Double | O27: Underground | P27: Vertical | Q27: 98.1719 | R27: 1816.1795
A28: 24 | B28: 18.5 | C28: 1560 | D28: 14394 | E28: 120 | F28: 60 | G28: Underground | H28: 13.5 | I28: 1300 | J28: 1100 | K28: Adverse | L28: 1.25 | M28: Vertical | N28: Double | O28: Underground | P28: Horizontal | Q28: 99.4195 | R28: 1839.2601
A29: 25 | B29: 18.5 | C29: 1560 | D29: 14394 | E29: 120 | F29: 60 | G29: Underground | H29: 13.5 | I29: 1300 | J29: 1100 | K29: Adverse | L29: 1.25 | M29: Vertical | N29: Double | O29: Underground | P29: Horizontal | Q29: 99.4195 | R29: 1839.2601
A35: # | B35: Duration (Hrs) | C35: Nominal Head (Ft) | D35: Conveyance Length (Ft) | E35: Average U. Dam Height (ft) | F35: Average L. Dam Height (ft) | G35: Power Station Type | H35: Transmission Miles | I35: Average U. Crest Length (Ft) | J35: Average L. Crest Length (Ft) | K35: Power Station Structure Geology Type | L35: Access Tunnel Length (Miles) | M35: U. Reservoir Intake/Outlet Type | N35: Tranmission Type | O35: Penstock Type | P35: Tunneling Condirion | Q35: $/kWh | R35: $/kW
A36: 1 | B36: 10 | C36: 1004 | D36: 11080 | E36: 200 | F36: 170 | G36: Surface | H36: 30 | I36: 30 | J36: 30 | K36: Average | L36: 0.75 | M36: Vertical | N36: Double | O36: Surface | P36: Average | Q36: 426.8472 | R36: 4268.4718
A37: 2 | B37: 6 | C37: 1004 | D37: 11080 | E37: 200 | F37: 170 | G37: Surface | H37: 30 | I37: 30 | J37: 30 | K37: Average | L37: 0.75 | M37: Vertical | N37: Double | O37: Surface | P37: Average | Q37: 584.1585 | R37: 3504.951
A38: 3 | B38: 14 | C38: 1004 | D38: 11080 | E38: 200 | F38: 170 | G38: Surface | H38: 30 | I38: 30 | J38: 30 | K38: Average | L38: 0.75 | M38: Vertical | N38: Double | O38: Surface | P38: Average | Q38: 392.1838 | R38: 5490.5726
A39: 4 | B39: 10 | C39: 500 | D39: 11080 | E39: 200 | F39: 170 | G39: Surface | H39: 30 | I39: 30 | J39: 30 | K39: Average | L39: 0.75 | M39: Vertical | N39: Double | O39: Surface | P39: Average | Q39: 858.9518 | R39: 8589.5185
A40: 5 | B40: 10 | C40: 1500 | D40: 11080 | E40: 200 | F40: 170 | G40: Surface | H40: 30 | I40: 30 | J40: 30 | K40: Average | L40: 0.75 | M40: Vertical | N40: Double | O40: Surface | P40: Average | Q40: 358.6265 | R40: 3586.2653
A41: 6 | B41: 10 | C41: 1004 | D41: 5000 | E41: 200 | F41: 170 | G41: Surface | H41: 30 | I41: 30 | J41: 30 | K41: Average | L41: 0.75 | M41: Vertical | N41: Double | O41: Surface | P41: Average | Q41: 349.1407 | R41: 3491.4066
A42: 7 | B42: 10 | C42: 1004 | D42: 15000 | E42: 200 | F42: 170 | G42: Surface | H42: 30 | I42: 30 | J42: 30 | K42: Average | L42: 0.75 | M42: Vertical | N42: Double | O42: Surface | P42: Average | Q42: 472.5876 | R42: 4725.8763 | T42: *Any changes to current input cell reference need to be manually updated in the macro.
A43: 8 | B43: 10 | C43: 1004 | D43: 11080 | E43: 200 | F43: 170 | G43: Surface | H43: 30 | I43: 30 | J43: 30 | K43: Average | L43: 0.75 | M43: Vertical | N43: Double | O43: Surface | P43: Average | Q43: 426.8472 | R43: 4268.4718 | T43: Yellow highlighted cell inputs affect the sensitivity graphs
A44: 9 | B44: 10 | C44: 1004 | D44: 11080 | E44: 200 | F44: 170 | G44: Surface | H44: 30 | I44: 30 | J44: 30 | K44: Average | L44: 0.75 | M44: Vertical | N44: Double | O44: Surface | P44: Average | Q44: 426.8472 | R44: 4268.4718
A45: 10 | B45: 10 | C45: 1004 | D45: 11080 | E45: 200 | F45: 170 | G45: Surface | H45: 30 | I45: 30 | J45: 30 | K45: Average | L45: 0.75 | M45: Vertical | N45: Double | O45: Surface | P45: Average | Q45: 426.8472 | R45: 4268.4718
A46: 11 | B46: 10 | C46: 1004 | D46: 11080 | E46: 200 | F46: 170 | G46: Surface | H46: 30 | I46: 30 | J46: 30 | K46: Average | L46: 0.75 | M46: Vertical | N46: Double | O46: Surface | P46: Average | Q46: 426.8472 | R46: 4268.4718
A47: 12 | B47: 10 | C47: 1004 | D47: 11080 | E47: 200 | F47: 170 | G47: Surface | H47: 20 | I47: 30 | J47: 30 | K47: Average | L47: 0.75 | M47: Vertical | N47: Double | O47: Surface | P47: Average | Q47: 369.9714 | R47: 3699.7136
A48: 13 | B48: 10 | C48: 1004 | D48: 11080 | E48: 200 | F48: 170 | G48: Surface | H48: 40 | I48: 30 | J48: 30 | K48: Average | L48: 0.75 | M48: Vertical | N48: Double | O48: Surface | P48: Average | Q48: 483.723 | R48: 4837.23
A49: 14 | B49: 10 | C49: 1004 | D49: 11080 | E49: 200 | F49: 170 | G49: Surface | H49: 30 | I49: 30 | J49: 30 | K49: Average | L49: 0.75 | M49: Vertical | N49: Double | O49: Surface | P49: Average | Q49: 426.8472 | R49: 4268.4718
A50: 15 | B50: 10 | C50: 1004 | D50: 11080 | E50: 200 | F50: 170 | G50: Surface | H50: 30 | I50: 30 | J50: 30 | K50: Average | L50: 0.75 | M50: Vertical | N50: Double | O50: Surface | P50: Average | Q50: 426.8472 | R50: 4268.4718
A51: 16 | B51: 10 | C51: 1004 | D51: 11080 | E51: 200 | F51: 170 | G51: Surface | H51: 30 | I51: 30 | J51: 30 | K51: Adverse | L51: 0.75 | M51: Vertical | N51: Double | O51: Surface | P51: Average | Q51: 444.1529 | R51: 4441.5289
A52: 17 | B52: 10 | C52: 1004 | D52: 11080 | E52: 200 | F52: 170 | G52: Surface | H52: 30 | I52: 30 | J52: 30 | K52: Average | L52: 0.75 | M52: Vertical | N52: Double | O52: Surface | P52: Average | Q52: 426.8472 | R52: 4268.4718
A53: 18 | B53: 10 | C53: 1004 | D53: 11080 | E53: 200 | F53: 170 | G53: Surface | H53: 30 | I53: 30 | J53: 30 | K53: Average | L53: 0.75 | M53: Vertical | N53: Double | O53: Surface | P53: Average | Q53: 426.8472 | R53: 4268.4718
A54: 19 | B54: 10 | C54: 1004 | D54: 11080 | E54: 200 | F54: 170 | G54: Surface | H54: 30 | I54: 30 | J54: 30 | K54: Average | L54: 0.75 | M54: Vertical | N54: Double | O54: Surface | P54: Average | Q54: 426.8472 | R54: 4268.4718
A55: 20 | B55: 10 | C55: 1004 | D55: 11080 | E55: 200 | F55: 170 | G55: Surface | H55: 30 | I55: 30 | J55: 30 | K55: Average | L55: 0.75 | M55: Horizontal | N55: Double | O55: Surface | P55: Average | Q55: 435.4192 | R55: 4354.192
A56: 21 | B56: 10 | C56: 1004 | D56: 11080 | E56: 200 | F56: 170 | G56: Surface | H56: 30 | I56: 30 | J56: 30 | K56: Average | L56: 0.75 | M56: Vertical | N56: Double | O56: Surface | P56: Average | Q56: 426.8472 | R56: 4268.4718
A57: 22 | B57: 10 | C57: 1004 | D57: 11080 | E57: 200 | F57: 170 | G57: Surface | H57: 30 | I57: 30 | J57: 30 | K57: Average | L57: 0.75 | M57: Vertical | N57: Single | O57: Surface | P57: Average | Q57: 362.8306 | R57: 3628.3059
A58: 23 | B58: 10 | C58: 1004 | D58: 11080 | E58: 200 | F58: 170 | G58: Surface | H58: 30 | I58: 30 | J58: 30 | K58: Average | L58: 0.75 | M58: Vertical | N58: Double | O58: Surface | P58: Average | Q58: 426.8472 | R58: 4268.4718
A59: 24 | B59: 10 | C59: 1004 | D59: 11080 | E59: 200 | F59: 170 | G59: Surface | H59: 30 | I59: 30 | J59: 30 | K59: Average | L59: 0.75 | M59: Vertical | N59: Double | O59: Surface | P59: Average | Q59: 426.8472 | R59: 4268.4718
A60: 24 | B60: 10 | C60: 1004 | D60: 11080 | E60: 200 | F60: 170 | G60: Surface | H60: 30 | I60: 30 | J60: 30 | K60: Average | L60: 0.75 | M60: Vertical | N60: Double | O60: Surface | P60: Average | Q60: 426.8472 | R60: 4268.4718
A61: 24 | B61: 10 | C61: 1004 | D61: 11080 | E61: 200 | F61: 170 | G61: Surface | H61: 30 | I61: 30 | J61: 30 | K61: Average | L61: 0.75 | M61: Vertical | N61: Double | O61: Surface | P61: Poor | Q61: 442.4413 | R61: 4424.4132
A62: 24 | B62: 10 | C62: 1004 | D62: 11080 | E62: 200 | F62: 170 | G62: Surface | H62: 30 | I62: 30 | J62: 30 | K62: Average | L62: 0.75 | M62: Vertical | N62: Double | O62: Surface | P62: Average | Q62: 426.8472 | R62: 4268.4718
A63: 25 | B63: 10 | C63: 1004 | D63: 11080 | E63: 200 | F63: 170 | G63: Surface | H63: 30 | I63: 30 | J63: 30 | K63: Average | L63: 0.75 | M63: Vertical | N63: Double | O63: Surface | P63: Average | Q63: 426.8472 | R63: 4268.4718
B71: L-PSH
C72: Low $/kWh | D72: High $/kWh | E72: Basecase $/kWh | H72: Change $/kWh
B73: Nominal Head (Ft) | C73: =Q5 -> 73.1789 | D73: =Q6 -> 157.6845 | E73: =$Q$2 -> 99.4195 | F73: 2500 ft | G73: 800 ft | H73: =(D73-E73)+(E73-C73) -> 84.5056
B74: Duration (Hrs) | C74: =Q3 -> 82.3412 | D74: =Q4 -> 160.5329 | E74: 99.4195 | F74: 24 hours | G74: 10 hours | H74: 78.1917
B75: Conveyance Length (Ft) | C75: =Q7 -> 80.3289 | D75: =Q8 -> 121.1172 | E75: 99.4195 | F75: 5000 ft | G75: 25000 ft | H75: 40.7883
B76: Average Dam Height (ft) | C76: =Q9 -> 96.3367 | D76: =Q10 -> 122.6078 | E76: 99.4195 | F76: 60 ft | G76: 240 ft | H76: 26.2711
B77: Power Station Type | C77: =Q11 -> 90.0919 | D77: =Q12 -> 99.4195 | E77: 99.4195 | F77: Surface | G77: Underground | H77: 9.3276
B78: Transmission Miles | C78: =Q13 -> 97.1134 | D78: =Q14 -> 102.5395 | E78: 99.4195 | F78: 5 miles | G78: 25 miles | H78: 5.4261
B79: Power Station Structure Geology Type | C79: =Q17 -> 96.7041 | D79: =Q18 -> 99.4195 | E79: 99.4195 | F79: Average | G79: Adverse | H79: 2.7154
B80: Access Tunnel Length (Miles) | C80: =Q19 -> 98.0879 | D80: =Q20 -> 100.8171 | E80: 99.4195 | F80: 0.75 miles | G80: 1.75 miles | H80: 2.7292
B81: Average Crest Length (Ft) | C81: =Q15 -> 97.2463 | D81: =Q18 -> 99.4195 | E81: 99.4195 | F81: 800 ft | G81: 1800 ft | H81: 2.1732
B82: U. Reservoir Intake/Outlet Type | C82: =Q22 -> 99.4195 | D82: =Q21 -> 101.3388 | E82: 99.4195 | F82: Vertical | G82: Horizontal | H82: 1.9193
B83: Tranmission Type | C83: =Q23 -> 98.0453 | D83: =Q24 -> 99.4195 | E83: 99.4195 | F83: Single | G83: Double | H83: 1.3742
B84: L. Reservoir Intake/Outlet Type | C84: =Q27 -> 98.1719 | D84: =Q28 -> 99.4195 | E84: 99.4195 | F84: Vertical | G84: Horizontal | H84: 1.2476
B85: Penstock Type | C85: =Q26 -> 99.4195 | D85: =Q25 -> 100.6477 | E85: 99.4195 | F85: Underground | G85: Surface | H85: 1.2282
B90: S-PSH
C91: Low $/kWh | D91: High $/kWh | E91: Basecase $/kWh | H91: Change $/kWh
B92: Nominal Head (Ft) | C92: =Q40 -> 358.6265 | D92: =Q39 -> 858.9518 | E92: =$Q$36 -> 426.8472 | F92: 1500 ft | G92: 500 ft | H92: =(D92-E92)+(E92-C92) -> 500.3253
B93: Duration (Hrs) | C93: =Q38 -> 392.1838 | D93: =Q37 -> 584.1585 | E93: =$Q$36 -> 426.8472 | F93: 14 hours | G93: 6 hours | H93: =(D93-E93)+(E93-C93) -> 191.9747
B94: Conveyance Length (Ft) | C94: =Q41 -> 349.1407 | D94: =Q42 -> 472.5876 | E94: 426.8472 | F94: 5000 ft | G94: 15000 ft | H94: 123.4469
B95: Transmission Miles | C95: =Q47 -> 369.9714 | D95: =Q48 -> 483.723 | E95: 426.8472 | F95: 20 miles | G95: 40 miles | H95: 113.7516
B96: Tranmission Type | C96: =Q57 -> 362.8306 | D96: =Q58 -> 426.8472 | E96: 426.8472 | F96: Single | G96: Double | H96: 64.0166
B97: Tunneling Condition | C97: =Q62 -> 426.8472 | D97: =Q61 -> 442.4413 | E97: 426.8472 | F97: Average | G97: Poor | H97: 15.5941
B98: Power Station Structure Geology Type | C98: =Q52 -> 426.8472 | D98: =Q51 -> 444.1529 | E98: 426.8472 | F98: Average | G98: Adverse | H98: 17.3057
B99: U. Reservoir Intake/Outlet Type | C99: =Q56 -> 426.8472 | D99: =Q55 -> 435.4192 | E99: 426.8472 | F99: Vertical | G99: Horizontal | H99: 8.572
